Workbook

Sheet Attendees
A1: 1998 BARGE | D1: 1999 BARGE | G1: 2000 BARGE | J1: 2001 BARGE | M1: 2002 BARGE Callcutta | O1: 1998 FARGO | R1: 1999 FARGO | U1: 2000 FARGO | X1: 2001 FARGO
A2: Last | B2: First | D2: Last | E2: First | G2: Last | H2: First | J2: Last | K2: First | O2: Last | P2: First | R2: Last | S2: First | U2: Last | V2: First | X2: Last | Y2: First
A3: Agresta | B3: Danny | D3: Daniel | E3: Agresta | G3: anderson | H3: john | J3: Alspach | K3: Brian | M3: Mark Loewenstern and Edward Pizzarello (Pizza) | O3: Alan | P3: Bill | R3: Alan | S3: Bill | U3: Alan | V3: Bill | X3: Ankenman | Y3: Jerrod
A4: Alspach | B4: Brian | D4: David | E4: Allison | G4: Ankenman | H4: Jerrod | J4: anderson | K4: john | M4: Glenn Millar (laglenn) and John Miller | O4: Alson | P4: Peter | R4: Allen | S4: Herb | U4: Alson | V4: Peter | X4: Benton | Y4: Stephen
A5: Anderson | B5: Ken | D5: Brian | E5: Alspach | G5: Aronson | H5: Caryl | J5: Ankenman | K5: Jerrod | M5: Scott Harker (ADV Scottro) and John Harkness (Dead Money) | O5: Baker | P5: Ed | R5: Allen | S5: Patti | U5: Bloch | V5: Andy | X5: Botwin | Y5: Elizabeth
A6: Aronson | B6: David | D6: Ken | E6: Anderson | G6: Aronson | H6: David | J6: Augustine | K6: Lennie | M6: David Huberman (/david) and Jeff Woods (ADBjester) | O6: Bernstein | P6: Ray | R6: Alson | S6: Peter | U6: Botwin | V6: Michael | X6: Botwin | Y6: Michael
A7: Augustine | B7: Lenny | D7: David | E7: Aronson | G7: Bachrach | H7: Adam | J7: Fuentes | K7: Theresa | M7: Pete Segal (TrayRacer) and Rich Strauss | O7: Bloch | P7: Andy | R7: Baker | S7: Ed | U7: Brownstein | V7: Peter | X7: Burns | Y7: Jazbo
A8: Axelband | B8: Al | D8: Adam | E8: Bachrach | G8: Bachrach | H8: Debbie | J8: Bachrach | K8: Adam | M8: Len Greenberg (LenG) and Margaret Phillips | O8: Boyd | P8: Jack | R8: Butler | S8: Ken | U8: Butler | V8: Ken | X8: Burwick | Y8: Billy
A9: Bachrach | B9: Adam | D9: Harry | E9: Baldwin | G9: Baker | H9: Ed | J9: Bachrach | K9: Debbie | M9: Frank Castagna (Frank) and Jay Sipelstein (sippy) | O9: Brown | P9: Jeffrey | R9: Byron | S9: Scott | U9: Byron | V9: Scott | X9: Byron | Y9: Scott
A10: Baldwin | B10: Harry | D10: Jane | E10: Barnstuble | G10: Baldwin | H10: Harry | J10: Baldwin | K10: Harry | M10: Ming Lee and David Tahajian (davet) | O10: Butler | P10: Ken | R10: Caldes | S10: Pete | U10: Caldes | V10: Peter | X10: Caldes | Y10: Pete
A11: Beadles | B11: Patti | D11: Robert | E11: Bauer | G11: Barnstuble | H11: Jane | J11: beadles | K11: patti | M11: Eric Holtman (Jaeger) and Paul McMullin (prm) | O11: Byron | P11: Scott | R11: Calkins | S11: Jeff | U11: Calkins | V11: Jeff | X11: Calkins | Y11: Jeff
A12: Behrman | B12: Bill | D12: Patti | E12: Beadles | G12: Bartoszewicz | H12: Jeff | J12: Bentkower | K12: Mark | M12: Gillian Groves and Connie Kellers (baguette) | O12: Caldes | P12: Pete | R12: Chacon | S12: James | U12: Chevrie | V12: Dan | X12: Calkins | Y12: Lauri
A13: Bentkower | B13: Mark | D13: Guy | E13: Berentsen | G13: Beadles | H13: Patti | J13: Benton | K13: Stephen | M13: Michael McBride (Howler) and Ken Tarvin (bahnzo) | O13: Calkins | P13: Jeff | R13: Cooke | S13: Don | U13: Dalla | V13: Nolan | X13: Canning | Y13: Peter
A14: Berentsen | B14: Guy | D14: Stephen | E14: Blackstock | G14: Berentsen | H14: Guy | J14: Berentsen | K14: Guy | M14: Marc Howard and Mike Osborne (ADB Oz) | O14: Casale | P14: Frank | R14: Dalla | S14: Nolan | U14: Daniel | V14: Steve | X14: Chevrie | Y14: Dan
A15: Bergondy | B15: Paul | D15: Andrew | E15: Bloch | G15: Berwager | H15: Chadd | J15: Berkowitz | K15: Paul | M15: Dan Chevrie (Doo Dah Man) and Kevin Knourek (Kevin Un) | O15: Cooke | P15: Don | R15: Daniel | S15: Steve | U15: DeBellis | V15: John | X15: Daniel | Y15: Steve
A16: Bernhardt | B16: Sherri | D16: Harris | E16: Blum | G16: Blackstock | H16: Stephen | J16: Berkowitz | K16: Eileen | M16: Steven Eisenstein (Ice) and Michael Maurer (pygmyhipo) | O16: Courtney | P16: Mark | R16: Dechant | S16: Dan | U16: DelBorrel | V16: Mike | X16: Debellis | Y16: John
A17: Blackstock | B17: Stephen | D17: Rodney | E17: Bonner | G17: Brabec | H17: Frank | J17: Blackstock | K17: Stephen | M17: Mitch Firestone (ADB BFB) and Dan Goldman (smalltalkdan) | O17: Craft | P17: Charlie | R17: DelBorrel | S17: Steve | U17: DelBorrel | V17: Steve | X17: DelBorrel | Y17: Steve
A18: Bloch | B18: Andrew | D18: Frank | E18: Brabec | G18: Brecher | H18: Steve | J18: Bosserman | K18: Tim | M18: David Croson (Dave!) and Kelly Felder (Hoss) | O18: Craft | P18: Mary | R18: DeLuca | S18: Bart | U18: DiDonato | V18: Ray | X18: DeRose | Y18: John
A19: Bonner | B19: Rodney | D19: Steven | E19: Brecher | G19: Brown | H19: Barbara | J19: Bostick | K19: Alan | M19: Harry Baldwin and Cliff Matthews (dh2) | O19: Croson | P19: David | R19: DiDonato | S19: Ray | U19: Firestone | V19: Mitch | X19: DiDonato | Y19: Ray
A20: Brecher | B20: Steve | D20: Keith | E20: Bronson | G20: Brown | H20: Gary | J20: Brabec | K20: Frank | M20: Barry Tanenbaum and Betty Tanenbaum | O20: Daniel | P20: Steve | R20: Fitzgerald | S20: Kevin | U20: Foley | V20: Jim | X20: Eisenstein | Y20: Steven
A21: Bronson | B21: Keith | D21: Jim | E21: Bullard | G21: Brown | H21: Mel | J21: Brabec | K21: Sheri | M21: Tim Bosserman (Darth Dice) and John Reed (JRX) | O21: Dechant | P21: Dan | R21: Foley | S21: Jim | U21: Fradet | V21: Nicolas | X21: Firestone | Y21: Mitch
A22: Bullard | B22: Jim | D22: Debbie | E22: Burkhead | G22: Bullard | H22: Jim | J22: Brecher | K22: Steve | M22: Jeff Davenport (jeffdamack) and Dean Waters (POTTH) | O22: DeLuca | P22: Bart | R22: Frampton | S22: Al | U22: Fritz | V22: Barry | X22: Fitzgerald | Y22: Kevin
A23: Burns | B23: James | D23: Jazbo | E23: Burns | G23: Burns | H23: Jazbo | J23: Brown | K23: Gary | M23: Tony Goldstein (Karma) and Thomas Hummel (Aardvark) | O23: DiDonato | P23: Ray | R23: Fritz | S23: Barry | U23: Fruchter | V23: Dave | X23: Fradet | Y23: Nicolas
A24: Burrington | B24: Scott | D24: Scott | E24: Byron | G24: Burrington | H24: Scott | J24: Bullard | K24: Jim | M24: Jerrod Ankenman and Chris Straghalis (ADB Ploink) | O24: Frampton | P24: Al | R24: Gerner | S24: Jerry | U24: Gerard | V24: Daniel | X24: Fritz | Y24: Barry
A25: Byron | B25: Scott | D25: Peter | E25: Caldes | G25: Byron | H25: Scott | J25: Bunch | K25: David | M25: Johnny Davis (JohnnyD) and Paul Stine (Aggie83) | O25: Fritz | P25: Barry | R25: Giles | S25: Dave | U25: Gerner | V25: Jerry | X25: Gerard | Y25: Daniel
A26: Caldes | B26: Peter | D26: joseph | E26: carta | G26: Caldes | H26: Peter | J26: Nelson | K26: Corey | M26: Richard Kuhler and Fred Lawful | O26: Garner | P26: Charles | R26: Giles | S26: Sue | U26: Goldman | V26: Steve | X26: Gerner | Y26: Jerry
A27: Calkins | B27: Jeff | D27: William | E27: Chen | G27: Carter | H27: Clay | J27: Burns | K27: Jazbo | M27: russell rosenblum (russ) and Chieu Tran (C5) | O27: Gerner | P27: Jerry | R27: Goldstein | S27: Tony | U27: Goldstein | V27: Tony | X27: Goodridge | Y27: Richard
A28: Caro | B28: Mike | D28: Michael | E28: Chow | G28: Castagna | H28: Frank | J28: Burrington | K28: Scott | M28: Steve Pierce and Steve Watanabe (stevew) | O28: Giansanti | P28: Mike | R28: Goodwin | S28: Tom | U28: Goodridge | V28: Richard | X28: Goodwin | Y28: Tom
A29: Chow | B29: Mike | D29: Monte | E29: Christensen | G29: Castagna | H29: Nancy | J29: Byron | K29: Scott | M29: Michael Hunter and David Lawful (sam_6) | O29: Goldman | P29: Stevan | R29: Hadley | S29: Joan | U29: Goodwin | V29: Tom | X29: Greenberg | Y29: Len
A30: Christensen | B30: Monte | D30: Nick | E30: Christenson | G30: Casteel | H30: Ellen | J30: Caldes | K30: Peter | M30: Barry Kornspan (BarryK) and sean mcguiness (oscar) | O30: Goodwin | P30: Tom | R30: Hafey | S30: Tom | U30: Greenberg | V30: Len | X30: Hadley | Y30: Joan
A31: Christenson | B31: Nick | D31: Suzan | E31: Cohen | G31: Cervanyk | H31: Donna | J31: Carbonara | K31: Steve | M31: Geroncio Galicia (Jalapeno) and Tracey Martin (Babette) | O31: Guidoboni | P31: Rich | R31: Hallyburton | S31: John | U31: Guild | V31: Jay | X31: Hafey | Y31: Bill
A32: Cohen | B32: Suzan | D32: Chris | E32: Colby | G32: Cervanyk | H32: John | J32: Castagna | K32: Frank | M32: Mary Massey (MadMary) and Andrew Prock | O32: Hafey | P32: Tom | R32: Heck | S32: Ken | U32: Hadley | V32: Joan | X32: Hafey | Y32: Tom
A33: Colby | B33: Chris | D33: Randy | E33: Collack | G33: Charleston | H33: Kristi | J33: Cervanyk | K33: John A. D. | M33: Beth Even (ADV Beth) and Arthur Reber (Lord Palin) | O33: Hallyburton | P33: John | R33: Holtman | S33: Eric | U33: Hallyburton | V33: John | X33: Hallyburton | Y33: John
A34: Cote | B34: Kimberly | D34: Wade | E34: Coody | G34: Chen | H34: Bill | J34: Cervanyk | K34: Donna | M34: Steve Brecher (brec) and Johnny Brown (Downtown) | O34: Hartman | P34: Chris | R34: Hummel | S34: Thomas | U34: Hodosh | V34: Paul | X34: Heck | Y34: Ken
A35: Croson | B35: David | D35: Lee | E35: Crocker | G35: Chow | H35: Michael | J35: Chen | K35: Bill | M35: louis ogus (bob o) and Arthur Santella (Arty) | O35: Hartman | P35: Sam | R35: Hwang | S35: Robert | U35: Holtman | V35: Eric | X35: Holtman | Y35: Eric
A36: Dalla | B36: Nolan | D36: Nolan | E36: Dalla | G36: Christensen | H36: Monte | J36: Chevrie | K36: Dan | M36: Jeff Jennings and Shelley Louie | O36: Haynes | P36: Charles | R36: Jacobs | S36: Robert | U36: Hummel | V36: Tom | X36: Huberman | Y36: David
A37: Daniel | B37: Stephen | D37: Steve | E37: Daniel | G37: Christenson | H37: Nick | J37: Chow | K37: Michael | M37: Nick Christenson and George Wattman | O37: Heck | P37: Ken | R37: Kearns | S37: Jim | U37: Johar | V37: Sandeep | X37: Hwang | Y37: Robert
A38: Denny | B38: David | D38: John | E38: Davis | G38: Clements | H38: Ava | J38: Christensen | K38: Monte | M38: Charles Haynes (ADBChaz) and Gavin Smith | O38: Hill | P38: Jim | R38: Khirallah | S38: Larry | U38: Kensek | V38: Alan | X38: Keohan | Y38: Mike
A39: Denny | B39: Rachel | D39: David | E39: Denny | G39: Cohen | H39: Suzan | J39: Christenson | K39: Nick | M39: Guy Berentsen (grizz) and David Horwitz (Quick) | O39: Hodosh | P39: Paul | R39: Kirkham | S39: Roger | U39: Keohan | V39: Mike | X39: Khirallah | Y39: Larry
A40: Doyle | B40: Curtis | D40: Rachel | E40: Denny | G40: Colby | H40: Chris | J40: Cohen | K40: Suzan | M40: Steve Johnson (aces4me) and Al Weber (Big_Al) | O40: Holtman | P40: Eric | R40: Klein | S40: Jason | U40: Khirallah | V40: Larry | X40: Kirisits | Y40: Matthew
A41: Duchin | B41: Michael | D41: Chris | E41: Derossi | G41: Collack | H41: Carol | J41: Colby | K41: Chris | M41: Nolan Dalla (ADB Darkside) and Andrew Latto (Andy) | O41: Hwang | P41: Robert | R41: Klein | S41: Michael | U41: Kirkham | V41: Roger | X41: Kirkham | Y41: Roger
A42: Dunbar | B42: Martin | D42: Richard | E42: Dombro | G42: Collack | H42: Randy | J42: Collack | K42: Randy | M42: Scott Byron (Bwana) and Mike Chow | O42: Jessell | P42: Jeff | R42: Kramer | S42: Bruce | U42: Klein | V42: Jason | X42: Klein | Y42: Michael
A43: Emerling | B43: Chuck | D43: Robert | E43: Ellis | G43: Compton | H43: Janice | J43: Cooke | K43: Roy | M43: Patti Beadles (Patti) and Keith Fichtemaier (ADB fich) | O43: Kessler | P43: Irv | R43: Latto | S43: Andy | U43: Kramer | V43: Bruce | X43: Kornspan | Y43: Barry
A44: Fagen | B44: Robert | D44: Chuck | E44: Emerling | G44: Crocker | H44: Lee | J44: Crocker | K44: Lee Daniel | M44: Masanobu Fujioka (Masa) and Dan Nussbaum | O44: Khirallah | P44: Larry | R44: Lee | S44: Ming | U44: Latto | V44: Andy | X44: Kramer | Y44: Bruce
A45: Feiger | B45: Robert | D45: Peter | E45: Etchemendy | G45: Dalla | H45: Marieta | J45: Croson | K45: David | M45: Janace Pierce (Jan) and Peter Secor (Foldem) | O45: King | P45: Jeff | R45: Lewis | S45: Linda | U45: Lee | V45: Ming | X45: Kramer | Y45: Mitch
A46: Fichtemaier | B46: Keith | D46: Keith | E46: Fichtemaier | G46: Dalla | H46: Nolan | J46: Croson | K46: Rachel | M46: Tom Goodwin (Lucky Rebuy) and Robert Hwang (ActionBob) | O46: Klarman | P46: Ron | R46: Luther | S46: Frank | U46: Luzzaraga | V46: Victor | X46: Lee | Y46: Ming
A47: Friedman | B47: Perry | D47: Jim | E47: Foley | G47: Daniel | H47: Steve | J47: Dalla | K47: Nolan | M47: Rick Bevan (Zbigniew) and rickie kerndt (stubing) | O47: Klein | P47: Michael | R47: Mancini | S47: Romy | U47: Marciano | V47: Mary | X47: Lepore | Y47: Vince
A48: Fuchs | B48: Ken | D48: Russell | E48: Fox | G48: Davis | H48: John | J48: Dalla | K48: Marieta | M48: David Heller (Heldar) and Eric Shirk | O48: Klotz | P48: Lynn | R48: Manvell | S48: Mike | U48: Marciano | V48: Len | X48: Lewis | Y48: LLew
A49: Furst | B49: Rafe | D49: Patri | E49: Friedman | G49: Eisenstein | H49: Steven | J49: Daniel | K49: Stephen | M49: Jim Bullard (Bullbert) and Warren Sander | O49: Kramer | P49: Mitch | R49: Marciano | S49: Len | U49: Martin | V49: Nina | X49: Lohr | Y49: Rick
A50: Gabrysch | B50: Thomas | D50: Thomas | E50: Gabrysch | G50: Even | H50: Elizabeth A. | J50: Davis | K50: John | M50: Andy Hughes and Brian Wass (Wassymac) | O50: Kramer | P50: Bruce | R50: Marciano | S50: Mary | U50: Martin | V50: Tom | X50: Luzarraga | Y50: Victor
A51: Galicia | B51: Geroncio | D51: Geroncio | E51: Galicia | G51: Ferguson | H51: Chris | J51: Eisenstein | K51: Steve | M51: Stevan Goldman (goldiefish) and charles natkins (Garnishmensch) | O51: Kulju | P51: Judith | R51: McDermott | S51: Mike | U51: Massey | V51: Mary | X51: Marciano | Y51: Len
A52: Garrett | B52: Kevan | D52: Kevan | E52: Garrett | G52: Fichtemaier | H52: Keith | J52: Evanoff | K52: Rhonda | M52: Lee Crocker (bowtie) and Jeffrey Siegal | O52: Lee | P52: Ming | R52: McHugh | S52: Tom | U52: Matros | V52: Matt | X52: Marciano | Y52: Mary
A53: Geary | B53: Jim | D53: Jim | E53: Geary | G53: Firestone | H53: Mitch | J53: Evans | K53: Jim | M53: E.Dieter Martin and Tim McGarvey (ADB Timmy) | O53: Lewis | P53: Linda | R53: Miller | S53: Alan | U53: Matros | V53: Bill | X53: Massey | Y53: Mary
A54: Geiger | B54: Les | D54: Bob | E54: Gentry | G54: Fox | H54: Russell | J54: Schenk | K54: Peggy | M54: Patrick Milligan (ADV Patrick) and Mark Rafn (Dagon) | O54: Lucht | P54: Ralph | R54: Mogal | S54: Jim | U54: McElroy | V54: Gerard | X54: Matros | Y54: Matt
A55: Gerner | B55: Jerry | D55: Brian | E55: Goetz | G55: Friedman | H55: Patri | J55: Even | K55: Beth | M55: Jay Johnson (underflow) and david orr | O55: Lynch | P55: Dennis | R55: Moore | S55: Matthew | U55: McIntyre | V55: Steve | X55: Matros | Y55: William
A56: Gifford | B56: Doug | D56: William | E56: Goldman | G56: Galicia | H56: Geroncio | J56: Felder | K56: James | M56: Adam Bachrach (Allknight) and Corey Imsdahl | O56: Mancini | P56: Romy | R56: Newjane | U56: Natkins | V56: Charles | X56: O'Boyle | Y56: Thomas
A57: Goldman | B57: Stevan | D57: Tony | E57: Goldstein | G57: Garrett | H57: Kevan | J57: Fichtemaier | K57: Keith | M57: Rick Charles (ADB DaVoice) and Randy Collack (Mitch) | O57: McGarvey | P57: Tim | R57: Nugent | S57: Alan | U57: O'Boyle | V57: Thomas | X57: Oldenburg | Y57: Mark
A58: Goodman | B58: Frank | D58: Shmuel | E58: Goshen | G58: Goetz | H58: Brian | J58: Firestone | K58: Mitch | M58: Steve Jacobs and Charles Weinstock (Chuck) | O58: McHugh | P58: Tom | R58: O'Boyle | S58: Tom | U58: Oldenburg | V58: Mark | X58: Pappas | Y58: Greg
A59: Goodwin | B59: Tom | D59: Len | E59: Granowetter | G59: Goldman | H59: Stevan | J59: Tiger | K59: Alan | M59: Walter Hunt and Larry Weinberg | O59: McMullin | P59: Paul | R59: Oldenburg | S59: Mark | U59: Pappas | V59: Greg | X59: Pizzarello | Y59: Edward
A60: Goshen | B60: Shmuel | D60: Gillian | E60: Groves | G60: Goldstein | H60: Tony | J60: Fleming | K60: John | M60: Roger Barbour and Edmund Hack (RktSci) | O60: Meeks | P60: David | R60: Pappas | S60: Greg | U60: Pappas | V60: Deno | X60: Raymer | Y60: Greg
A61: Graham | B61: Brian | D61: Richard | E61: Guidoboni | G61: Goodwin | H61: Tom | J61: Fox | K61: Russell | M61: Lennie Augustine (bananfish) and Bruce Hayek (Space Cadet) | O61: Miller | P61: Alan | R61: Paquin | S61: Chris | U61: Partenope | V61: Nick | X61: Richman | Y61: Andrew
A62: Granowetter | B62: Len | D62: Edmund | E62: Hack | G62: goshen | H62: shmuel | J62: Friedman | K62: Perry | M62: Scott Burrington (nfh) and Gerald Petersen (gerdog) | O62: Miyake | P62: Keith | R62: Perry | S62: Don | U62: Paturzo | V62: Tony | X62: Rosenblum | Y62: Russell
A63: Groves | B63: Gillian | D63: Michael | E63: Hall | G63: Granowetter | H63: Len | J63: Gabrysch | K63: Thomas | M63: HECTOR LOZANO and Martin Maughan | O63: Musto | P63: Chris | R63: Perry | S63: Michael | U63: Peou | V63: Rith | X63: Sander | Y63: Warren
A64: Hack | B64: Edmund | D64: Tonda | E64: Hall | G64: Greenberg | H64: Len | J64: Galicia | K64: Ron | M64: Robert Bronston (Rob) and Wendy Rafn | O64: Nugent | P64: Alan | R64: Polansky | S64: Joe | U64: Perry | V64: Don | X64: Santella | Y64: Art
A65: Hack | B65: Maryann | D65: John | E65: Harkness | G65: Groves | H65: Gillian | J65: Gardella | K65: Geoffrey | M65: Stephen Daniel (Crunch) and Len Granowetter | O65: Nussbaum | P65: Dan | R65: Raymer | S65: Greg | U65: Raymer | V65: Greg | X65: Segal | Y65: Pete
A66: Hafey | B66: Bill | D66: Greg | E66: Harrington | G66: Hack | H66: Edmund | J66: Garrett | K66: Kevan | M66: Stephen Carbonara (IFSATG) and Lou Krieger | O66: O'Boyle | P66: Thomas | R66: Sander | S66: Warren | U66: Rosenblum | V66: Russ | X66: Sheedy | Y66: Jason
A67: Hall | B67: Michael | D67: Greg | E67: Morrison | G67: Hadley | H67: Joan | J67: Goetz | K67: Brian | M67: David McVay and Paul Person (Sunfish) | O67: Pappas | P67: Greg | R67: Santella | S67: Art | U67: Rutkowski | V67: Steve | X67: Silver | Y67: N
A68: Hall | B68: Tonda | D68: Chris | E68: Hartman | G68: Hall | H68: Michael | J68: Goldman | K68: Stevan | M68: john anderson (coming) and Daniel Loncaric (Dan) | O68: Paquin | P68: Chris | R68: Secor | S68: Peter | U68: Sander | V68: Warren | X68: Simon | Y68: Scott
A69: Harkness | B69: John | D69: Sam | E69: Hartman | G69: Hall | H69: Tonda | J69: Goldstein | K69: Tony | M69: Linda Johnson (Now, Let's Play Poker) and Doug Langdon (redrockblue) | O69: Price | P69: Stephen | R69: Segal | S69: Peter | U69: Segal | V69: Peter | X69: Sordi | Y69: Frank
A70: Hartman | B70: Chris | D70: Lisa | E70: Haupert | G70: Hamilton | H70: Adam | J70: Goodwin | K70: Tom | M70: Marc Gilutin (The Occupant) and Steve Nissman (Steve BIA) | O70: Rowan | P70: John | R70: Sheedy | S70: Jason | U70: Segal | V70: Allen | X70: Stilling | Y70: Martin
A71: Hayek | B71: Bruce | D71: Melissa | E71: Hayden | G71: Hamilton | H71: Simon | J71: Gore | K71: Ellen | M71: Gregory Dinkin and Ken Kubey (QB) | O71: Sadowski | P71: Robert | R71: Stilling | S71: Martin | U71: Sheedy | V71: Jason | X71: Stuart | Y71: Alan
A72: Haynes | B72: Charles | D72: Charles | E72: Haynes | G72: Harker | H72: Scott | J72: Gelman | K72: Ron | M72: Frank Brabec (NUT-Z) and Sheri Brabec (lorframag) | O72: Sander | P72: Warren | R72: Straghalis | S72: Chris | U72: Simon | V72: Scott | X72: Sudkin | Y72: David
A73: Herdan | B73: Tom | D73: David | E73: Heller | G73: Harkness | H73: John | J73: Granowetter | K73: Len | M73: Bill Chen and Suzan Cohen (Sabyl) | O73: Scavetta | P73: Rocco | R73: Stuart | S73: Alan | U73: Stephenson | V73: Peter | X73: Sullivan | Y73: Michael
A74: Herlien | B74: Bob | D74: Nathan | E74: Hess | G74: hartman | H74: chris | J74: Greenberg | K74: Leonard | M74: Ellen Gore (LfromHell) and Michael Patterson (mickdog) | O74: Schoen | P74: Jelle | R74: Sudkin | S74: David | U74: Stilling | V74: Martin | X74: Tahajian | Y74: Dave
A75: Hess | B75: Nathan | D75: Paul | E75: Hodosh | G75: Hartman | H75: Sam | J75: Groves | K75: Gillian | M75: James Chacon and Aaron Rich (adrich) | O75: Secor | P75: Peter | R75: Tahajian | S75: David | U75: Sudkin | V75: David | X75: Toft | Y75: Robert
A76: Hodosh | B76: Paul | D76: Eric | E76: Holtman | G76: hayden | H76: melissa | J76: Groves | K76: Carrie | M76: Phil Gustafson (phil) and Stephen Landrum | O76: Segal | P76: Pete | R76: Taylor | S76: Don | U76: Tahajian | V76: Dave | X76: Treasure | Y76: Matt
A77: Holtman | B77: Eric | D77: Dave | E77: Horwitz | G77: Haynes | H77: Charles | J77: Gustafson | K77: Phil | M77: Robert Irons (MadisonBob) and John Reeves (JohnR) | O77: Seymour | P77: Bill | R77: Threadgould | S77: Richard | U77: Taylor | V77: Don | X77: Turcotte | Y77: Phil
A78: Horowitz | B78: Jacob | D78: Marc | E78: Howard | G78: Herlien | H78: Robert | J78: Hack | K78: Edmund | M78: James Massar (JP) and Peter Stephenson | O78: Sikorski | P78: Paul | R78: Treasure | S78: Matt | U78: Tedesco | V78: Michael | X78: Williams | Y78: Daniel
A79: Horwitz | B79: Dave | D79: Randy | E79: Hudson | G79: Hess | H79: Nathan | J79: Hack | K79: Maryann | M79: Oliver Juang and Mike Reichert | O79: Silberstein | P79: Josh | R79: Trinidad | S79: Dave | U79: Toft | V79: Robert | X79: Woodbury | Y79: Tim
A80: Howard | B80: Marc | D80: Andy | E80: Hughes | G80: Hill | H80: Edward | J80: Hadley | K80: Joan | M80: Brian Goetz and Marc Kolstad | O80: Silver | P80: Nat | R80: Turcotte | S80: Phil | U80: Treasure | V80: Matt | X80: Zang | Y80: Steve
A81: Huang | B81: Nate | D81: Walter | E81: Hunt | G81: hollan | H81: kristy | J81: Hall | K81: Michael | M81: Don Perry | O81: Smith | P81: Steve | R81: Valimahomed | S81: Salim | U81: Trinidad | V81: David
A82: Hughes | B82: Andy | D82: Michael | E82: Hunter | G82: Holtman | H82: Eric | J82: Hall | K82: Tonda | M82: Dave Roemer (Hitman) | O82: Snow | P82: Tom | R82: Walsh | S82: John | U82: Turcotte | V82: Phil
A83: Hughes | B83: David | D83: Robert | E83: Hwang | G83: Horwitz | H83: David | J83: Harker | K83: Scott | M83: Bob Herlien (Blues) | O83: Stuart | P83: Alan | R83: Watkins | S83: Steve | U83: Usticke | V83: Alec
A84: Hunt | B84: Walter | D84: Corey | E84: Imsdahl | G84: Howard | H84: Marc | J84: Harkness | K84: John | M84: Peter Caldes (Taki) | O84: Sudkin | P84: Dave | R84: Weinstock | S84: Chuck | U84: Valimohomed | V84: Salim
A85: Hunter | B85: Michael | D85: Frank | E85: Irwin | G85: Hughes | H85: Andy | J85: Hartman | K85: Chris | M85: Nathan Hess (Woodstock) | O85: Tahajian | P85: Dave | R85: Woodbury | S85: Tim | U85: Vindigni | V85: Peter
A86: Imsdahl | B86: Corey | D86: Susie | E86: Isaacs | G86: Hummel | H86: Amy | J86: hayden | K86: melissa | M86: Don Rieck (Bingo) | O86: Taylor | P86: Don | U86: Williams | V86: Daniel
A87: Irwin | B87: Frank | D87: Steve | E87: Jacobs | G87: Hummel | H87: Thomas | J87: Hayek | K87: Bruce | M87: John Fleming (panfried) | O87: Tedesco | P87: Mike | U87: Woodbury | V87: Tim
A88: Jacobs | B88: Steve | D88: Jay | E88: Johnson | G88: Hunt | H88: Walter | J88: Haynes | K88: Charles | M88: Russell Fox (Russ) | O88: Tolliver | P88: James
A89: Janowski | B89: Michael | D89: Linda | E89: Johnson | G89: Hunter | H89: Michael | J89: Ann | K89: Debbie | O89: Tollman | P89: Howard
A90: Johnson | B90: Jay | D90: Lee | E90: Jones | G90: Hwang | H90: Robert | J90: Heller | K90: David | O90: Treasure | P90: Matt
A91: Jones | B91: Lee | D91: Ken | E91: Jordan | G91: Imsdahl | H91: Corey | J91: Hellmuth Jr. | K91: Phil | O91: Turner | P91: Bill
A92: Jones | B92: Wendy | D92: Oliver | E92: Juang | G92: Irwin | H92: Frank | J92: Hellmuth | K92: Kathy | O92: Walsh | P92: John
A93: Jordan | B93: Ken | D93: James | E93: Karlinski | G93: Jacobs | H93: Jeri | J93: Herlien | K93: Bob | O93: Watkins | P93: Stephen
A94: Kellers | B94: Connie | D94: Connie | E94: Kellers | G94: Jacobs | H94: Steve | J94: Hess | K94: Nathan | O94: Wattman | P94: George
A95: Kipilman | B95: Lou | D95: Brian | E95: Kimball | G95: Joe | H95: Sandra | J95: Hill | K95: Ed | O95: Wohlgemuth | P95: Julian
A96: Kramer | B96: Bruce | D96: Kevin | E96: Knourek | G96: Johnson | H96: Jay | J96: Holtman | K96: Eric | O96: Woodbury | P96: Tim
A97: Krein | B97: Dennis | D97: Bruce | E97: Kramer | G97: Jones | H97: Lee | J97: Horwitz | K97: Dave | O97: Zagieboylo | P97: Steve
A98: Krieger | B98: Lou | D98: Dennis | E98: Krein | G98: Jordan | H98: Ken | J98: Horwitz | K98: Kristi
A99: Kubey | B99: Ken | D99: Lou | E99: Krieger | G99: Juang | H99: Oliver | J99: Howard | K99: Marc
A100: Kullmann | B100: John | D100: Ken | E100: Kubey | G100: Kellers | H100: Connie | J100: Huberman | K100: David
A101: Lambert | B101: David | D101: Stephen | E101: Landrum | G101: Kittock | H101: James | J101: Hughes | K101: Andy
A102: Landrum | B102: Stephen | D102: Doug | E102: Langdon | G102: Knourek | H102: Kevin | J102: Hummel | K102: Thomas
A103: Langdon | B103: Doug | D103: Andy | E103: Latto | G103: Kornspan | H103: Barry | J103: Hunt | K103: Walter
A104: Latto | B104: Andy | D104: David | E104: Lawful | G104: Kramer | H104: Bruce | J104: Hunter | K104: Michael
A105: Lee | B105: Ming | D105: Quang | E105: Le | G105: Kramer | H105: Shirley | J105: Hwang | K105: Robert
A106: Lewis | B106: Linda | D106: Ming | E106: Lee | G106: Krieger | H106: Lou | J106: Imsdahl | K106: Corey
A107: Lindquist | B107: Leroy | D107: Linda | E107: Lewis | G107: Kubey | H107: Ken | J107: Irwin | K107: Frank
A108: Luckini | B108: Marvin | D108: Joe | E108: Long | G108: Kuhler | H108: Richard | J108: Jacobs | K108: Steve
A109: Luckini | B109: Marvin | D109: K.J. | E109: Long | G109: Kullmann | H109: John | J109: Jacobs | K109: Jeri
A110: Markowitz | B110: Steven | D110: Dennis | E110: Lynch | G110: Landrum | H110: Stephen | J110: Jennings | K110: Jeff
A111: Markus | B111: Shyam | D111: E. Stephen | E111: Mack | G111: Latto | H111: Andy | J111: Jerome | K111: Frank
A112: Marshall | B112: David | D112: Steven | E112: Markowitz | G112: Lawful | H112: David | J112: John | K112: Davis
A113: Martin | B113: Ernst | D113: Shyam | E113: Markus | G113: Lawful | H113: Fred | J113: Jones | K113: Wendy
A114: Massar | B114: James | D114: Ernst-Dieter | E114: Martin | G114: LeClair | H114: Lewis | J114: Juang | K114: Oliver
A115: Matthews | B115: Cliff | D115: JP | E115: Massar | G115: Lee | H115: Ming | J115: Kellers | K115: Connie
A116: Maughan | B116: Martin | D116: Mary | E116: massey | G116: lehrmann | H116: sharla | J116: Kirisits | K116: Matthew
A117: Maurer | B117: Michael | D117: Robert | E117: Mastors | G117: Lewis | H117: Darrell | J117: Kirwan | K117: Patrick
A118: McClenny | B118: John | D118: Clifford | E118: Matthews | G118: Locklear | H118: Heather | J118: Kannegeiser | K118: Bill
A119: McGarvey | B119: Tim | D119: Martin | E119: Maughan | G119: Louie | H119: Shelley | J119: Knourek | K119: Kevin
A120: McMullin | B120: Paul | D120: Michael | E120: Maurer | G120: Mack | H120: E. Stephen | J120: Kornspan | K120: Barry
A121: McNerney | B121: Tim | D121: John | E121: McClenny | G121: Manning | H121: Melanie | J121: Kramer | K121: Bruce
A122: McVay | B122: Dave | D122: Tim | E122: McGarvey | G122: Markowitz | H122: Steven | J122: Kramer | K122: Shirley
A123: Morley | B123: John | D123: Paul | E123: McMullin | G123: Markus | H123: Shyam | J123: Krein | K123: Dennis
A124: Morrison | B124: Jeff | D124: Tim | E124: McNerney | G124: martin | H124: Ernst-Dieter | J124: Krieger | K124: Lou
A125: Murphy | B125: John | D125: Dave | E125: McVay | G125: Massar | H125: James | J125: Kubey | K125: Ken
A126: Nagy | B126: Andras | D126: Rick | E126: Mombourquette | G126: Massey | H126: Mary | J126: Joe | K126: Sandra
A127: Nagy | B127: Don | D127: John | E127: Morley | G127: Matros | H127: Matt | J127: Kuhler | K127: Richard
A128: Olson | B128: Clark | D128: Jeffrey | E128: Morrison | G128: Matthews | H128: Clifford | J128: Kullmann | K128: John
A129: Osborne | B129: Mike | D129: Lee | E129: Munzer | G129: Maughan | H129: Martin | J129: Scheinberg | K129: Kim
A130: Overton | B130: Tom | D130: Spiney | E130: Norman | G130: Maurer | H130: Michael | J130: Kullmann | K130: Max
A131: Paley | B131: Josh | D131: Dan | E131: Nussbaum | G131: Mazzola | H131: Anne | J131: Kullmann | K131: Sam
A132: Peters | B132: Larry | D132: Louis | E132: Ogus | G132: McClenny | H132: John | J132: Landrum | K132: Stephen
A133: Petersen | B133: Gerald | D133: Clark | E133: Olson | G133: McCracken | H133: Mike | J133: Langdon | K133: Doug
A134: Pfeifer | B134: Mark | D134: Mike | E134: Osborne | G134: McGarvey | H134: Tim | J134: Latto | K134: Andy
A135: Phillips | B135: Paul | D135: Tom | E135: Overton | G135: McGee | H135: Jack | J135: Lawful | K135: David
A136: Piazza | B136: Anthony | D136: Samuel | E136: Paik | G136: mcguiness | H136: sean | J136: Lawful | K136: Fred
A137: Pierce | B137: Jan | D137: Donald | E137: Perry | G137: McMullin | H137: Beverly | J137: Lee | K137: Ming
A138: Pierce | B138: Steve | D138: William | E138: Perry | G138: McMullin | H138: Paul | J138: Louie | K138: Shelley
A139: Piercy | B139: Jim | D139: Paul | E139: Person | G139: McVay | H139: Dave | J139: LOZANO | K139: HECTOR
A140: Pivnik | B140: Eric | D140: Gerald | E140: Petersen | G140: Miller | H140: Jeremy | J140: Lynch | K140: Dennis
A141: Poirier | B141: Jennifer | D141: Paul | E141: Phillips | G141: Milligan | H141: Patrick | J141: Lynch | K141: June
A142: Poppel | B142: Russ | D142: Jan | E142: Pierce | G142: Mombourquette | H142: Rick | J142: Mack | K142: E. Stephen
A143: Prigge | B143: Kevin | D143: Steve | E143: Pierce | G143: morrison | H143: jeff | J143: Markowitz | K143: Steven
A144: Propp | B144: Rick | D144: Ed | E144: Pizio | G144: Murphy | H144: John | J144: Markus | K144: Shyam
A145: Rafn | B145: Mark | D145: Ross | E145: Poppel | G145: Nagy | H145: Don | J145: Martin | K145: E.Dieter
A146: Raymer | B146: Greg | D146: Kevin | E146: Prigge | G146: Natkins | H146: Charles | J146: Massar | K146: James
A147: Reed | B147: John | D147: Mark | E147: Rafn | G147: Newcomb | H147: Marilynn | J147: Massey | K147: Mary
A148: Reeves | B148: John | D148: Ken | E148: Rankin | G148: Nissman | H148: Steve | J148: Mastors | K148: Bob
A149: Resnick | B149: Stuart | D149: John | E149: Reed | G149: ogus | H149: louis | J149: Matros | K149: Matt
A150: Rice | B150: George | D150: John | E150: Reeves | G150: Okamoto | H150: Jeff | J150: Matthews | K150: Clifford
A151: Rieck | B151: Don | D151: Stuart | E151: Resnick | G151: Olson | H151: Clark | J151: Maughan | K151: Martin
A152: Rosenblum | B152: Russell | D152: Howard | E152: Rhodes | G152: Osborne | H152: Mike | J152: Hannett | K152: Doug
A153: Russell | B153: Steve | D153: Dave | E153: Rice | G153: Overton | H153: Nancy | J153: Maurer | K153: Michael
A154: Sager | B154: Mike | D154: Don | E154: Rieck | G154: Overton | H154: Tom | J154: McBride | K154: Michael
A155: Sander | B155: Warren | D155: Russell | E155: Rosenblum | G155: Pelt | H155: Adrianne | J155: McGuiness | K155: Sean
A156: Santella | B156: Art | D156: bret | E156: roth | G156: Perry | H156: Don | J156: McManus | K156: Mike
A157: Saustrup | B157: Steffen | D157: Mike | E157: Sager | G157: Person | H157: Paul | J157: McMullin | K157: Paul
A158: Scharf | B158: Dave | D158: Warren | E158: Sander | G158: Petersen | H158: Gerald | J158: McMullin | K158: Beverly
A159: Scheinberg | B159: Kim | D159: Peter | E159: Secor | G159: Phillips | H159: Paul | J159: McVay | K159: Dave
A160: Secor | B160: Peter | D160: Peter | E160: Segal | G160: Pierce | H160: Jan | J160: Miller | K160: Jeremy
A161: Segal | B161: Peter | D161: Jeffrey | E161: Siegal | G161: Pierce | H161: Steve | J161: Milligan | K161: Patrick
A162: Sembay | B162: Steven | D162: Tom | E162: Sims | G162: Pizio | H162: Ed | J162: Mombourquette | K162: Rick
A163: Siegal | B163: Jeffrey | D163: Brad | E163: Smart | G163: Poppel | H163: Ross | J163: morrison | K163: jeffrey
A164: Sims | B164: Tom | D164: Steve | E164: Smith | G164: Rafn | H164: Mark | J164: Murphy | K164: John
A165: Smith | B165: Stephen | D165: Paul | E165: Stine | G165: Reed | H165: Carrie | J165: Murphy | K165: William
A166: Stone | B166: Larry | D166: Lawrence | E166: Stone | G166: Reed | H166: John | J166: Murphy | K166: Diane
A167: Straghalis | B167: Chris | D167: Chris | E167: Straghalis | G167: Reeves | H167: Jeannie | J167: Nagy | K167: Don
A168: Strauss | B168: Rich | D168: Rich | E168: Strauss | G168: Reeves | H168: John | J168: Natkins | K168: Charles
A169: Sue | B169: Jeffrey | D169: Spencer | E169: Sun | G169: Resnick | H169: Stuart | J169: Nissman | K169: Steve
A170: Sun | B170: Spencer | D170: David | E170: Tahajian | G170: Rieck | H170: Donald | J170: Ogus | K170: Louis
A171: Swiencicki | B171: Paul | D171: Barry | E171: Tanenbaum | G171: Roemer | H171: Dave | J171: Okamoto | K171: Jeff
A172: Tahajian | B172: David | D172: Betty | E172: Tanenbaum | G172: Roman | H172: Max | J172: Quach | K172: Jennifer
A173: Talcott | B173: Sam | D173: Kenneth | E173: Tarvin | G173: rosenblum | H173: russell | J173: Olson | K173: Clark
A174: Tall | B174: Dave | D174: Don | E174: Tofte | G174: roth | H174: bret | J174: Osborne | K174: Mike
A175: Tanenbaum | B175: Barry | D175: David | E175: Trinidad | G175: Rulla | H175: Walter | J175: Overton | K175: Tom
A176: Tanenbaum | B176: Betty | D176: Raymond | E176: Tripamer | G176: S. | H176: David | J176: Overton | K176: Nancy
A177: Tatay | B177: Rudy | D177: Mark | E177: Trombley | G177: Sager | H177: Mike | J177: Paley | K177: Joshua
A178: Thompson | B178: Scott | D178: Phil | E178: Turcotte | G178: sander | H178: warren | J178: Patterson | K178: Michael
A179: Trinidad | B179: David | D179: Salim | E179: Valimahomed | G179: Schwartz | H179: David | J179: Perry | K179: Donald
A180: Tripamer | B180: Ray | D180: Steve | E180: Walline | G180: Secor | H180: Peter | J180: Person | K180: Paul
A181: Trombley | B181: Mark | D181: Steve | E181: Watanabe | G181: Settle | H181: Lisa | J181: Petersen | K181: Gerald
A182: Turner | B182: Bill | D182: Dean | E182: Waters | G182: Siegal | H182: Jeffrey | J182: Phillips | K182: Paul
A183: Veneroso | B183: Martin | D183: George | E183: Wattman | G183: Sims | H183: Susan | J183: Pierce | K183: Janace
A184: Wallenstein | B184: Andy | D184: Al | E184: Weber | G184: Sims | H184: Tom | J184: Pierce | K184: Steve
A185: Watanabe | B185: Steve | D185: James | E185: Weber | G185: Smith | H185: Stephen | J185: Pizio | K185: Ed
A186: Waters | B186: Dean | D186: Charles | E186: Weinstock | G186: Stephenson | H186: Peter | J186: Pizzarello | K186: Edward
A187: Wattman | B187: George | D187: Paul | E187: White | G187: Stine | H187: Paul | J187: Poppel | K187: Ross
A188: Weber | B188: Al | D188: Brian | E188: Wohletz | G188: stine | H188: timothy | J188: Potter | K188: D.
A189: Weideman | B189: Tom | D189: Greg | E189: Wohletz | G189: Stone | H189: Lawrence | J189: Prock | K189: Andrew
A190: Weinstock | B190: Chuck | D190: Tim | E190: Woodbury | G190: Straghalis | H190: Chris | J190: Rafn | K190: Mark
A191: Wiesenberg | B191: Michael | D191: Jeff | E191: Woods | G191: Strauss | H191: Rich | J191: Reed | K191: John
A192: Wohletz | B192: Brian | D192: Sharon | E192: Zimmerman | G192: Strohn | H192: Jo Ann | J192: Reeves | K192: John
A193: Wohletz | B193: Greg | D193: Michael | E193: Zimmers | G193: Sun | H193: Spencer | J193: Rieck | K193: Don
A194: Woods | B194: Jeffrey | D194: John | E194: Zwiers | G194: Tahajian | H194: David | J194: Ritchie | K194: Burton
A195: Zimmerman | B195: Sharon | G195: Tanenbaum | H195: Barry | J195: mcevoy | K195: tom
A196: Zimmers | B196: Michael | G196: Tanenbaum | H196: Betty | J196: tucker | K196: teri
G197: Tarvin | H197: Kenneth | J197: bowman | K197: renee
G198: Tatay | H198: Rudolph | J198: Roemer | K198: Dave
G199: Teresi | H199: Connie | J199: Roman | K199: Max
G200: Tiger | H200: Alan | J200: Rosenblum | K200: Russell
... 48 more rows

Sheet Names
A1: Last | B1: First | C1: Name
A2: Abell | B2: Jason | C2: Jason Abell
A3: Abraham | B3: Tom | C3: Tom Abraham
A4: Abraham | B4: Susan | C4: Susan Abraham
A5: Adam | B5: Allnight | C5: Allnight Adam
A6: Adams | B6: Stefan | C6: Stefan Adams
A7: Adams | B7: Ashley | C7: Ashley Adams
A8: Adams | B8: Karen | C8: Karen Adams
A9: Adams | B9: Don | C9: Don Adams
A10: Adams | B10: Donald | C10: Donald Adams
A11: Aguirre | B11: John | C11: John Aguirre
A12: Alaura | B12: Chris | C12: Chris Alaura
A13: Albis | B13: David | C13: David Albis
A14: Allen | B14: Oliver | C14: Oliver Allen
A15: Alonso | B15: Bob | C15: Bob Alonso
A16: Altner | B16: Bruce | C16: Bruce Altner
A17: Altner | B17: Robert | C17: Robert Altner
A18: Amasaki | B18: Jeff | C18: Jeff Amasaki
A19: Anderson | B19: Jim | C19: Jim Anderson
A20: Anderson | B20: John | C20: John Anderson
A21: Anderson | B21: Carol | C21: Carol Anderson
A22: Anderson | B22: Jared | C22: Jared Anderson
A23: Anderson-Goldman | B23: Josh | C23: Josh Anderson-Goldman
A24: Andrews | B24: Kyle | C24: Kyle Andrews
A25: Angello | B25: Richard | C25: Richard Angello
A26: Angotti | B26: James | C26: James Angotti
A27: Ankenman | B27: Jerrod | C27: Jerrod Ankenman
A28: Ankenman | B28: Michelle | C28: Michelle Ankenman
A29: Aprea | B29: Thomas | C29: Thomas Aprea
A30: Armistead | B30: Tedford | C30: Tedford Armistead
A31: Aronson | B31: Caryl | C31: Caryl Aronson
A32: Aronson | B32: David | C32: David Aronson
A33: Artigues | B33: Chuck | C33: Chuck Artigues
A34: Augustine | B34: Lennie | C34: Lennie Augustine
A35: Averill | B35: John | C35: John Averill
A36: Axel | B36: Dennis | C36: Dennis Axel
A37: Bachrach | B37: Adam | C37: Adam Bachrach
A38: Baker | B38: Ed | C38: Ed Baker
A39: Baldwin | B39: Harry | C39: Harry Baldwin
A40: Ballario | B40: Ralph | C40: Ralph Ballario
A41: Balter | B41: Jason | C41: Jason Balter
A42: Bankston | B42: Jennifer | C42: Jennifer Bankston
A43: Barnes | B43: Billy | C43: Billy Barnes
A44: Barrett | B44: Ed | C44: Ed Barrett
A45: Barrett | B45: Rich | C45: Rich Barrett
A46: Bartalone | B46: Andy | C46: Andy Bartalone
A47: Bartnyk | B47: Steve | C47: Steve Bartnyk
A48: Barylick | B48: Anne | C48: Anne Barylick
A49: Barzamati | B49: Bobo | C49: Bobo Barzamati
A50: Baxter | B50: Jeffrey | C50: Jeffrey Baxter
A51: Baxter | B51: Katie | C51: Katie Baxter
A52: Bayne | B52: Chuck | C52: Chuck Bayne
A53: Beadles | B53: Patti | C53: Patti Beadles
A54: Beardsley | B54: Grant | C54: Grant Beardsley
A55: Beauregard | B55: Ryan | C55: Ryan Beauregard
A56: Beck | B56: Kent | C56: Kent Beck
A57: Becker | B57: Rick | C57: Rick Becker
A58: Becker | B58: Tracy | C58: Tracy Becker
A59: Becker | B59: Mike | C59: Mike Becker
A60: Behrens | B60: Jeff | C60: Jeff Behrens
A61: Benditt | B61: Sandra | C61: Sandra Benditt
A62: Bennett | B62: Steven | C62: Steven Bennett
A63: Bento | B63: Jeff | C63: Jeff Bento
A64: Benton | B64: Stephen | C64: Stephen Benton
A65: Berentsen | B65: Guy | C65: Guy Berentsen
A66: Bergman | B66: Robert | C66: Robert Bergman
A67: Bergmann | B67: Todd | C67: Todd Bergmann
A68: Berman | B68: Joe | C68: Joe Berman
A69: Bernstein | B69: Alan | C69: Alan Bernstein
A70: Bessoir | B70: Tom | C70: Tom Bessoir
A71: Bevan | B71: Rick | C71: Rick Bevan
A72: Bierman | B72: Larry | C72: Larry Bierman
A73: Birchem | B73: Sam | C73: Sam Birchem
A74: Bjordammen | B74: Steve | C74: Steve Bjordammen
A75: Blackstock | B75: Stephen | C75: Stephen Blackstock
A76: Blau | B76: Seth | C76: Seth Blau
A77: Bloch | B77: Andy | C77: Andy Bloch
A78: Bonaguro | B78: John | C78: John Bonaguro
A79: Borzomati | B79: Robert | C79: Robert Borzomati
A80: Bosserman | B80: Tim | C80: Tim Bosserman
A81: Boston | B81: Sarah | C81: Sarah Boston
A82: Botwin | B82: Michael | C82: Michael Botwin
A83: Bounds | B83: Debra | C83: Debra Bounds
A84: Bowen | B84: Barbara | C84: Barbara Bowen
A85: Bowen | B85: Frank | C85: Frank Bowen
A86: Boyett | B86: Drew | C86: Drew Boyett
A87: Brabec | B87: Frank | C87: Frank Brabec
A88: Brabec | B88: Sheri | C88: Sheri Brabec
A89: Bragg | B89: Dennis | C89: Dennis Bragg
A90: Braud | B90: Stephen | C90: Stephen Braud
A91: Bremer | B91: Richard | C91: Richard Bremer
A92: Brennan | B92: Michael | C92: Michael Brennan
A93: Brennan | B93: Michael | C93: Michael Brennan
A94: Brestak | B94: Roger | C94: Roger Brestak
A95: Bright | B95: Richard | C95: Richard Bright
A96: Brod | B96: Deron | C96: Deron Brod
A97: Brodie | B97: Richard | C97: Richard Brodie
A98: Brown | B98: Gloria | C98: Gloria Brown
A99: Brown | B99: Winchester | C99: Winchester Brown
A100: Bruegger | B100: Frank | C100: Frank Bruegger
A101: Bryson | B101: Todd | C101: Todd Bryson
A102: Buchholz | B102: Adam | C102: Adam Buchholz
A103: Bullard | B103: Jim | C103: Jim Bullard
A104: Buono | B104: Mike | C104: Mike Buono
A105: Burns | B105: Jazbo | C105: Jazbo Burns
A106: Burrington | B106: Scott | C106: Scott Burrington
A107: Busch | B107: Marion | C107: Marion Busch
A108: Byron | B108: Scott | C108: Scott Byron
A109: Caldes | B109: Peter | C109: Peter Caldes
A110: Caldwell | B110: John | C110: John Caldwell
A111: Calkins | B111: Jeff | C111: Jeff Calkins
A112: Calkins | B112: Lauri | C112: Lauri Calkins
A113: Campbell | B113: Robert | C113: Robert Campbell
A114: Campbell | B114: John | C114: John Campbell
A115: Campion | B115: Bill | C115: Bill Campion
A116: Canalichio | B116: Scott | C116: Scott Canalichio
A117: Canning | B117: Peter | C117: Peter Canning
A118: Capps | B118: Jesse | C118: Jesse Capps
A119: Carbonara | B119: Stephen | C119: Stephen Carbonara
A120: Carlson | B120: Claude | C120: Claude Carlson
A121: Carstens | B121: Chris | C121: Chris Carstens
A122: Castagna | B122: Frank | C122: Frank Castagna
A123: Catlett | B123: Robert | C123: Robert Catlett
A124: Catlett | B124: Joel | C124: Joel Catlett
A125: Cegielski | B125: Michael | C125: Michael Cegielski
A126: Centeno | B126: Jay | C126: Jay Centeno
A127: Chakoian | B127: Paul | C127: Paul Chakoian
A128: Chamberlain | B128: Fern | C128: Fern Chamberlain
A129: Chan | B129: Terrence | C129: Terrence Chan
A130: Chan | B130: David | C130: David Chan
A131: Chang | B131: Kathy | C131: Kathy Chang
A132: Chapman | B132: Andrew | C132: Andrew Chapman
A133: Charles | B133: Rick | C133: Rick Charles
A134: Chase | B134: Scott | C134: Scott Chase
A135: Chen | B135: Bill | C135: Bill Chen
A136: Chen | B136: Rodney | C136: Rodney Chen
A137: Cheng | B137: Dylan | C137: Dylan Cheng
A138: Chesser | B138: John | C138: John Chesser
A139: Chevrie | B139: Dan | C139: Dan Chevrie
A140: Chosky | B140: Marvin | C140: Marvin Chosky
A141: Chow | B141: Michael | C141: Michael Chow
A142: Christensen | B142: Monte | C142: Monte Christensen
A143: Christenson | B143: Nick | C143: Nick Christenson
A144: Chung | B144: Sam | C144: Sam Chung
A145: Ciotti | B145: Joyce | C145: Joyce Ciotti
A146: Clayton | B146: Steve | C146: Steve Clayton
A147: Coates | B147: David | C147: David Coates
A148: Coates | B148: DJ | C148: DJ Coates
A149: Cohen | B149: Jonathan | C149: Jonathan Cohen
A150: Cohen | B150: Stephen | C150: Stephen Cohen
A151: Coles | B151: Eugene | C151: Eugene Coles
A152: Colfer | B152: Dominic | C152: Dominic Colfer
A153: Collack | B153: Randy | C153: Randy Collack
A154: Collins | B154: Doug | C154: Doug Collins
A155: Condit | B155: Don | C155: Don Condit
A156: Conlon | B156: Kevin | C156: Kevin Conlon
A157: Connelly | B157: James | C157: James Connelly
A158: Conner | B158: C | C158: C Conner
A159: Connolly | B159: Brian | C159: Brian Connolly
A160: Connors | B160: Mike | C160: Mike Connors
A161: Conrad | B161: Stacy | C161: Stacy Conrad
A162: Constandino | B162: William | C162: William Constandino
A163: Cooke | B163: Roy | C163: Roy Cooke
A164: Corral | B164: Tony | C164: Tony Corral
A165: Cosgrove | B165: Pat | C165: Pat Cosgrove
A166: Crane | B166: Rod | C166: Rod Crane
A167: Crocker | B167: Lee | C167: Lee Crocker
A168: Croson | B168: David | C168: David Croson
A169: Cunningham | B169: Cory | C169: Cory Cunningham
A170: Curtis | B170: Ryan | C170: Ryan Curtis
A171: Cusson | B171: Leo | C171: Leo Cusson
A172: Daiell | B172: Noah | C172: Noah Daiell
A173: Dalla | B173: Nolan | C173: Nolan Dalla
A174: D'Amaro | B174: Jerry | C174: Jerry D'Amaro
A175: Daniel | B175: Steve | C175: Steve Daniel
A176: D'Anna | B176: Tony | C176: Tony D'Anna
A177: David | B177: Jeanne | C177: Jeanne David
A178: Davidson | B178: Martin | C178: Martin Davidson
A179: Davis | B179: John | C179: John Davis
A180: Davis | B180: Mike | C180: Mike Davis
A181: Davis | B181: Jeff | C181: Jeff Davis
A182: Day | B182: Steve | C182: Steve Day
A183: Debnam | B183: Mike | C183: Mike Debnam
A184: DeBoo | B184: Joshua | C184: Joshua DeBoo
A185: Deitch | B185: Jeff | C185: Jeff Deitch
A186: Delaino | B186: Tom | C186: Tom Delaino
A187: Derkatch | B187: Lon | C187: Lon Derkatch
A188: DeRose | B188: John | C188: John DeRose
A189: Desmond-Rowan | B189: Maggie | C189: Maggie Desmond-Rowan
A190: Devenport | B190: Jordan | C190: Jordan Devenport
A191: DeVitto | B191: Gabe | C191: Gabe DeVitto
A192: Diamondhead | B192: John | C192: John Diamondhead
A193: Diaz | B193: Russell | C193: Russell Diaz
A194: DiDonato | B194: Ray | C194: Ray DiDonato
A195: DiFante | B195: Derek | C195: Derek DiFante
A196: Dilworth | B196: BG | C196: BG Dilworth
A197: Donovan | B197: Regis | C197: Regis Donovan
A198: Drangula | B198: Dennis | C198: Dennis Drangula
A199: Dunne | B199: Jody | C199: Jody Dunne
A200: Edivan | B200: Peter | C200: Peter Edivan
... 647 more rows

Sheet Data
A1: N | B1: Year | C1: Event | D1: Game | E1: Generic Game | F1: Money | G1: Place | H1: Last | I1: First | J1: Points | K1: Name
A2: 1 | B2: 2003 | C2: ATLARGE | D2: 7 Stud | E2: 7 Stud | G2: 1 | H2: Ankenman | I2: Jerrod | J2: 1716.003344 | K2: =I2&" "&H2 -> Jerrod Ankenman | M2: Count of Place | Q2: Count of Place | U2: Count of Place
A3: =A2+1 -> 2 | B3: 2003 | C3: ATLARGE | D3: 7 Stud | E3: 7 Stud | G3: 2 | H3: McMullin | I3: Paul | J3: 1414.973348 | K3: Paul McMullin | M3: Last | N3: First | O3: Total | Q3: First | R3: Last | S3: Total | U3: Name | V3: First | W3: Last | X3: Total
A4: =A3+1 -> 3 | B4: 2003 | C4: ATLARGE | D4: 7 Stud | E4: 7 Stud | G4: 3 | H4: Schwartz | I4: Mordecai | J4: 1238.882089 | K4: Mordecai Schwartz | M4: Sun | N4: Spenser | O4: 3 | Q4: Jan | R4: Pierce | S4: 4 | U4: Aaron Lion | V4: Aaron | W4: Lion | X4: 6
A5: 4 | B5: 2003 | C5: ATLARGE | D5: 7 Stud | E5: 7 Stud | G5: 4 | H5: Miller | I5: Mike | J5: 1113.943352 | K5: Mike Miller | M5: Abell | N5: Jason | O5: 1 | Q5: Aaron | R5: Lion | S5: 6 | U5: Aaron McCall | V5: Aaron | W5: McCall | X5: 1
A6: 5 | B6: 2003 | C6: ATLARGE | D6: 7 Stud | E6: 7 Stud | G6: 5 | H6: Daniel | I6: Steve | J6: 1017.033339 | K6: Steve Daniel | M6: Abraham | N6: Susan | O6: 1 | R6: McCall | S6: 1 | U6: Aaron Rich | V6: Aaron | W6: Rich | X6: 1
A7: 6 | B7: 2003 | C7: ATLARGE | D7: 7 Stud | E7: 7 Stud | G7: 6 | H7: Sander | I7: Warren | J7: 937.8520933 | K7: Warren Sander | N7: Tom | O7: 4 | R7: Rich | S7: 1 | U7: Abe Springfield | V7: Abe | W7: Springfield | X7: 1
A8: 7 | B8: 2003 | C8: ATLARGE | D8: 7 Stud | E8: 7 Stud | G8: 7 | H8: Nickerson | I8: Glenn | J8: 870.9053036 | K8: Glenn Nickerson | M8: Adam | N8: Allnight | O8: 1 | Q8: Abe | R8: Springfield | S8: 1 | U8: Adam Bachrach | V8: Adam | W8: Bachrach | X8: 15
A9: 8 | B9: 2003 | C9: ATLARGE | D9: 7 Stud | E9: 7 Stud | G9: 8 | H9: Raimondi | I9: Chris | J9: 812.9133566 | K9: Chris Raimondi | M9: Adams | N9: Ashley | O9: 8 | Q9: Adam | R9: Bachrach | S9: 15 | U9: Adam Buchholz | V9: Adam | W9: Buchholz | X9: 1
A10: 9 | B10: 2003 | C10: ATLARGE | D10: 7 Stud | E10: 7 Stud | G10: 9 | H10: Kramer | I10: Mitch | J10: 761.7608342 | K10: Mitch Kramer | N10: Don | O10: 4 | R10: Buchholz | S10: 1 | U10: Adam Haman | V10: Adam | W10: Haman | X10: 1
A11: 10 | B11: 2003 | C11: ATLARGE | D11: 7 Stud | E11: 7 Stud | G11: 10 | H11: Fox | I11: Russell | J11: 716.0033436 | K11: Russell Fox | N11: Donald | O11: 1 | R11: Haman | S11: 1 | U11: Adam Klatzkin | V11: Adam | W11: Klatzkin | X11: 1
A12: 11 | B12: 2003 | C12: ATLARGE | D12: 7 Stud | E12: 7 Stud | G12: 11 | H12: Poppel | I12: Ross | J12: 674.6106585 | K12: Ross Poppel | N12: Karen | O12: 6 | R12: Klatzkin | S12: 1 | U12: Adam Shapiro | V12: Adam | W12: Shapiro | X12: 1
A13: 12 | B13: 2003 | C13: ATLARGE | D13: 7 Stud | E13: 7 Stud | G13: 12 | H13: Kelley | I13: Thomas | J13: 636.8220976 | K13: Thomas Kelley | N13: Stefan | O13: 1 | R13: Shapiro | S13: 1 | U13: AJ Evangelista | V13: AJ | W13: Evangelista | X13: 7
A14: 13 | B14: 2003 | C14: ATLARGE | D14: 7 Stud | E14: 7 Stud | G14: 13 | H14: Chen | I14: Bill | J14: 602.0599913 | K14: Bill Chen | M14: Aguirre | N14: John | O14: 2 | Q14: AJ | R14: Evangelista | S14: 7 | U14: Al Weber | V14: Al | W14: Weber | X14: 4
A15: 14 | B15: 2003 | C15: ATLARGE | D15: 7 Stud | E15: 7 Stud | G15: 14 | H15: Fruchter | I15: David | J15: 569.875308 | K15: David Fruchter | M15: Alaura | N15: Chris | O15: 5 | Q15: Al | R15: Weber | S15: 4 | U15: Alan Bernstein | V15: Alan | W15: Bernstein | X15: 2
A16: 15 | B16: 2003 | C16: ATLARGE | D16: 7 Stud | E16: 7 Stud | G16: 15 | H16: Burns | I16: Jazbo | J16: 539.9120846 | K16: Jazbo Burns | M16: Albis | N16: David | O16: 2 | Q16: Alan | R16: Bernstein | S16: 2 | U16: Alan Horn | V16: Alan | W16: Horn | X16: 1
A17: 16 | B17: 2003 | C17: ATLARGE | D17: 7 Stud | E17: 7 Stud | G17: 16 | H17: Becker | I17: Rick | J17: 511.883361 | K17: Rick Becker | M17: Alonso | N17: Bob | O17: 1 | R17: Horn | S17: 1 | U17: Alan Jaffray | V17: Alan | W17: Jaffray | X17: 2
A18: 17 | B18: 2003 | C18: ATLARGE | D18: 7 Stud | E18: 7 Stud | G18: 17 | H18: Jacobs | I18: Robert A. | J18: 485.5544223 | K18: Robert A. Jacobs | M18: Altner | N18: Bruce | O18: 2 | R18: Jaffray | S18: 2 | U18: Alan Stuart | V18: Alan | W18: Stuart | X18: 20
A19: 18 | B19: 2003 | C19: ATLARGE | D19: 7 Stud | E19: 7 Stud | G19: 18 | H19: Milligan | I19: Patrick | J19: 460.7308385 | K19: Patrick Milligan | N19: Robert | O19: 2 | R19: Stuart | S19: 20 | U19: Alan Tiger | V19: Alan | W19: Tiger | X19: 4
A20: 19 | B20: 2003 | C20: ATLARGE | D20: 7 Stud | E20: 7 Stud | G20: 19 | H20: Chan | I20: Terrence | J20: 437.2497427 | K20: Terrence Chan | M20: Anderson | N20: Carol | O20: 3 | R20: Tiger | S20: 4 | U20: Alan Veach | V20: Alan | W20: Veach | X20: 3
A21: 20 | B21: 2003 | C21: ATLARGE | D21: 7 Stud | E21: 7 Stud | G21: 20 | H21: Hadley | I21: Joan | J21: 414.973348 | K21: Joan Hadley | N21: Jared | O21: 10 | R21: Veach | S21: 3 | U21: Alec Usticke | V21: Alec | W21: Usticke | X21: 1
A22: 21 | B22: 2003 | C22: ATLARGE | D22: 7 Stud | E22: 7 Stud | G22: 21 | H22: Santella | I22: Art | J22: 393.7840489 | K22: Art Santella | N22: Jim | O22: 10 | Q22: Alec | R22: Usticke | S22: 1 | U22: Alex Lahoski | V22: Alex | W22: Lahoski | X22: 4
A23: 22 | B23: 2003 | C23: ATLARGE | D23: 7 Stud | E23: 7 Stud | G23: 22 | H23: Klein | I23: Michael | J23: 373.5806628 | K23: Michael Klein | N23: John | O23: 1 | Q23: Alex | R23: Lahoski | S23: 4 | U23: Alex Ziselman | V23: Alex | W23: Ziselman | X23: 10
A24: 23 | B24: 2003 | C24: ATLARGE | D24: 7 Stud | E24: 7 Stud | G24: 23 | H24: Byron | I24: Scott | J24: 354.2755076 | K24: Scott Byron | M24: Anderson-Goldman | N24: Josh | O24: 1 | R24: Ziselman | S24: 10 | U24: Alexander Sam | V24: Alexander | W24: Sam | X24: 2
A25: 24 | B25: 2003 | C25: ATLARGE | D25: 7 Stud | E25: 7 Stud | G25: 24 | H25: Hwang | I25: Robert | J25: 335.7921019 | K25: Robert Hwang | M25: Angello | N25: Richard | O25: 1 | Q25: Alexander | R25: Sam | S25: 2 | U25: Allen Stern | V25: Allen | W25: Stern | X25: 1
A26: 25 | B26: 2003 | C26: ATLARGE | D26: 7 Stud | E26: 7 Stud | G26: 25 | H26: Tiger | I26: Alan | J26: 318.063335 | K26: Alan Tiger | M26: Angotti | N26: James | O26: 2 | Q26: Allen | R26: Stern | S26: 1 | U26: Allnight Adam | V26: Allnight | W26: Adam | X26: 1
A27: 26 | B27: 2003 | C27: ATLARGE | D27: 7 Stud | E27: 7 Stud | G27: 26 | H27: Bonaguro | I27: John | J27: 301.0299957 | K27: John Bonaguro | M27: Ankenman | N27: Jerrod | O27: 17 | Q27: Allnight | R27: Adam | S27: 1 | U27: Alpo Kallio | V27: Alpo | W27: Kallio | X27: 3
A28: 27 | B28: 2003 | C28: ATLARGE | D28: 7 Stud | E28: 7 Stud | G28: 27 | H28: Calkins | I28: Jeff | J28: 284.6395795 | K28: Jeff Calkins | N28: Michelle | O28: 13 | Q28: Alpo | R28: Kallio | S28: 3 | U28: Alvin West | V28: Alvin | W28: West | X28: 2
A29: 28 | B29: 2003 | C29: ATLARGE | D29: 7 Stud | E29: 7 Stud | G29: 28 | H29: Maurer | I29: Kevin | J29: 268.8453123 | K29: Kevin Maurer | M29: Aprea | N29: Thomas | O29: 4 | Q29: Alvin | R29: West | S29: 2 | U29: Amanda Richards | V29: Amanda | W29: Richards | X29: 1
A30: 29 | B30: 2003 | C30: ATLARGE | D30: 7 Stud | E30: 7 Stud | G30: 29 | H30: Segal | I30: Pete | J30: 253.6053457 | K30: Pete Segal | M30: Armistead | N30: Tedford | O30: 12 | Q30: Amanda | R30: Richards | S30: 1 | U30: Andreas Wolfram | V30: Andreas | W30: Wolfram | X30: 8
A31: 30 | B31: 2003 | C31: ATLARGE | D31: 7 Stud | E31: 7 Stud | G31: 30 | H31: Kramer | I31: Bruce | J31: 238.8820889 | K31: Bruce Kramer | M31: Aronson | N31: Caryl | O31: 7 | Q31: Andreas | R31: Wolfram | S31: 8 | U31: Andrew Chapman | V31: Andrew | W31: Chapman | X31: 5
A32: 31 | B32: 2003 | C32: ATLARGE | D32: 7 Stud | E32: 7 Stud | G32: 31 | H32: Schmidt | I32: Mike | J32: 224.6416498 | K32: Mike Schmidt | N32: David | O32: 11 | Q32: Andrew | R32: Chapman | S32: 5 | U32: Andrew Kuttig | V32: Andrew | W32: Kuttig | X32: 1
A33: 32 | B33: 2003 | C33: ATLARGE | D33: 7 Stud | E33: 7 Stud | G33: 32 | H33: Treasure | I33: Matt | J33: 210.8533653 | K33: Matt Treasure | M33: Artigues | N33: Chuck | O33: 4 | R33: Kuttig | S33: 1 | U33: Andrew Prock | V33: Andrew | W33: Prock | X33: 14
A34: 33 | B34: 2003 | C34: ATLARGE | D34: 7 Stud | E34: 7 Stud | G34: 33 | H34: Becker | I34: Tracy | J34: 197.4894038 | K34: Tracy Becker | M34: Averill | N34: John | O34: 3 | R34: Prock | S34: 14 | U34: Andrew Richman | V34: Andrew | W34: Richman | X34: 4
A35: 34 | B35: 2003 | C35: ATLARGE | D35: 7 Stud | E35: 7 Stud | G35: 34 | H35: Landrum | I35: Sabyl | J35: 184.5244266 | K35: Sabyl Landrum | M35: Axel | N35: Dennis | O35: 1 | R35: Richman | S35: 4 | U35: Andy Bartalone | V35: Andy | W35: Bartalone | X35: 6
A36: 35 | B36: 2003 | C36: ATLARGE | D36: 7 Stud | E36: 7 Stud | G36: 35 | H36: Kornspan | I36: Barry | J36: 171.9352993 | K36: Barry Kornspan | M36: Bachrach | N36: Adam | O36: 15 | Q36: Andy | R36: Bartalone | S36: 6 | U36: Andy Bloch | V36: Andy | W36: Bloch | X36: 7
A37: 36 | B37: 2003 | C37: ATLARGE | D37: 7 Stud | E37: 7 Stud | G37: 36 | H37: Suffecool | I37: Kevin | J37: 159.7008429 | K37: Kevin Suffecool | M37: Baker | N37: Ed | O37: 4 | R37: Bloch | S37: 7 | U37: Andy Hughes | V37: Andy | W37: Hughes | X37: 2
A38: 37 | B38: 2003 | C38: ATLARGE | D38: 7 Stud | E38: 7 Stud | G38: 37 | H38: Richman | I38: Andrew | J38: 147.8016196 | K38: Andrew Richman | M38: Baldwin | N38: Harry | O38: 6 | R38: Hughes | S38: 2 | U38: Anne Barylick | V38: Anne | W38: Barylick | X38: 2
A39: 38 | B39: 2003 | C39: ATLARGE | D39: 7 Stud | E39: 7 Stud | G39: 38 | H39: Zang | I39: Steve | J39: 136.219747 | K39: Steve Zang | M39: Ballario | N39: Ralph | O39: 1 | Q39: Anne | R39: Barylick | S39: 2 | U39: Antoinett Pennington | V39: Antoinett | W39: Pennington | X39: 2
A40: 39 | B40: 2003 | C40: ATLARGE | D40: 7 Stud | E40: 7 Stud | G40: 39 | H40: Fichtemaier | I40: Keith | J40: 124.9387366 | K40: Keith Fichtemaier | M40: Balter | N40: Jason | O40: 1 | Q40: Antoinett | R40: Pennington | S40: 2 | U40: Art Santella | V40: Art | W40: Santella | X40: 3
A41: 40 | B41: 2003 | C41: ATLARGE | D41: 7 Stud | E41: 7 Stud | G41: 40 | H41: Edmonds | I41: Brad | J41: 113.9433523 | K41: Brad Edmonds | M41: Bankston | N41: Jennifer | O41: 1 | Q41: Art | R41: Santella | S41: 3 | U41: Arthur Goltz | V41: Arthur | W41: Goltz | X41: 6
A42: 41 | B42: 2003 | C42: ATLARGE | D42: 7 Stud | E42: 7 Stud | G42: 41 | H42: Woods | I42: Jeff | J42: 103.2194869 | K42: Jeff Woods | M42: Barnes | N42: Billy | O42: 1 | Q42: Arthur | R42: Goltz | S42: 6 | U42: Arthur Reber | V42: Arthur | W42: Reber | X42: 1
A43: 42 | B43: 2003 | C43: ATLARGE | D43: 7 Stud | E43: 7 Stud | G43: 42 | H43: Snow | I43: Tom | J43: 92.75405324 | K43: Tom Snow | M43: Barrett | N43: Ed | O43: 5 | R43: Reber | S43: 1 | U43: Ashley Adams | V43: Ashley | W43: Adams | X43: 8
A44: 43 | B44: 2003 | C44: ATLARGE | D44: 7 Stud | E44: 7 Stud | G44: 43 | H44: Lewis | I44: Linda | J44: 82.53488806 | K44: Linda Lewis | N44: Rich | O44: 5 | Q44: Ashley | R44: Adams | S44: 8 | U44: Asya Kamsky | V44: Asya | W44: Kamsky | X44: 8
A45: 44 | B45: 2003 | C45: ATLARGE | D45: 7 Stud | E45: 7 Stud | G45: 44 | H45: DiDonato | I45: Ray | J45: 72.55066715 | K45: Ray DiDonato | M45: Bartalone | N45: Andy | O45: 6 | Q45: Asya | R45: Kamsky | S45: 8 | U45: ATLARGE NLHE 14th | V45: ATLARGE | W45: NLHE 14th | X45: 1
A46: 45 | B46: 2003 | C46: ATLARGE | D46: 7 Stud | E46: 7 Stud | G46: 45 | H46: Natkins | I46: Chic | J46: 62.79082986 | K46: Chic Natkins | M46: Bartnyk | N46: Steve | O46: 1 | Q46: ATLARGE | R46: NLHE 14th | S46: 1 | U46: ATLARGE NLHE 15th | V46: ATLARGE | W46: NLHE 15th | X46: 1
A47: 46 | B47: 2003 | C47: ATLARGE | D47: 7 Stud | E47: 7 Stud | G47: 46 | H47: Matros | I47: Matt | J47: 53.24551195 | K47: Matt Matros | M47: Barylick | N47: Anne | O47: 2 | R47: NLHE 15th | S47: 1 | U47: ATLARGE NLHE 16th | V47: ATLARGE | W47: NLHE 16th | X47: 1
A48: 47 | B48: 2003 | C48: ATLARGE | D48: 7 Stud | E48: 7 Stud | G48: 47 | H48: Lober | I48: Nels | J48: 43.9054857 | K48: Nels Lober | M48: Barzamati | N48: Bobo | O48: 1 | R48: NLHE 16th | S48: 1 | U48: ATLARGE Razz/Lowball 5th | V48: ATLARGE | W48: Razz/Lowball 5th | X48: 1
A49: 48 | B49: 2003 | C49: ATLARGE | D49: 7 Stud | E49: 7 Stud | G49: 48 | H49: Goldman | I49: Stevan | J49: 34.76210626 | K49: Stevan Goldman | M49: Baxter | N49: Jeffrey | O49: 1 | R49: Razz/Lowball 5th | S49: 1 | U49: Aubrey Kyburz | V49: Aubrey | W49: Kyburz | X49: 1
A50: 49 | B50: 2003 | C50: ATLARGE | D50: 7 Stud | E50: 7 Stud | G50: 49 | H50: Weber | I50: Al | J50: 25.80726361 | K50: Al Weber | N50: Katie | O50: 13 | Q50: Aubrey | R50: Kyburz | S50: 1 | U50: Barbara Bowen | V50: Barbara | W50: Bowen | X50: 1
A51: 50 | B51: 2003 | C51: ATLARGE | D51: 7 Stud | E51: 7 Stud | G51: 50 | H51: Taylor | I51: David | J51: 17.0333393 | K51: David Taylor | M51: Bayne | N51: Chuck | O51: 7 | Q51: Barbara | R51: Bowen | S51: 1 | U51: Barbara Gallamore | V51: Barbara | W51: Gallamore | X51: 1
A52: 51 | B52: 2003 | C52: ATLARGE | D52: 7 Stud | E52: 7 Stud | G52: 51 | H52: Mitz | I52: Greg | J52: 8.433167537 | K52: Greg Mitz | M52: Beadles | N52: Patti | O52: 24 | R52: Gallamore | S52: 1 | U52: Barbara Garrett | V52: Barbara | W52: Garrett | X52: 1
A53: 52 | B53: 2003 | C53: ATLARGE | D53: 7 Stud | E53: 7 Stud | G53: 52 | H53: Kuznick | I53: David | J53: 0 | K53: David Kuznick | M53: Beardsley | N53: Grant | O53: 6 | R53: Garrett | S53: 1 | U53: Barbara Zangaro | V53: Barbara | W53: Zangaro | X53: 2
A54: 53 | B54: 2003 | C54: ATLARGE | D54: HOE | E54: Mixed | G54: 1 | H54: Toft | I54: Bo | J54: 1732.39376 | K54: Bo Toft | M54: Beauregard | N54: Ryan | O54: 1 | R54: Zangaro | S54: 2 | U54: Barry Gassen | V54: Barry | W54: Gassen | X54: 2
A55: 54 | B55: 2003 | C55: ATLARGE | D55: HOE | E55: Mixed | G55: 2 | H55: Stuart | I55: Alan | J55: 1431.363764 | K55: Alan Stuart | M55: Beck | N55: Kent | O55: 2 | Q55: Barry | R55: Gassen | S55: 2 | U55: Barry Kornspan | V55: Barry | W55: Kornspan | X55: 31
A56: 55 | B56: 2003 | C56: ATLARGE | D56: HOE | E56: Mixed | G56: 3 | H56: Daniel | I56: Steve | J56: 1255.272505 | K56: Steve Daniel | M56: Becker | N56: Mike | O56: 2 | R56: Kornspan | S56: 31 | U56: Barry Meltzer | V56: Barry | W56: Meltzer | X56: 3
A57: 56 | B57: 2003 | C57: ATLARGE | D57: HOE | E57: Mixed | G57: 4 | H57: Edmonds | I57: Brad | J57: 1130.333768 | K57: Brad Edmonds | N57: Rick | O57: 27 | R57: Meltzer | S57: 3 | U57: Barry Tanenbaum | V57: Barry | W57: Tanenbaum | X57: 7
A58: 57 | B58: 2003 | C58: ATLARGE | D58: HOE | E58: Mixed | G58: 5 | H58: Kramer | I58: Bruce | J58: 1033.423755 | K58: Bruce Kramer | N58: Tracy | O58: 19 | R58: Tanenbaum | S58: 7 | U58: Bart Simpson | V58: Bart | W58: Simpson | X58: 2
A59: 58 | B59: 2003 | C59: ATLARGE | D59: HOE | E59: Mixed | G59: 6 | H59: Landrum | I59: Sabyl | J59: 954.2425094 | K59: Sabyl Landrum | M59: Behrens | N59: Jeff | O59: 1 | Q59: Bart | R59: Simpson | S59: 2 | U59: Ben Gamble | V59: Ben | W59: Gamble | X59: 5
A60: 59 | B60: 2003 | C60: ATLARGE | D60: HOE | E60: Mixed | G60: 7 | H60: Chen | I60: Bill | J60: 887.2957198 | K60: Bill Chen | M60: Benditt | N60: Sandra | O60: 3 | Q60: Ben | R60: Gamble | S60: 5 | U60: Ben Ludlow | V60: Ben | W60: Ludlow | X60: 2
A61: 60 | B61: 2003 | C61: ATLARGE | D61: HOE | E61: Mixed | G61: 8 | H61: Hwang | I61: Robert | J61: 829.3037728 | K61: Robert Hwang | M61: Bennett | N61: Steven | O61: 1 | R61: Imsdahl | S61: 1 | U61: Bennett Greenstein | V61: Bennett | W61: Greenstein | X61: 2
A62: 61 | B62: 2003 | C62: ATLARGE | D62: HOE | E62: Mixed | G62: 9 | H62: Kuznick | I62: David | J62: 778.1512504 | K62: David Kuznick | M62: Bento | N62: Jeff | O62: 1 | R62: Ludlow | S62: 2 | U62: Bert Hackney | V62: Bert | W62: Hackney | X62: 1
A63: 62 | B63: 2003 | C63: ATLARGE | D63: HOE | E63: Mixed | G63: 10 | H63: Lewis | I63: Linda | J63: 732.3937598 | K63: Linda Lewis | M63: Benton | N63: Stephen | O63: 3 | Q63: Bennett | R63: Greenstein | S63: 2 | U63: Beth Even | V63: Beth | W63: Even | X63: 2
A64: 63 | B64: 2003 | C64: ATLARGE | D64: HOE | E64: Mixed | G64: 11 | H64: Hadley | I64: Joan | J64: 691.0010747 | K64: Joan Hadley | M64: Berentsen | N64: Guy | O64: 22 | Q64: Bert | R64: Hackney | S64: 1 | U64: Betsy Wilson | V64: Betsy | W64: Wilson | X64: 1
A65: 64 | B65: 2003 | C65: ATLARGE | D65: HOE | E65: Mixed | G65: 12 | H65: Kuznick | I65: Jessica | J65: 653.2125138 | K65: Jessica Kuznick | M65: Bergman | N65: Robert | O65: 1 | Q65: Beth | R65: Even | S65: 2 | U65: Betty Tanenbaum | V65: Betty | W65: Tanenbaum | X65: 4
A66: 65 | B66: 2003 | C66: ATLARGE | D66: HOE | E66: Mixed | G66: 13 | H66: Suffecool | I66: Kevin | J66: 618.4504075 | K66: =I66&" "&H66 -> Kevin Suffecool | M66: Bergmann | N66: Todd | O66: 6 | Q66: Betsy | R66: Wilson | S66: 1 | U66: Bill Campion | V66: Bill | W66: Campion | X66: 1
A67: 66 | B67: 2003 | C67: ATLARGE | D67: HOE | E67: Mixed | G67: 14 | H67: Treasure | I67: Matt | J67: 586.2657241 | K67: Matt Treasure | M67: Berman | N67: Joe | O67: 2 | Q67: Betty | R67: Tanenbaum | S67: 4 | U67: Bill Chen | V67: Bill | W67: Chen | X67: 13
A68: =A67+1 -> 67 | B68: 2003 | C68: ATLARGE | D68: HOE | E68: Mixed | G68: 15 | H68: O’Connor | I68: Chris | J68: 556.3025008 | K68: Chris O’Connor | M68: Bernstein | N68: Alan | O68: 2 | Q68: Bill | R68: Campion | S68: 1 | U68: Bill Keenan | V68: Bill | W68: Keenan | X68: 2
A69: 68 | B69: 2003 | C69: ATLARGE | D69: HOE | E69: Mixed | G69: 16 | H69: Fichtemaier | I69: Keith | J69: 528.2737772 | K69: Keith Fichtemaier | M69: Bessoir | N69: Tom | O69: 17 | R69: Chen | S69: 13 | U69: Bill Matros | V69: Bill | W69: Matros | X69: 3
A70: 69 | B70: 2003 | C70: ATLARGE | D70: HOE | E70: Mixed | G70: 17 | H70: Lober | I70: Nels | J70: 501.9448384 | K70: Nels Lober | M70: Bevan | N70: Rick | O70: 6 | R70: Keenan | S70: 2 | U70: Billy Barnes | V70: Billy | W70: Barnes | X70: 1
A71: 70 | B71: 2003 | C71: ATLARGE | D71: HOE | E71: Mixed | G71: 18 | H71: Marks | I71: Scott | J71: 477.1212547 | K71: Scott Marks | M71: Bierman | N71: Larry | O71: 10 | R71: Matros | S71: 3 | U71: Blair Rodman | V71: Blair | W71: Rodman | X71: 1
A72: 71 | B72: 2003 | C72: ATLARGE | D72: HOE | E72: Mixed | G72: 19 | H72: Miller | I72: Mike | J72: 453.6401589 | K72: Mike Miller | M72: Birchem | N72: Sam | O72: 1 | Q72: Billy | R72: Barnes | S72: 1 | U72: Bo Toft | V72: Bo | W72: Toft | X72: 2
A73: 72 | B73: 2003 | C73: ATLARGE | D73: HOE | E73: Mixed | G73: 20 | H73: Firestone | I73: Mitch | J73: 431.3637642 | K73: Mitch Firestone | M73: Bjordammen | N73: Steve | O73: 4 | Q73: Blair | R73: Rodman | S73: 1 | U73: Bob Alonso | V73: Bob | W73: Alonso | X73: 1
A74: 73 | B74: 2003 | C74: ATLARGE | D74: HOE | E74: Mixed | G74: 21 | H74: Fox | I74: Russell | J74: 410.1744651 | K74: Russell Fox | M74: Blackstock | N74: Stephen | O74: 7 | Q74: Bo | R74: Toft | S74: 2 | U74: Bob Gilbert | V74: Bob | W74: Gilbert | X74: 6
A75: 74 | B75: 2003 | C75: ATLARGE | D75: HOE | E75: Mixed | G75: 22 | H75: DiDonato | I75: Ray | J75: 389.971079 | K75: Ray DiDonato | M75: Blau | N75: Seth | O75: 1 | Q75: Bob | R75: Alonso | S75: 1 | U75: Bob Herlien | V75: Bob | W75: Herlien | X75: 11
A76: 75 | B76: 2003 | C76: ATLARGE | D76: HOE | E76: Mixed | G76: 23 | H76: Becker | I76: Rick | J76: 370.6659238 | K76: Rick Becker | M76: Bloch | N76: Andy | O76: 7 | R76: Gilbert | S76: 6 | U76: Bob Irons | V76: Bob | W76: Irons | X76: 6
A77: 76 | B77: 2003 | C77: ATLARGE | D77: HOE | E77: Mixed | G77: 24 | H77: Woods | I77: Jeff | J77: 352.1825181 | K77: Jeff Woods | M77: Bonaguro | N77: John | O77: 5 | R77: Herlien | S77: 11 | U77: Bob Kelly | V77: Bob | W77: Kelly | X77: 1
A78: 77 | B78: 2003 | C78: ATLARGE | D78: HOE | E78: Mixed | G78: 25 | H78: Snow | I78: Tom | J78: 334.4537512 | K78: Tom Snow | M78: Borzomati | N78: Robert | O78: 1 | R78: Irons | S78: 6 | U78: Bob Lauria | V78: Bob | W78: Lauria | X78: 24
A79: 78 | B79: 2003 | C79: ATLARGE | D79: HOE | E79: Mixed | G79: 26 | H79: Fruchter | I79: David | J79: 317.4204119 | K79: David Fruchter | M79: Bosserman | N79: Tim | O79: 1 | R79: Kelly | S79: 1 | U79: Bob Maher | V79: Bob | W79: Maher | X79: 3
A80: 79 | B80: 2003 | C80: ATLARGE | D80: HOE | E80: Mixed | G80: 27 | H80: Santella | I80: Art | J80: 301.0299957 | K80: Art Santella | M80: Boston | N80: Sarah | O80: 1 | R80: Lauria | S80: 24 | U80: Bob Ogus | V80: Bob | W80: Ogus | X80: 17
A81: 80 | B81: 2003 | C81: ATLARGE | D81: HOE | E81: Mixed | G81: 28 | H81: McMullin | I81: Paul | J81: 285.2357285 | K81: Paul McMullin | M81: Botwin | N81: Michael | O81: 1 | R81: Maher | S81: 3 | U81: Bobo Barzamati | V81: Bobo | W81: Barzamati | X81: 1
A82: 81 | B82: 2003 | C82: ATLARGE | D82: HOE | E82: Mixed | G82: 29 | H82: Flynn | I82: Cary | J82: 269.9957619 | K82: Cary Flynn | M82: Bounds | N82: Debra | O82: 2 | R82: Ogus | S82: 17 | U82: Bogan Painter | V82: Bogan | W82: Painter | X82: 1
A83: 82 | B83: 2003 | C83: ATLARGE | D83: HOE | E83: Mixed | G83: 30 | H83: Poppel | I83: Ross | J83: 255.2725051 | K83: Ross Poppel | M83: Bowen | N83: Barbara | O83: 1 | Q83: Bobo | R83: Barzamati | S83: 1 | U83: Brad Edmonds | V83: Brad | W83: Edmonds | X83: 6
A84: 83 | B84: 2003 | C84: ATLARGE | D84: HOE | E84: Mixed | G84: 31 | H84: Raimondi | I84: Chris | J84: 241.032066 | K84: Chris Raimondi | N84: Frank | O84: 2 | Q84: Bogan | R84: Painter | S84: 1 | U84: Brandon Gerson | V84: Brandon | W84: Gerson | X84: 5
A85: 84 | B85: 2003 | C85: ATLARGE | D85: HOE | E85: Mixed | G85: 32 | H85: Portano | I85: Desmond | J85: 227.2437815 | K85: Desmond Portano | M85: Boyett | N85: Drew | O85: 2 | Q85: Brad | R85: Edmonds | S85: 6 | U85: Brandon Oberling | V85: Brandon | W85: Oberling | X85: 1
A86: 85 | B86: 2003 | C86: ATLARGE | D86: HOE | E86: Mixed | G86: 33 | H86: Nickerson | I86: Glenn | J86: 213.8798199 | K86: Glenn Nickerson | M86: Brabec | N86: Frank | O86: 4 | Q86: Brandon | R86: Gerson | S86: 5 | U86: Brandon Schaeffer | V86: Brandon | W86: Schaeffer | X86: 1
A87: 86 | B87: 2003 | C87: ATLARGE | D87: HOE | E87: Mixed | G87: 34 | H87: Ankenman | I87: Jerrod | J87: 200.9148428 | K87: Jerrod Ankenman | N87: Sheri | O87: 1 | R87: Oberling | S87: 1 | U87: Brandon Spears | V87: Brandon | W87: Spears | X87: 2
A88: 87 | B88: 2003 | C88: ATLARGE | D88: HOE | E88: Mixed | G88: 35 | H88: Edivan | I88: Peter | J88: 188.3257155 | K88: Peter Edivan | M88: Bragg | N88: Dennis | O88: 1 | R88: Schaeffer | S88: 1 | U88: Bree Goldman | V88: Bree | W88: Goldman | X88: 6
A89: 88 | B89: 2003 | C89: ATLARGE | D89: HOE | E89: Mixed | G89: 36 | H89: Matros | I89: Matt | J89: 176.0912591 | K89: Matt Matros | M89: Braud | N89: Stephen | O89: 1 | R89: Spears | S89: 2 | U89: Brenda Mowrey | V89: Brenda | W89: Mowrey | X89: 8
A90: 89 | B90: 2003 | C90: ATLARGE | D90: HOE | E90: Mixed | G90: 37 | H90: Benton | I90: Stephen | J90: 164.1920358 | K90: Stephen Benton | M90: Bremer | N90: Richard | O90: 61 | Q90: Bree | R90: Goldman | S90: 6 | U90: Brentt Phillips | V90: Brentt | W90: Phillips | X90: 1
A91: 90 | B91: 2003 | C91: ATLARGE | D91: HOE | E91: Mixed | G91: 38 | H91: Natkins | I91: Chic | J91: 152.6101632 | K91: Chic Natkins | M91: Brennan | N91: Michael | O91: 2 | Q91: Brenda | R91: Mowrey | S91: 8 | U91: Brett Pisor | V91: Brett | W91: Pisor | X91: 1
A92: 91 | B92: 2003 | C92: ATLARGE | D92: HOE | E92: Mixed | G92: 39 | H92: Tiger | I92: Alan | J92: 141.3291528 | K92: Alan Tiger | M92: Brestak | N92: Roger | O92: 1 | Q92: Brentt | R92: Phillips | S92: 1 | U92: Brian Connolly | V92: Brian | W92: Connolly | X92: 1
A93: 92 | B93: 2003 | C93: ATLARGE | D93: HOE | E93: Mixed | G93: 40 | H93: Calkins | I93: Lauri | J93: 130.3337685 | K93: Lauri Calkins | M93: Bright | N93: Richard | O93: 1 | Q93: Brett | R93: Pisor | S93: 1 | U93: Brian Goetz | V93: Brian | W93: Goetz | X93: 1
A94: 93 | B94: 2003 | C94: ATLARGE | D94: HOE | E94: Mixed | G94: 41 | H94: Martin | I94: Graham | J94: 119.6099031 | K94: Graham Martin | M94: Brod | N94: Deron | O94: 9 | Q94: Brian | R94: Connolly | S94: 1 | U94: Brian Goldstein | V94: Brian | W94: Goldstein | X94: 1
A95: 94 | B95: 2003 | C95: ATLARGE | D95: HOE | E95: Mixed | G95: 42 | H95: Byron | I95: Scott | J95: 109.1444694 | K95: Scott Byron | M95: Brodie | N95: Richard | O95: 5 | R95: Goetz | S95: 1 | U95: Brian Hackett | V95: Brian | W95: Hackett | X95: 7
A96: 95 | B96: 2003 | C96: ATLARGE | D96: HOE | E96: Mixed | G96: 43 | H96: Kornspan | I96: Barry | J96: 98.92530424 | K96: Barry Kornspan | M96: Brown | N96: Gloria | O96: 4 | R96: Goldstein | S96: 1 | U96: Brian Judd | V96: Brian | W96: Judd | X96: 1
A97: 96 | B97: 2003 | C97: ATLARGE | D97: HOE | E97: Mixed | G97: 44 | H97: Croson | I97: David | J97: 88.94108334 | K97: David Croson | N97: Winchester | O97: 2 | R97: Hackett | S97: 7 | U97: Brian O'Grady | V97: Brian | W97: O'Grady | X97: 1
A98: 97 | B98: 2003 | C98: ATLARGE | D98: HOE | E98: Mixed | G98: 45 | H98: Wilson | I98: Ron | J98: 79.18124605 | K98: Ron Wilson | M98: Bruegger | N98: Frank | O98: 12 | R98: Judd | S98: 1 | U98: Brian Reeve | V98: Brian | W98: Reeve | X98: 1
A99: 98 | B99: 2003 | C99: ATLARGE | D99: HOE | E99: Mixed | G99: 46 | H99: Weber | I99: Al | J99: 69.63592814 | K99: Al Weber | M99: Bryson | N99: Todd | O99: 1 | R99: O'Grady | S99: 1 | U99: Bruce Altner | V99: Bruce | W99: Altner | X99: 2
A100: 99 | B100: 2003 | C100: ATLARGE | D100: HOE | E100: Mixed | G100: 47 | H100: Taylor | I100: David | J100: 60.29590189 | K100: David Taylor | M100: Buchholz | N100: Adam | O100: 1 | R100: Reeve | S100: 1 | U100: Bruce Iwamoto | V100: Bruce | W100: Iwamoto | X100: 4
A101: 100 | B101: 2003 | C101: ATLARGE | D101: HOE | E101: Mixed | G101: 48 | H101: Milligan | I101: Patrick | J101: 51.15252245 | K101: Patrick Milligan | M101: Bullard | N101: Jim | O101: 10 | Q101: Bruce | R101: Altner | S101: 2 | U101: Bruce Kramer | V101: Bruce | W101: Kramer | X101: 15
A102: 101 | B102: 2003 | C102: ATLARGE | D102: HOE | E102: Mixed | G102: 49 | H102: Sander | I102: Warren | J102: 42.19767979 | K102: Warren Sander | M102: Buono | N102: Mike | O102: 1 | R102: Iwamoto | S102: 4 | U102: Bryan Juliano | V102: Bryan | W102: Juliano | X102: 9
A103: 102 | B103: 2003 | C103: ATLARGE | D103: HOE | E103: Mixed | G103: 50 | H103: Calkins | I103: Jeff | J103: 33.42375549 | K103: Jeff Calkins | M103: Burns | N103: Jazbo | O103: 5 | R103: Kramer | S103: 15 | U103: Bryan Slick | V103: Bryan | W103: Slick | X103: 3
A104: 103 | B104: 2003 | C104: ATLARGE | D104: HOE | E104: Mixed | G104: 51 | H104: Chan | I104: Terrence | J104: 24.82358373 | K104: Terrence Chan | M104: Burrington | N104: Scott | O104: 1 | Q104: Bryan | R104: Juliano | S104: 9 | U104: C Conner | V104: C | W104: Conner | X104: 1
A105: 104 | B105: 2003 | C105: ATLARGE | D105: HOE | E105: Mixed | G105: 52 | H105: Goldman | I105: Stevan | J105: 16.39041619 | K105: Stevan Goldman | M105: Busch | N105: Marion | O105: 2 | R105: Slick | S105: 3 | U105: Candy Koepke | V105: Candy | W105: Koepke | X105: 2
A106: 105 | B106: 2003 | C106: ATLARGE | D106: HOE | E106: Mixed | G106: 53 | H106: Mitz | I106: Greg | J106: 8.117890222 | K106: Greg Mitz | M106: Byron | N106: Scott | O106: 36 | Q106: C | R106: Conner | S106: 1 | U106: Carl Lepinski | V106: Carl | W106: Lepinski | X106: 2
A107: 106 | B107: 2003 | C107: ATLARGE | D107: HOE | E107: Mixed | G107: 54 | H107: Segal | I107: Pete | J107: 0 | K107: Pete Segal | M107: Caldes | N107: Peter | O107: 9 | Q107: Candy | R107: Koepke | S107: 2 | U107: Carlos Lobato | V107: Carlos | W107: Lobato | X107: 3
A108: 107 | B108: 2003 | C108: ATLARGE | D108: NLHE | E108: NL | G108: 1 | H108: Taylor | I108: David | J108: 1954.242509 | K108: David Taylor | M108: Caldwell | N108: John | O108: 1 | Q108: Carl | R108: Lepinski | S108: 2 | U108: Carol Anderson | V108: Carol | W108: Anderson | X108: 3
A109: 108 | B109: 2003 | C109: ATLARGE | D109: NLHE | E109: NL | G109: 2 | H109: Chan | I109: Terrence | J109: 1653.212514 | K109: Terrence Chan | M109: Calkins | N109: Jeff | O109: 10 | Q109: Carlos | R109: Lobato | S109: 3 | U109: Carol Kline | V109: Carol | W109: Kline | X109: 3
A110: 109 | B110: 2003 | C110: ATLARGE | D110: NLHE | E110: NL | G110: 3 | H110: Mitz | I110: Greg | J110: 1477.121255 | K110: Greg Mitz | N110: Lauri | O110: 8 | Q110: Carol | R110: Anderson | S110: 3 | U110: Cary Flynn | V110: Cary | W110: Flynn | X110: 4
A111: 110 | B111: 2003 | C111: ATLARGE | D111: NLHE | E111: NL | G111: 4 | H111: Edmonds | I111: Brad | J111: 1352.182518 | K111: Brad Edmonds | M111: Campbell | N111: John | O111: 2 | R111: Kline | S111: 3 | U111: Caryl Aronson | V111: Caryl | W111: Aronson | X111: 7
A112: 111 | B112: 2003 | C112: ATLARGE | D112: NLHE | E112: NL | G112: 5 | H112: Calkins | I112: Jeff | J112: 1255.272505 | K112: Jeff Calkins | N112: Robert | O112: 1 | Q112: Cary | R112: Flynn | S112: 4 | U112: Charles Haynes | V112: Charles | W112: Haynes | X112: 1
A113: 112 | B113: 2003 | C113: ATLARGE | D113: NLHE | E113: NL | G113: 6 | H113: Richman | I113: Andrew | J113: 1176.091259 | K113: Andrew Richman | M113: Campion | N113: Bill | O113: 1 | Q113: Caryl | R113: Aronson | S113: 7 | U113: Charles Hennessey | V113: Charles | W113: Hennessey | X113: 2
A114: 113 | B114: 2003 | C114: ATLARGE | D114: NLHE | E114: NL | G114: 7 | H114: Ankenman | I114: Jerrod | J114: 1109.144469 | K114: Jerrod Ankenman | M114: Canning | N114: Peter | O114: 4 | Q114: Charles | R114: Haynes | S114: 1 | U114: Charles Sawyer | V114: Charles | W114: Sawyer | X114: 1
A115: 114 | B115: 2003 | C115: ATLARGE | D115: NLHE | E115: NL | G115: 8 | H115: Milligan | I115: Patrick | J115: 1051.152522 | K115: Patrick Milligan | M115: Capps | N115: Jesse | O115: 15 | R115: Hennessey | S115: 2 | U115: Charles Zino | V115: Charles | W115: Zino | X115: 3
A116: 115 | B116: 2003 | C116: ATLARGE | D116: NLHE | E116: NL | G116: 9 | H116: Hwang | I116: Robert | J116: 1000 | K116: Robert Hwang | M116: Carbonara | N116: Stephen | O116: 3 | R116: Sawyer | S116: 1 | U116: Charlie Mathis | V116: Charlie | W116: Mathis | X116: 1
A117: 116 | B117: 2003 | C117: ATLARGE | D117: NLHE | E117: NL | G117: 10 | H117: Martin | I117: Graham | J117: 954.2425094 | K117: Graham Martin | M117: Carlson | N117: Claude | O117: 5 | R117: Zino | S117: 3 | U117: Charlie Peck | V117: Charlie | W117: Peck | X117: 1
A118: 117 | B118: 2003 | C118: ATLARGE | D118: NLHE | E118: NL | G118: 11 | H118: Adams | I118: Stefan | J118: 912.8498243 | K118: Stefan Adams | M118: Carstens | N118: Chris | O118: 1 | Q118: Charlie | R118: Mathis | S118: 1 | U118: Chet Frederick | V118: Chet | W118: Frederick | X118: 3
A119: 118 | B119: 2003 | C119: ATLARGE | D119: NLHE | E119: NL | G119: 12 | H119: Fox | I119: Russell | J119: 875.0612634 | K119: Russell Fox | M119: Castagna | N119: Frank | O119: 1 | R119: Peck | S119: 1 | U119: Chic Natkins | V119: Chic | W119: Natkins | X119: 25
A120: 119 | B120: 2003 | C120: ATLARGE | D120: NLHE | E120: NL | G120: 13 | H120: DiDonato | I120: Ray | J120: 840.2991571 | K120: Ray DiDonato | M120: Catlett | N120: Joel | O120: 1 | Q120: Chet | R120: Frederick | S120: 3 | U120: Chieu Tran | V120: Chieu | W120: Tran | X120: 1
A121: 120 | B121: 2003 | C121: ATLARGE | D121: NLHE | E121: NL | G121: 14 | H121: Becker | I121: Rick | J121: 808.1144738 | K121: Rick Becker | N121: Robert | O121: 7 | Q121: Chic | R121: Natkins | S121: 25 | U121: Chip Rosenberg | V121: Chip | W121: Rosenberg | X121: 3
A122: 121 | B122: 2003 | C122: ATLARGE | D122: NLHE | E122: NL | G122: 15 | H122: Miller | I122: Mike | J122: 778.1512504 | K122: Mike Miller | M122: Cegielski | N122: Michael | O122: 1 | Q122: Chieu | R122: Tran | S122: 1 | U122: Chris Alaura | V122: Chris | W122: Alaura | X122: 5
A123: 122 | B123: 2003 | C123: ATLARGE | D123: NLHE | E123: NL | G123: 16 | H123: Daniel | I123: Steve | J123: 750.1225268 | K123: Steve Daniel | M123: Centeno | N123: Jay | O123: 1 | Q123: Chip | R123: Rosenberg | S123: 3 | U123: Chris Carstens | V123: Chris | W123: Carstens | X123: 1
A124: 123 | B124: 2003 | C124: ATLARGE | D124: NLHE | E124: NL | G124: 17 | H124: McCall | I124: Michael | J124: 723.7935881 | K124: Michael McCall | M124: Chakoian | N124: Paul | O124: 10 | Q124: Chris | R124: Alaura | S124: 5 | U124: Chris Jepsen | V124: Chris | W124: Jepsen | X124: 8
A125: 124 | B125: 2003 | C125: ATLARGE | D125: NLHE | E125: NL | G125: 18 | H125: Klein | I125: Michael | J125: 698.9700043 | K125: Michael Klein | M125: Chamberlain | N125: Fern | O125: 3 | R125: Carstens | S125: 1 | U125: Chris Kluchman | V125: Chris | W125: Kluchman | X125: 11
A126: 125 | B126: 2003 | C126: ATLARGE | D126: NLHE | E126: NL | G126: 19 | H126: Jacobs | I126: Robert A. | J126: 675.4889085 | K126: Robert A. Jacobs | M126: Chan | N126: David | O126: 1 | R126: Jepsen | S126: 8 | U126: Chris Mecklin | V126: Chris | W126: Mecklin | X126: 24
A127: 126 | B127: 2003 | C127: ATLARGE | D127: NLHE | E127: NL | G127: 20 | H127: Landrum | I127: Sabyl | J127: 653.2125138 | K127: Sabyl Landrum | N127: Terrence | O127: 4 | R127: Kluchman | S127: 11 | U127: Chris Mlinarich | V127: Chris | W127: Mlinarich | X127: 2
A128: 127 | B128: 2003 | C128: ATLARGE | D128: NLHE | E128: NL | G128: 21 | H128: Kramer | I128: Bruce | J128: 632.0232147 | K128: Bruce Kramer | M128: Chang | N128: Kathy | O128: 10 | R128: Mecklin | S128: 24 | U128: Chris O’Connor | V128: Chris | W128: O’Connor | X128: 25
A129: 128 | B129: 2003 | C129: ATLARGE | D129: NLHE | E129: NL | G129: 22 | H129: Kuznick | I129: David | J129: 611.8198286 | K129: David Kuznick | M129: Chapman | N129: Andrew | O129: 5 | R129: Mlinarich | S129: 2 | U129: Chris Quan | V129: Chris | W129: Quan | X129: 2
A130: 129 | B130: 2003 | C130: ATLARGE | D130: NLHE | E130: NL | G130: 23 | H130: Sander | I130: Warren | J130: 592.5146734 | K130: =I130&" "&H130 -> Warren Sander | M130: Charles | N130: Rick | O130: 7 | R130: O’Connor | S130: 25 | U130: Chris Raimondi | V130: Chris | W130: Raimondi | X130: 5
A131: 130 | B131: 2003 | C131: ATLARGE | D131: NLHE | E131: NL | G131: 24 | H131: Kramer | I131: Mitch | J131: 574.0312677 | K131: Mitch Kramer | M131: Chase | N131: Scott | O131: 1 | R131: Quan | S131: 2 | U131: Chris Richards | V131: Chris | W131: Richards | X131: 11
A132: =A131+1 -> 131 | B132: 2003 | C132: ATLARGE | D132: NLHE | E132: NL | G132: 25 | H132: Gilman | I132: Norm | J132: 556.3025008 | K132: Norm Gilman | M132: Chen | N132: Bill | O132: 13 | R132: Raimondi | S132: 5 | U132: Chris Sims | V132: Chris | W132: Sims | X132: 1
A133: 132 | B133: 2003 | C133: ATLARGE | D133: NLHE | E133: NL | G133: 26 | H133: Hadley | I133: Joan | J133: 539.2691615 | K133: Joan Hadley | N133: Rodney | O133: 9 | R133: Richards | S133: 11 | U133: Chris Straghalis | V133: Chris | W133: Straghalis | X133: 6
A134: 133 | B134: 2003 | C134: ATLARGE | D134: NLHE | E134: NL | G134: 27 | H134: Marciano | I134: Mary | J134: 522.8787453 | K134: Mary Marciano | M134: Cheng | N134: Dylan | O134: 1 | R134: Sims | S134: 1 | U134: Chris Wilson | V134: Chris | W134: Wilson | X134: 1
A135: 134 | B135: 2003 | C135: ATLARGE | D135: NLHE | E135: NL | G135: 28 | H135: Marks | I135: Scott | J135: 507.0844781 | K135: Scott Marks | M135: Chesser | N135: John | O135: 2 | R135: Straghalis | S135: 6 | U135: Christian Jones | V135: Christian | W135: Jones | X135: 20
A136: 135 | B136: 2003 | C136: ATLARGE | D136: NLHE | E136: NL | G136: 29 | H136: Marciano | I136: Len | J136: 491.8445115 | K136: Len Marciano | M136: Chevrie | N136: Dan | O136: 1 | R136: Wilson | S136: 1 | U136: Christopher Garman | V136: Christopher | W136: Garman | X136: 1
A137: 136 | B137: 2003 | C137: ATLARGE | D137: NLHE | E137: NL | G137: 30 | H137: Chen | I137: Bill | J137: 477.1212547 | K137: Bill Chen | M137: Chosky | N137: Marvin | O137: 2 | Q137: Christian | R137: Jones | S137: 20 | U137: Christopher Kuntz | V137: Christopher | W137: Kuntz | X137: 7
A138: 137 | B138: 2003 | C138: ATLARGE | D138: NLHE | E138: NL | G138: 31 | H138: Schifter | I138: Josh | J138: 462.8808156 | K138: Josh Schifter | M138: Chow | N138: Michael | O138: 1 | Q138: Christopher | R138: Garman | S138: 1 | U138: Christopher Smith | V138: Christopher | W138: Smith | X138: 2
A139: 138 | B139: 2003 | C139: ATLARGE | D139: NLHE | E139: NL | G139: 32 | H139: Hackney | I139: Bert | J139: 449.0925311 | K139: Bert Hackney | M139: Christensen | N139: Monte | O139: 4 | R139: Kuntz | S139: 7 | U139: Chuck Artigues | V139: Chuck | W139: Artigues | X139: 4
A140: 139 | B140: 2003 | C140: ATLARGE | D140: NLHE | E140: NL | G140: 33 | H140: Lewis | I140: Linda | J140: 435.7285696 | K140: Linda Lewis | M140: Christenson | N140: Nick | O140: 9 | R140: Smith | S140: 2 | U140: Chuck Bayne | V140: Chuck | W140: Bayne | X140: 7
A141: 140 | B141: 2003 | C141: ATLARGE | D141: NLHE | E141: NL | G141: 34 | H141: Firestone | I141: Mitch | J141: 422.7635924 | K141: Mitch Firestone | M141: Ciotti | N141: Joyce | O141: 10 | Q141: Chuck | R141: Artigues | S141: 4 | U141: Chuck Humphrey | V141: Chuck | W141: Humphrey | X141: 9
A142: 141 | B142: 2003 | C142: ATLARGE | D142: NLHE | E142: NL | G142: 35 | H142: Snow | I142: Tom | J142: 410.1744651 | K142: Tom Snow | M142: Clayton | N142: Steve | O142: 2 | R142: Bayne | S142: 7 | U142: Chuck Weinstock | V142: Chuck | W142: Weinstock | X142: 9
A143: 142 | B143: 2003 | C143: ATLARGE | D143: NLHE | E143: NL | G143: 36 | H143: Calkins | I143: Lauri | J143: 397.9400087 | K143: Lauri Calkins | M143: Coates | N143: David | O143: 8 | R143: Humphrey | S143: 9 | U143: Cindy Morales | V143: Cindy | W143: Morales | X143: 1
A144: 143 | B144: 2003 | C144: ATLARGE | D144: NLHE | E144: NL | G144: 37 | H144: Carbonara | I144: Stephen | J144: 386.0407854 | K144: Stephen Carbonara | N144: DJ | O144: 1 | R144: Weinstock | S144: 9 | U144: Claude Carlson | V144: Claude | W144: Carlson | X144: 5
A145: 144 | B145: 2003 | C145: ATLARGE | D145: NLHE | E145: NL | G145: 38 | H145: Pilser | I145: Ira | J145: 374.4589128 | K145: Ira Pilser | M145: Cohen | N145: Jonathan | O145: 1 | Q145: Cindy | R145: Morales | S145: 1 | U145: Claudia Mastroianni | V145: Claudia | W145: Mastroianni | X145: 6
A146: 145 | B146: 2003 | C146: ATLARGE | D146: NLHE | E146: NL | G146: 39 | H146: O’Connor | I146: Chris | J146: 363.1779024 | K146: Chris O’Connor | N146: Stephen | O146: 4 | Q146: Claude | R146: Carlson | S146: 5 | U146: Cliff Matthews | V146: Cliff | W146: Matthews | X146: 9
A147: 146 | B147: 2003 | C147: ATLARGE | D147: NLHE | E147: NL | G147: 40 | H147: Fichtemaier | I147: Keith | J147: 352.1825181 | K147: Keith Fichtemaier | M147: Coles | N147: Eugene | O147: 1 | Q147: Claudia | R147: Mastroianni | S147: 6 | U147: Clinton Lanphier | V147: Clinton | W147: Lanphier | X147: 2
A148: 147 | B148: 2003 | C148: ATLARGE | D148: NLHE | E148: NL | G148: 41 | H148: Suffecool | I148: Kevin | J148: 341.4586527 | K148: Kevin Suffecool | M148: Colfer | N148: Dominic | O148: 2 | Q148: Cliff | R148: Matthews | S148: 9 | U148: Colleen McGraham | V148: Colleen | W148: McGraham | X148: 1
A149: 148 | B149: 2003 | C149: ATLARGE | D149: NLHE | E149: NL | G149: 42 | H149: Pizzarello | I149: Edward | J149: 330.993219 | K149: Edward Pizzarello | M149: Collack | N149: Randy | O149: 14 | Q149: Clinton | R149: Lanphier | S149: 2 | U149: Connie Hackett | V149: Connie | W149: Hackett | X149: 1
A150: 149 | B150: 2003 | C150: ATLARGE | D150: NLHE | E150: NL | G150: 43 | H150: Maurer | I150: Kevin | J150: 320.7740539 | K150: Kevin Maurer | M150: Collins | N150: Doug | O150: 1 | Q150: Colleen | R150: McGraham | S150: 1 | U150: Connie Henriques | V150: Connie | W150: Henriques | X150: 1
A151: 150 | B151: 2003 | C151: ATLARGE | D151: NLHE | E151: NL | G151: 44 | H151: Bonaguro | I151: John | J151: 310.789833 | K151: John Bonaguro | M151: Condit | N151: Don | O151: 5 | Q151: Connie | R151: Hackett | S151: 1 | U151: Connie Kellers | V151: Connie | W151: Kellers | X151: 4
A152: 151 | B152: 2003 | C152: ATLARGE | D152: NLHE | E152: NL | G152: 45 | H152: Poppel | I152: Ross | J152: 301.0299957 | K152: Ross Poppel | M152: Conlon | N152: Kevin | O152: 8 | R152: Henriques | S152: 1 | U152: Corey Imsdahl | V152: Corey | W152: Imsdahl | X152: 24
A153: 152 | B153: 2003 | C153: ATLARGE | D153: NLHE | E153: NL | G153: 46 | H153: Burns | I153: Jazbo | J153: 291.4846778 | K153: Jazbo Burns | M153: Connelly | N153: James | O153: 1 | R153: Kellers | S153: 4 | U153: Corey Means | V153: Corey | W153: Means | X153: 1
A154: 153 | B154: 2003 | C154: ATLARGE | D154: NLHE | E154: NL | G154: 47 | H154: Raimondi | I154: Chris | J154: 282.1446515 | K154: Chris Raimondi | M154: Conner | N154: C | O154: 1 | Q154: Corey | R154: Imsdahl | S154: 24 | U154: Corky Parks | V154: Corky | W154: Parks | X154: 1
A155: 154 | B155: 2003 | C155: ATLARGE | D155: NLHE | E155: NL | G155: 48 | H155: Zang | I155: Steve | J155: 273.0012721 | K155: Steve Zang | M155: Connolly | N155: Brian | O155: 1 | R155: Means | S155: 1 | U155: Craig Mordock | V155: Craig | W155: Mordock | X155: 2
A156: 155 | B156: 2003 | C156: ATLARGE | D156: NLHE | E156: NL | G156: 49 | H156: Flynn | I156: Cary | J156: 264.0464294 | K156: Cary Flynn | M156: Connors | N156: Mike | O156: 1 | Q156: Corky | R156: Parks | S156: 1 | U156: Crystal Haggard | V156: Crystal | W156: Haggard | X156: 1
A157: 156 | B157: 2003 | C157: ATLARGE | D157: NLHE | E157: NL | G157: 50 | H157: Santella | I157: Art | J157: 255.2725051 | K157: Art Santella | M157: Conrad | N157: Stacy | O157: 1 | Q157: Craig | R157: Mordock | S157: 2 | U157: Cynthia Yannette | V157: Cynthia | W157: Yannette | X157: 4
A158: 157 | B158: 2003 | C158: ATLARGE | D158: NLHE | E158: NL | G158: 51 | H158: Benton | I158: Stephen | J158: 246.6723333 | K158: Stephen Benton | M158: Constandino | N158: William | O158: 1 | Q158: Crystal | R158: Haggard | S158: 1 | U158: Dan Chevrie | V158: Dan | W158: Chevrie | X158: 1
A159: 158 | B159: 2003 | C159: ATLARGE | D159: NLHE | E159: NL | G159: 52 | H159: Portano | I159: Desmond | J159: 238.2391658 | K159: Desmond Portano | M159: Cooke | N159: Roy | O159: 1 | Q159: Cynthia | R159: Yannette | S159: 4 | U159: Dan Goldman | V159: Dan | W159: Goldman | X159: 41
A160: 159 | B160: 2003 | C160: ATLARGE | D160: NLHE | E160: NL | G160: 53 | H160: Bragg | I160: Dennis | J160: 229.9666398 | K160: Dennis Bragg | M160: Corral | N160: Tony | O160: 1 | Q160: Dan | R160: Chevrie | S160: 1 | U160: Dan Loncarcic | V160: Dan | W160: Loncarcic | X160: 4
A161: 160 | B161: 2003 | C161: ATLARGE | D161: NLHE | E161: NL | G161: 54 | H161: Segal | I161: Pete | J161: 221.8487496 | K161: Pete Segal | M161: Cosgrove | N161: Pat | O161: 1 | R161: Goldman | S161: 41 | U161: Dan Melbourne | V161: Dan | W161: Melbourne | X161: 2
A162: 161 | B162: 2003 | C162: ATLARGE | D162: NLHE | E162: NL | G162: 55 | H162: Fontinelli | I162: John | J162: 213.8798199 | K162: John Fontinelli | M162: Crane | N162: Rod | O162: 1 | R162: Loncarcic | S162: 4 | U162: Dan Nussbaum | V162: Dan | W162: Nussbaum | X162: 14
A163: 162 | B163: 2003 | C163: ATLARGE | D163: NLHE | E163: NL | G163: 56 | H163: Debnam | I163: Mike | J163: 206.0544824 | K163: Mike Debnam | M163: Crocker | N163: Lee | O163: 5 | R163: Melbourne | S163: 2 | U163: Daniel Gerard | V163: Daniel | W163: Gerard | X163: 1
A164: 163 | B164: 2003 | C164: ATLARGE | D164: NLHE | E164: NL | G164: 57 | H164: Byron | I164: Scott | J164: 198.3676538 | K164: Scott Byron | M164: Croson | N164: David | O164: 6 | R164: Nussbaum | S164: 14 | U164: Daniel Lykins | V164: Daniel | W164: Lykins | X164: 1
A165: 164 | B165: 2003 | C165: ATLARGE | D165: NLHE | E165: NL | G165: 58 | H165: Lober | I165: Nels | J165: 190.8145159 | K165: Nels Lober | M165: Curtis | N165: Ryan | O165: 1 | Q165: Daniel | R165: Fox | S165: 1 | U165: Danny Hofer | V165: Danny | W165: Hofer | X165: 1
A166: 165 | B166: 2003 | C166: ATLARGE | D166: NLHE | E166: NL | G166: 59 | H166: Treasure | I166: Matt | J166: 183.3904978 | K166: Matt Treasure | M166: Cusson | N166: Leo | O166: 1 | R166: Gerard | S166: 1 | U166: Darlene Springman | V166: Darlene | W166: Springman | X166: 5
A167: 166 | B167: 2003 | C167: ATLARGE | D167: NLHE | E167: NL | G167: 60 | H167: Cohen | I167: Jonathan | J167: 176.0912591 | K167: Jonathan Cohen | M167: Daiell | N167: Noah | O167: 4 | R167: Lykins | S167: 1 | U167: Darryl Osborne | V167: Darryl | W167: Osborne | X167: 1
A168: 167 | B168: 2003 | C168: ATLARGE | D168: NLHE | E168: NL | G168: 61 | H168: Klatzkin | I168: Adam | J168: 168.9126744 | K168: Adam Klatzkin | M168: Dalla | N168: Nolan | O168: 27 | Q168: Danny | R168: Hofer | S168: 1 | U168: Dave Marshall | V168: Dave | W168: Marshall | X168: 1
A169: 168 | B169: 2003 | C169: ATLARGE | D169: NLHE | E169: NL | G169: 62 | H169: Schmidt | I169: Mike | J169: 161.8508199 | K169: Mike Schmidt | M169: D'Amaro | N169: Jerry | O169: 1 | Q169: Darlene | R169: Springman | S169: 5 | U169: Dave McVay | V169: Dave | W169: McVay | X169: 2
A170: 169 | B170: 2003 | C170: ATLARGE | D170: NLHE | E170: NL | G170: 63 | H170: Schwartz | I170: Mordecai | J170: 154.90196 | K170: Mordecai Schwartz | M170: Daniel | N170: Steve | O170: 48 | Q170: Darryl | R170: Osborne | S170: 1 | U170: Dave O'Grady | V170: Dave | W170: O'Grady | X170: 4
A171: 170 | B171: 2003 | C171: ATLARGE | D171: NLHE | E171: NL | G171: 64 | H171: Rosenblum | I171: Russell | J171: 148.0625355 | K171: Russell Rosenblum | M171: D'Anna | N171: Tony | O171: 1 | Q171: Dave | R171: Marshall | S171: 1 | U171: Dave Orr | V171: Dave | W171: Orr | X171: 1
A172: 171 | B172: 2003 | C172: ATLARGE | D172: NLHE | E172: NL | G172: 65 | H172: Taylor | I172: John Charles | J172: 141.3291528 | K172: John Charles Taylor | M172: David | N172: Jeanne | O172: 26 | R172: McVay | S172: 2 | U172: Dave Raszewski | V172: Dave | W172: Raszewski | X172: 1
A173: 172 | B173: 2003 | C173: ATLARGE | D173: NLHE | E173: NL | G173: 66 | H173: Kirisits | I173: Matt | J173: 134.6985739 | K173: Matt Kirisits | M173: Davidson | N173: Martin | O173: 1 | R173: O'Grady | S173: 4 | U173: Dave Roemer | V173: Dave | W173: Roemer | X173: 1
A174: 173 | B174: 2003 | C174: ATLARGE | D174: NLHE | E174: NL | G174: 67 | H174: Kuznick | I174: Jessica | J174: 128.1677067 | K174: Jessica Kuznick | M174: Davis | N174: Jeff | O174: 1 | R174: Orr | S174: 1 | U174: Dave Tahajian | V174: Dave | W174: Tahajian | X174: 19
A175: 174 | B175: 2003 | C175: ATLARGE | D175: NLHE | E175: NL | G175: 68 | H175: Kirwan | I175: Patrick | J175: 121.7335967 | K175: Patrick Kirwan | N175: John | O175: 3 | R175: Raszewski | S175: 1 | U175: Dave Tall | V175: Dave | W175: Tall | X175: 1
A176: 175 | B176: 2003 | C176: ATLARGE | D176: NLHE | E176: NL | G176: 69 | H176: Nickerson | I176: Glenn | J176: 115.3934187 | K176: Glenn Nickerson | N176: Mike | O176: 1 | R176: Roemer | S176: 1 | U176: David Albis | V176: David | W176: Albis | X176: 2
A177: 176 | B177: 2003 | C177: ATLARGE | D177: NLHE | E177: NL | G177: 70 | H177: Wilson | I177: Ron | J177: 109.1444694 | K177: Ron Wilson | M177: Day | N177: Steve | O177: 2 | R177: Tahajian | S177: 19 | U177: David Aronson | V177: David | W177: Aronson | X177: 11
A178: 177 | B178: 2003 | C178: ATLARGE | D178: NLHE | E178: NL | G178: 71 | H178: Edivan | I178: Peter | J178: 102.9841607 | K178: Peter Edivan | M178: Debnam | N178: Mike | O178: 1 | R178: Tall | S178: 1 | U178: David Chan | V178: David | W178: Chan | X178: 1
A179: 178 | B179: 2003 | C179: ATLARGE | D179: NLHE | E179: NL | G179: 72 | H179: Fruchter | I179: David | J179: 96.91001301 | K179: David Fruchter | M179: DeBoo | N179: Joshua | O179: 2 | Q179: David | R179: Albis | S179: 2 | U179: David Coates | V179: David | W179: Coates | X179: 8
A180: 179 | B180: 2003 | C180: ATLARGE | D180: NLHE | E180: NL | G180: 73 | H180: Weber | I180: Al | J180: 90.91964932 | K180: Al Weber | M180: Deitch | N180: Jeff | O180: 11 | R180: Aronson | S180: 11 | U180: David Croson | V180: David | W180: Croson | X180: 6
A181: 180 | B181: 2003 | C181: ATLARGE | D181: NLHE | E181: NL | G181: 74 | H181: Vogel | I181: Phil | J181: 85.01078971 | K181: Phil Vogel | M181: Delaino | N181: Tom | O181: 2 | R181: Chan | S181: 1 | U181: David Fruchter | V181: David | W181: Fruchter | X181: 18
A182: 181 | B182: 2003 | C182: ATLARGE | D182: NLHE | E182: NL | G182: 75 | H182: Toft | I182: Bo | J182: 79.18124605 | K182: Bo Toft | M182: Derkatch | N182: Lon | O182: 1 | R182: Coates | S182: 8 | U182: David Green | V182: David | W182: Green | X182: 2
A183: 182 | B183: 2003 | C183: ATLARGE | D183: NLHE | E183: NL | G183: 76 | H183: McMullin | I183: Paul | J183: 73.42891716 | K183: Paul McMullin | M183: DeRose | N183: John | O183: 7 | R183: Croson | S183: 6 | U183: David Heller | V183: David | W183: Heller | X183: 3
A184: 183 | B184: 2003 | C184: ATLARGE | D184: NLHE | E184: NL | G184: 77 | H184: Kornspan | I184: Barry | J184: 67.75178427 | K184: Barry Kornspan | M184: Desmond-Rowan | N184: Maggie | O184: 1 | R184: Fruchter | S184: 18 | U184: David Huberman | V184: David | W184: Huberman | X184: 4
A185: 184 | B185: 2003 | C185: ATLARGE | D185: NLHE | E185: NL | G185: 78 | H185: Perry | I185: Don | J185: 62.14790675 | K185: Don Perry | M185: Devenport | N185: Jordan | O185: 8 | R185: Green | S185: 2 | U185: David Kent | V185: David | W185: Kent | X185: 6
A186: 185 | B186: 2003 | C186: ATLARGE | D186: NLHE | E186: NL | G186: 79 | H186: Natkins | I186: Chic | J186: 56.61541815 | K186: Chic Natkins | M186: DeVitto | N186: Gabe | O186: 2 | R186: Heller | S186: 3 | U186: David Klatte | V186: David | W186: Klatte | X186: 2
A187: 186 | B187: 2003 | C187: ATLARGE | D187: NLHE | E187: NL | G187: 80 | H187: Croson | I187: David | J187: 51.15252245 | K187: David Croson | M187: Diamondhead | N187: John | O187: 1 | R187: Huberman | S187: 4 | U187: David Kluchman | V187: David | W187: Kluchman | X187: 24
A188: 187 | B188: 2003 | C188: ATLARGE | D188: NLHE | E188: NL | G188: 81 | H188: Turcotte | I188: Phil | J188: 45.75749056 | K188: Phil Turcotte | M188: Diaz | N188: Russell | O188: 2 | R188: Kent | S188: 6 | U188: David Kuznick | V188: David | W188: Kuznick | X188: 30
A189: 188 | B189: 2003 | C189: ATLARGE | D189: NLHE | E189: NL | G189: 82 | H189: Kelley | I189: Thomas | J189: 40.42865706 | K189: Thomas Kelley | M189: DiDonato | N189: Ray | O189: 8 | R189: Klatte | S189: 2 | U189: David Lawful | V189: David | W189: Lawful | X189: 28
A190: 189 | B190: 2003 | C190: ATLARGE | D190: NLHE | E190: NL | G190: 83 | H190: Stuart | I190: Alan | J190: 35.16441706 | K190: Alan Stuart | M190: DiFante | N190: Derek | O190: 1 | R190: Kluchman | S190: 24 | U190: David Lee | V190: David | W190: Lee | X190: 2
A191: 190 | B191: 2003 | C191: ATLARGE | D191: NLHE | E191: NL | G191: 84 | H191: Hemstock | I191: Donald | J191: 29.96322338 | K191: Donald Hemstock | M191: Donovan | N191: Regis | O191: 11 | R191: Kuznick | S191: 30 | U191: David Lilie | V191: David | W191: Lilie | X191: 3
A192: 191 | B192: 2003 | C192: ATLARGE | D192: NLHE | E192: NL | G192: 85 | H192: Matros | I192: Matt | J192: 24.82358373 | K192: Matt Matros | M192: Drangula | N192: Dennis | O192: 2 | R192: Lawful | S192: 28 | U192: David Low | V192: David | W192: Low | X192: 30
A193: 192 | B193: 2003 | C193: ATLARGE | D193: NLHE | E193: NL | G193: 86 | H193: Becker | I193: Tracy | J193: 19.7440582 | K193: Tracy Becker | M193: Dunne | N193: Jody | O193: 1 | R193: Lee | S193: 2 | U193: David Matteo | V193: David | W193: Matteo | X193: 1
A194: 193 | B194: 2003 | C194: ATLARGE | D194: NLHE | E194: NL | G194: 87 | H194: Goldman | I194: Stevan | J194: 14.72325682 | K194: =I194&" "&H194 -> Stevan Goldman | M194: Edivan | N194: Peter | O194: 2 | R194: Lilie | S194: 3 | U194: David Meeks | V194: David | W194: Meeks | X194: 1
A195: 194 | B195: 2003 | C195: ATLARGE | D195: NLHE | E195: NL | G195: 88 | H195: Greenberg | I195: Len | J195: 9.759837289 | K195: Len Greenberg | M195: Edmonds | N195: Brad | O195: 6 | R195: Low | S195: 30 | U195: David Newberry | V195: David | W195: Newberry | X195: 4
A196: =A195+1 -> 195 | B196: 2003 | C196: ATLARGE | D196: NLHE | E196: NL | G196: 89 | H196: Gerner | I196: Jerry | J196: 4.852502794 | K196: Jerry Gerner | M196: Eisenstein | N196: Steven | O196: 21 | R196: Matteo | S196: 1 | U196: David Purcell | V196: David | W196: Purcell | X196: 1
A197: 196 | B197: 2003 | C197: ATLARGE | D197: NLHE | E197: NL | G197: 90 | H197: Woods | I197: Jeff | J197: 0 | K197: Jeff Woods | M197: Esparo | N197: Vito | O197: 1 | R197: Meeks | S197: 1 | U197: David Russell | V197: David | W197: Russell | X197: 1
A198: 197 | B198: 2003 | C198: BARGE | D198: HoP | E198: Mixed | G198: 1 | H198: Maurer | I198: Michael | J198: 1919.078092 | K198: Michael Maurer | M198: Evangelista | N198: AJ | O198: 7 | R198: Newberry | S198: 4 | U198: David Soussan | V198: David | W198: Soussan | X198: 5
A199: 198 | B199: 2003 | C199: BARGE | D199: HoP | E199: Mixed | G199: 2 | H199: Friedman | I199: Perry | J199: 1618.048097 | K199: Perry Friedman | M199: Evans | N199: Steven | O199: 2 | R199: Purcell | S199: 1 | U199: David Soussn | V199: David | W199: Soussn | X199: 1
A200: 199 | B200: 2003 | C200: BARGE | D200: HoP | E200: Mixed | G200: 3 | H200: Ankenman | I200: Jerrod | J200: 1441.956838 | K200: Jerrod Ankenman | M200: Even | N200: Beth | O200: 2 | R200: Russell | S200: 1 | U200: David Taylor | V200: David | W200: Taylor | X200: 5
... 3768 more rows

Sheet Name Check
B1: Event | C1: (All) | G1: Event | H1: (All)
B2: Game | C2: (All) | G2: Game | H2: (All)
B3: Generic Game | C3: (All) | G3: Generic Game | H3: (All)
C4: =MAX(C7:C776) -> 0 | H4: =MAX(H7:H776) -> 0
B5: Sum of Points | G5: Sum of Points
A6: Rank | B6: Last | C6: First | D6: Total | F6: Rank | G6: First | H6: Last | I6: Total
A7: 1 | B7: Sun | C7: Spenser | D7: 4696.771261 | F7: 1 | G7: Jan | H7: Fisher | I7: 1230.448921
A8: =A7+1 -> 2 | B8: Abell | C8: Jason | D8: 1417.748402 | F8: =F7+1 -> 2 | H8: Pierce | I8: 3574.005589
A9: =A8+1 -> 3 | B9: Abraham | C9: Susan | D9: 1361.727836 | F9: =F8+1 -> 3 | G9: Aaron | H9: Lion | I9: 7029.518628
A10: 4 | C10: Tom | D10: 4823.779302 | F10: 4 | H10: McCall | I10: 1317.018101
A11: 5 | B11: Adam | C11: Allnight | D11: 1119.475841 | F11: 5 | H11: Rich | I11: 1094.421213
A12: 6 | B12: Adams | C12: Ashley | D12: 5756.951835 | F12: 6 | G12: Abe | H12: Springfield | I12: 425.9687323
A13: 7 | C13: Don | D13: 3744.553742 | F13: 7 | G13: Adam | H13: Bachrach | I13: 17289.61625
A14: 8 | C14: Donald | D14: 870.9053036 | F14: 8 | H14: Buchholz | I14: 1732.39376
A15: 9 | C15: Karen | D15: 6383.336541 | F15: 9 | H15: Haman | I15: 937.8520933
A16: 10 | C16: Stefan | D16: 912.8498243 | F16: 10 | H16: Klatzkin | I16: 168.9126744
A17: 11 | B17: Aguirre | C17: John | D17: 2401.400541 | F17: 11 | H17: Shapiro | I17: 631.6207174
A18: 12 | B18: Alaura | C18: Chris | D18: 4351.881477 | F18: 12 | G18: AJ | H18: Evangelista | I18: 4834.654763
A19: 13 | B19: Albis | C19: David | D19: 2358.375549 | F19: 13 | G19: Al | H19: Weber | I19: 1199.524287
A20: 14 | B20: Allen | C20: Oliver | D20: 903.089987 | F20: 14 | G20: Alan | H20: Bernstein | I20: 1753.791905
A21: 15 | B21: Alonso | C21: Bob | D21: 1041.392685 | F21: 15 | H21: Horn | I21: 1349.763044
A22: 16 | B22: Altner | C22: Bruce | D22: 1748.188027 | F22: 16 | H22: Jaffray | I22: 2153.624343
A23: 17 | C23: Robert | D23: 2424.881637 | F23: 17 | H23: Stuart | I23: 16857.21803
A24: 18 | B24: Amasaki | C24: Jeff | D24: 942.008053 | F24: 18 | H24: Tiger | I24: 3712.778961
A25: 19 | B25: Anderson | C25: Carol | D25: 3031.688063 | F25: 19 | H25: Veach | I25: 2688.493554
A26: 20 | C26: Jared | D26: 13808.74558 | F26: 20 | G26: Alec | H26: Usticke | I26: 789.1466347
A27: 21 | C27: Jim | D27: 10389.83165 | F27: 21 | G27: Alex | H27: Lahoski | I27: 3404.059201
A28: 22 | C28: John | D28: 962.2114391 | F28: 22 | H28: Ziselman | I28: 12327.91735
A29: 23 | B29: Anderson-Goldman | C29: Josh | D29: 997.5805259 | F29: 23 | G29: Alexander | H29: Sam | I29: 1970.55189
A30: 24 | B30: Andrews | C30: Kyle | D30: 559.3080109 | F30: 24 | G30: Allen | H30: Stern | I30: 862.4721361
A31: 25 | B31: Angello | C31: Richard | D31: 945.09913 | F31: 25 | G31: Allnight | H31: Adam | I31: 1119.475841
A32: 26 | B32: Angotti | C32: James | D32: 1998.594623 | F32: 26 | G32: Alpo | H32: Kallio | I32: 3380.430917
A33: 27 | B33: Ankenman | C33: Jerrod | D33: 20165.82076 | F33: 27 | G33: Alvin | H33: West | I33: 2596.930738
A34: 28 | C34: Michelle | D34: 13601.78523 | F34: 28 | G34: Amanda | H34: Richards | I34: 877.6854072
A35: 29 | B35: Aprea | C35: Thomas | D35: 2306.578873 | F35: 29 | G35: Andreas | H35: Wolfram | I35: 11925.98656
A36: 30 | B36: Armistead | C36: Tedford | D36: 11084.5016 | F36: 30 | G36: Andrew | H36: Chapman | I36: 3838.47572
A37: 31 | B37: Aronson | C37: Caryl | D37: 8114.339763 | F37: 31 | H37: Kuttig | I37: 714.0337508
A38: 32 | C38: David | D38: 12809.91986 | F38: 32 | H38: Prock | I38: 18093.03098
A39: 33 | B39: Artigues | C39: Chuck | D39: 3336.009195 | F39: 33 | H39: Richman | I39: 2009.223466
A40: 34 | B40: Augustine | C40: Lennie | D40: 1892.094603 | F40: 34 | H40: Studley | I40: 1146.128036
A41: 35 | B41: Averill | C41: John | D41: 2677.750545 | F41: 35 | G41: Andy | H41: Bartalone | I41: 6645.410321
A42: 36 | B42: Axel | C42: Dennis | D42: 1301.029996 | F42: 36 | H42: Bloch | I42: 7897.421518
A43: 37 | B43: Bachrach | C43: Adam | D43: 17289.61625 | F43: 37 | H43: Hughes | I43: 2643.452676
A44: 38 | B44: Baker | C44: Ed | D44: 3801.515778 | F44: 38 | H44: Latto | I44: 753.3276667
A45: 39 | B45: Baldwin | C45: Harry | D45: 6487.14357 | F45: 39 | G45: Anne | H45: Barylick | I45: 1488.037366
A46: 40 | B46: Ballario | C46: Ralph | D46: 1484.299839 | F46: 40 | G46: Antoinett | H46: Pennington | I46: 2162.080545
A47: 41 | B47: Balter | C47: Jason | D47: 1120.573931 | F47: 41 | G47: Art | H47: Santella | I47: 950.0865497
A48: 42 | B48: Bankston | C48: Jennifer | D48: 946.1246192 | F48: 42 | G48: Arthur | H48: Goltz | I48: 7466.167825
A49: 43 | B49: Barnes | C49: Billy | D49: 965.450731 | F49: 43 | H49: Reber | I49: 1457.377197
A50: 44 | B50: Barrett | C50: Ed | D50: 3661.849075 | F50: 44 | G50: Ashley | H50: Adams | I50: 5756.951835
A51: 45 | C51: Rich | D51: 1678.48343 | F51: 45 | G51: Asya | H51: Kamsky | I51: 8082.488475
A52: 46 | B52: Bartalone | C52: Andy | D52: 6645.410321 | F52: 46 | G52: ATLARGE | H52: NLHE 14th | I52: 1003.091077
A53: 47 | B53: Bartnyk | C53: Steve | D53: 1431.363764 | F53: 47 | H53: NLHE 15th | I53: 973.1278536
A54: 48 | B54: Barylick | C54: Anne | D54: 1488.037366 | F54: 48 | H54: NLHE 16th | I54: 945.09913
A55: 49 | B55: Barzamati | C55: Bobo | D55: 714.0337508 | F55: 49 | H55: Razz/Lowball 5th | I55: 1079.181246
A56: 50 | B56: Baxter | C56: Jeffrey | D56: 1052.529051 | F56: 50 | G56: Aubrey | H56: Kyburz | I56: 1124.938737
A57: 51 | C57: Katie | D57: 13492.68614 | F57: 51 | G57: Barbara | H57: Bowen | I57: 942.008053
A58: 52 | B58: Bayne | C58: Chuck | D58: 5171.68284 | F58: 52 | H58: Gallamore | I58: 1071.063356
A59: 53 | B59: Beadles | C59: Patti | D59: 27115.40715 | F59: 53 | H59: Garrett | I59: 875.0612634
A60: 54 | B60: Beardsley | C60: Grant | D60: 5045.729695 | F60: 54 | H60: Zangaro | I60: 2298.634783
A61: 55 | B61: Beauregard | C61: Ryan | D61: 1021.189299 | F61: 55 | G61: Barry | H61: Gassen | I61: 2388.500839
A62: 56 | B62: Beck | C62: Kent | D62: 1537.119184 | F62: 56 | H62: Kornspan | I62: 26140.99307
A63: 57 | B63: Becker | C63: Mike | D63: 804.9808168 | F63: 57 | H63: Meltzer | I63: 3354.001667
A64: 58 | C64: Rick | D64: 24835.28315 | F64: 58 | H64: Tanenbaum | I64: 7805.555446
A65: 59 | C65: Tracy | D65: 19472.25458 | F65: 59 | G65: Bart | H65: Simpson | I65: 1752.597146
A66: 60 | B66: Behrens | C66: Jeff | D66: 1221.84875 | F66: 60 | G66: Ben | H66: Gamble | I66: 6881.534877
A67: 61 | B67: Benditt | C67: Sandra | D67: 3692.461345 | F67: 61 | H67: Imsdahl | I67: 853.8719643
A68: 62 | B68: Bennett | C68: Steven | D68: 349.4850022 | F68: 62 | H68: Ludlow | I68: 2557.20634
A69: 63 | B69: Bento | C69: Jeff | D69: 1698.970004 | F69: 63 | G69: Bennett | H69: Greenstein | I69: 675.7852697
A70: 64 | B70: Benton | C70: Stephen | D70: 1351.491516 | F70: 64 | G70: Bert | H70: Hackney | I70: 449.0925311
A71: 65 | B71: Berentsen | C71: Guy | D71: 26036.07536 | F71: 65 | G71: Beth | H71: Even | I71: 1720.749779
A72: 66 | B72: Bergman | C72: Robert | D72: 1290.034611 | F72: 66 | G72: Betsy | H72: Wilson | I72: 658.5413473
A73: =A72+1 -> 67 | B73: Bergmann | C73: Todd | D73: 7724.798569 | F73: =F72+1 -> 67 | G73: Betty | H73: Tanenbaum | I73: 4236.212208
A74: 68 | B74: Berman | C74: Joe | D74: 2452.297671 | F74: 68 | G74: Bex | H74: Kerl | I74: 20189.90379
A75: 69 | B75: Bernstein | C75: Alan | D75: 1753.791905 | F75: 69 | G75: BG | H75: Dilworth | I75: 845.09804
A76: 70 | B76: Bessoir | C76: Tom | D76: 18684.34829 | F76: 70 | G76: Bill | H76: Campion | I76: 1732.39376
A77: 71 | B77: Bevan | C77: Rick | D77: 7252.947741 | F77: 71 | H77: Chen | I77: 11744.41874
A78: 72 | B78: Bierman | C78: Larry | D78: 13677.3796 | F78: 72 | H78: Keenan | I78: 2076.155095
A79: 73 | B79: Birchem | C79: Sam | D79: 1707.570176 | F79: 73 | H79: Matros | I79: 1128.064734
A80: 74 | B80: Bjordammen | C80: Steve | D80: 3155.96126 | F80: 74 | G80: Billy | H80: Barnes | I80: 965.450731
A81: 75 | B81: Blackstock | C81: Stephen | D81: 6890.252959 | F81: 75 | H81: Hayes | I81: 778.1512504
A82: 76 | B82: Blau | C82: Seth | D82: 498.0551616 | F82: 76 | G82: Blair | H82: Rodman | I82: 916.4539485
A83: 77 | B83: Bloch | C83: Andy | D83: 7897.421518 | F83: 77 | G83: Bo | H83: Toft | I83: 1811.575006
A84: 78 | B84: Bonaguro | C84: John | D84: 4585.870731 | F84: 78 | G84: Bob | H84: Alonso | I84: 1041.392685
A85: 79 | B85: Borzomati | C85: Robert | D85: 1181.323786 | F85: 79 | H85: Gilbert | I85: 8036.299827
A86: 80 | B86: Bosserman | C86: Tim | D86: 990.2401627 | F86: 80 | H86: Herlien | I86: 13084.1208
A87: 81 | B87: Boston | C87: Sarah | D87: 1397.940009 | F87: 81 | H87: Irons | I87: 5701.805952
A88: 82 | B88: Botwin | C88: Michael | D88: 692.2366217 | F88: 82 | H88: Kelly | I88: 1049.771617
A89: 83 | B89: Bounds | C89: Debra | D89: 2079.181246 | F89: 83 | H89: Lauria | I89: 27914.37702
A90: 84 | B90: Bowen | C90: Barbara | D90: 942.008053 | F90: 84 | H90: Maher | I90: 3196.511738
A91: 85 | C91: Frank | D91: 1410.174465 | F91: 85 | H91: Ogus | I91: 18922.5655
A92: 86 | B92: Boyett | C92: Drew | D92: 2297.12191 | F92: 86 | G92: Bobo | H92: Barzamati | I92: 714.0337508
A93: 87 | B93: Brabec | C93: Frank | D93: 6335.3592 | F93: 87 | G93: Bogan | H93: Painter | I93: 852.7848687
A94: 88 | C94: Sheri | D94: 903.089987 | F94: 88 | G94: Brad | H94: Edmonds | I94: 6961.448148
A95: 89 | B95: Bragg | C95: Dennis | D95: 229.9666398 | F95: 89 | G95: Brandon | H95: Gerson | I95: 5257.144281
A96: 90 | B96: Braud | C96: Stephen | D96: 829.3037728 | F96: 90 | H96: Oberling | I96: 1086.359831
A97: 91 | B97: Bremer | C97: Richard | D97: 77674.66368 | F97: 91 | H97: Schaeffer | I97: 1502.42712
A98: 92 | B98: Brennan | C98: Michael | D98: 2483.720988 | F98: 92 | H98: Spears | I98: 1832.508913
A99: 93 | B99: Brennan | C99: Michael | D99: 1064.457989 | F99: 93 | G99: Bree | H99: Goldman | I99: 8910.971282
A100: 94 | B100: Brestak | C100: Roger | D100: 1151.267675 | F100: 94 | G100: Brenda | H100: Mowrey | I100: 10145.99967
A101: 95 | B101: Bright | C101: Richard | D101: 1049.218023 | F101: 95 | G101: Brentt | H101: Phillips | I101: 1301.029996
A102: 96 | B102: Brod | C102: Deron | D102: 9666.722602 | F102: 96 | G102: Brett | H102: Pisor | I102: 1153.814864
A103: 97 | B103: Brodie | C103: Richard | D103: 7114.594708 | F103: 97 | G103: Brian | H103: Connolly | I103: 893.9466076
A104: 98 | B104: Brown | C104: Gloria | D104: 2710.247759 | F104: 98 | H104: Goetz | I104: 862.4721361
A105: 99 | C105: Winchester | D105: 1263.169639 | F105: 99 | H105: Goldstein | I105: 1156.347201
A106: 100 | B106: Bruegger | C106: Frank | D106: 9563.586658 | F106: 100 | H106: Hackett | I106: 5093.25229
A107: 101 | B107: Bryson | C107: Todd | D107: 1044.41914 | F107: 101 | H107: Judd | I107: 1272.474535
A108: 102 | B108: Buchholz | C108: Adam | D108: 1732.39376 | F108: 102 | H108: O'Grady | I108: 1826.074803
A109: 103 | B109: Buijs | C109: Cornelius | D109: 1033.423755 | F109: 103 | H109: Reeve | I109: 1255.272505
A110: 104 | B110: Bullard | C110: Jim | D110: 12049.50619 | F110: 104 | G110: Bruce | H110: Altner | I110: 1748.188027
A111: 105 | B111: Buono | C111: Mike | D111: 868.3278807 | F111: 105 | H111: Iwamoto | I111: 4428.890131
A112: 106 | B112: Burns | C112: Jazbo | D112: 4842.984825 | F112: 106 | H112: Kramer | I112: 16367.57854
A113: 107 | B113: Burrington | C113: Scott | D113: 1386.201605 | F113: 107 | G113: Bryan | H113: Juliano | I113: 8936.938312
A114: 108 | B114: Busch | C114: Marion | D114: 1565.147908 | F114: 108 | H114: Slick | I114: 2704.046755
A115: 109 | B115: Byron | C115: Scott | D115: 37619.1855 | F115: 109 | G115: C | H115: Conner | I115: 1068.715812
A116: 110 | B116: Caldes | C116: Peter | D116: 7695.079547 | F116: 110 | G116: Candy | H116: Koepke | I116: 2315.485912
A117: 111 | B117: Caldwell | C117: John | D117: 1547.159121 | F117: 111 | G117: Carl | H117: Lepinski | I117: 2099.102531
A118: 112 | B118: Calkins | C118: Jeff | D118: 7781.780677 | F118: 112 | G118: Carlos | H118: Lobato | I118: 3667.266119
A119: 113 | C119: Lauri | D119: 5724.665051 | F119: 113 | G119: Carol | H119: Anderson | I119: 3031.688063
A120: 114 | B120: Campbell | C120: John | D120: 2550.053551 | F120: 114 | H120: Kline | I120: 3992.086215
A121: 115 | C121: Robert | D121: 1070.037867 | F121: 115 | G121: Cary | H121: Flynn | I121: 2908.790537
A122: 116 | B122: Campion | C122: Bill | D122: 1732.39376 | F122: 116 | G122: Caryl | H122: Aronson | I122: 8114.339763
A123: 117 | B123: Canalichio | C123: Scott | D123: 1342.422681 | F123: 117 | G123: Charles | H123: Haynes | I123: 1000
A124: 118 | B124: Canning | C124: Peter | D124: 3145.394095 | F124: 118 | H124: Hennessey | I124: 2121.711325
A125: 119 | B125: Capps | C125: Jesse | D125: 17266.89258 | F125: 119 | H125: Sawyer | I125: 1093.421685
A126: 120 | B126: Carbonara | C126: Stephen | D126: 1811.263179 | F126: 120 | H126: Stack | I126: 884.6065813
A127: 121 | B127: Carlson | C127: Claude | D127: 4682.846656 | F127: 121 | H127: Stillman | I127: 1010.723865
A128: 122 | B128: Carstens | C128: Chris | D128: 985.2767432 | F128: 122 | H128: Zino | I128: 2729.904959
A129: 123 | B129: Castagna | C129: Frank | D129: 1037.426498 | F129: 123 | G129: Charlie | H129: Mathis | I129: 1462.397998
A130: 124 | B130: Catlett | C130: Joel | D130: 692.2366217 | F130: 124 | H130: Peck | I130: 903.089987
A131: 125 | C131: Robert | D131: 6566.107059 | F131: 125 | G131: Chet | H131: Frederick | I131: 1169.280908
A132: 126 | B132: Cegielski | C132: Michael | D132: 1740.362689 | F132: 126 | G132: Chic | H132: Natkins | I132: 21699.34848
A133: 127 | B133: Centeno | C133: Jay | D133: 1233.63058 | F133: 127 | G133: Chieu | H133: Tran | I133: 1452.297671
A134: 128 | B134: Chakoian | C134: Paul | D134: 9585.266481 | F134: 128 | G134: Chip | H134: Rosenberg | I134: 1874.529809
A135: 129 | B135: Chamberlain | C135: Fern | D135: 2531.50094 | F135: 129 | G135: Chris | H135: Alaura | I135: 4351.881477
A136: 130 | B136: Chan | C136: David | D136: 1755.874856 | F136: 130 | H136: Carstens | I136: 985.2767432
A137: =A136+1 -> 131 | C137: Terrence | D137: 3081.427573 | F137: =F136+1 -> 131 | H137: Jepsen | I137: 8875.923015
A138: 132 | B138: Chang | C138: Kathy | D138: 11604.66948 | F138: 132 | H138: Kluchman | I138: 12974.23705
A139: 133 | B139: Chapman | C139: Andrew | D139: 3838.47572 | F139: 133 | H139: Kojak | I139: 1028.028724
A140: 134 | B140: Charles | C140: Rick | D140: 6993.221313 | F140: 134 | H140: Mecklin | I140: 30760.90778
A141: 135 | B141: Chase | C141: Scott | D141: 991.7796698 | F141: 135 | H141: Mlinarich | I141: 2750.604808
A142: 136 | B142: Chen | C142: Bill | D142: 11744.41874 | F142: 136 | H142: O’Connor | I142: 27717.53738
A143: 137 | C143: Rodney | D143: 11335.8628 | F143: 137 | H143: Quan | I143: 3324.693914
A144: 138 | B144: Cheng | C144: Dylan | D144: 123.2389517 | F144: 138 | H144: Raimondi | I144: 3645.104009
A145: 139 | B145: Chesser | C145: John | D145: 1683.237598 | F145: 139 | H145: Richards | I145: 9112.337425
A146: 140 | B146: Chevrie | C146: Dan | D146: 2309.630167 | F146: 140 | H146: Sims | I146: 1423.245874
A147: 141 | B147: Chosky | C147: Marvin | D147: 734.3997425 | F147: 141 | H147: Straghalis | I147: 7022.960895
A148: 142 | B148: Chow | C148: Michael | D148: 1275.475891 | F148: 142 | H148: Wilson | I148: 1301.029996
A149: 143 | B149: Christensen | C149: Monte | D149: 5446.44935 | F149: 143 | G149: Christian | H149: Jones | I149: 21639.04904
A150: 144 | B150: Christenson | C150: Nick | D150: 11865.73309 | F150: 144 | G150: Christin | H150: Maschmann | I150: 1946.149832
A151: 145 | B151: Chung | C151: Sam | D151: 875.0612634 | F151: 145 | G151: Christopher | H151: Garman | I151: 1243.038049
A152: 146 | B152: Ciotti | C152: Joyce | D152: 7671.605629 | F152: 146 | H152: Kuntz | I152: 7825.238182
A153: 147 | B153: Clayton | C153: Steve | D153: 2390.430407 | F153: 147 | H153: Smith | I153: 1452.297671
A154: 148 | B154: Coates | C154: David | D154: 7557.012598 | F154: 148 | G154: Chuck | H154: Artigues | I154: 3336.009195
A155: 149 | C155: DJ | D155: 602.0599913 | F155: 149 | H155: Bayne | I155: 5171.68284
A156: 150 | B156: Cohen | C156: Jonathan | D156: 176.0912591 | F156: 150 | H156: Humphrey | I156: 11357.62697
A157: 151 | C157: Stephen | D157: 4847.949761 | F157: 151 | H157: Weinstock | I157: 11096.76424
A158: 152 | B158: Coles | C158: Eugene | D158: 1204.119983 | F158: 152 | G158: Cindy | H158: Morales | I158: 391.206626
A159: 153 | B159: Colfer | C159: Dominic | D159: 1052.660454 | F159: 153 | G159: Claude | H159: Carlson | I159: 4682.846656
A160: 154 | B160: Collack | C160: Randy | D160: 17140.23364 | F160: 154 | G160: Claudia | H160: Mastroianni | I160: 9041.573763
A161: 155 | B161: Collins | C161: Doug | D161: 991.7796698 | F161: 155 | G161: Cliff | H161: Matthews | I161: 11587.51699
A162: 156 | B162: Condit | C162: Don | D162: 6182.873814 | F162: 156 | G162: Clinton | H162: Lanphier | I162: 1814.827102
A163: 157 | B163: Conlon | C163: Kevin | D163: 9395.953196 | F163: 157 | G163: Cole | H163: Stewart | I163: 2349.693718
A164: 158 | B164: Connelly | C164: James | D164: 925.7539716 | F164: 158 | G164: Colleen | H164: McGraham | I164: 1778.15125
A165: 159 | B165: Conner | C165: C | D165: 1068.715812 | F165: 159 | G165: Connie | H165: Hackett | I165: 349.4850022
A166: 160 | B166: Connolly | C166: Brian | D166: 893.9466076 | F166: 160 | H166: Henriques | I166: 1414.973348
A167: 161 | B167: Connors | C167: Mike | D167: 1759.667845 | F167: 161 | H167: Kellers | I167: 4363.289241
A168: 162 | B168: Conrad | C168: Stacy | D168: 1350.801612 | F168: 162 | G168: Corey | H168: Imsdahl | I168: 28302.22054
A169: 163 | B169: Constandino | C169: William | D169: 1195.899652 | F169: 163 | H169: Means | I169: 1041.392685
A170: 164 | B170: Cooke | C170: Roy | D170: 1149.561212 | F170: 164 | G170: Corky | H170: Parks | I170: 653.2125138
A171: 165 | B171: Corral | C171: Tony | D171: 1653.212514 | F171: 165 | G171: Cory | H171: Cunningham | I171: 778.1512504
A172: 166 | B172: Cosgrove | C172: Pat | D172: 1350.801612 | F172: 166 | G172: Craig | H172: Mordock | I172: 2032.081268
A173: 167 | B173: Crane | C173: Rod | D173: 982.271233 | F173: 167 | G173: Crystal | H173: Haggard | I173: 1718.778398
A174: 168 | B174: Crocker | C174: Lee | D174: 5987.169048 | F174: 168 | G174: Cynthia | H174: Yannette | I174: 4237.192008
A175: 169 | B175: Croson | C175: David | D175: 4716.66529 | F175: 169 | G175: Dan | H175: Chevrie | I175: 2309.630167
A176: 170 | B176: Cunningham | C176: Cory | D176: 778.1512504 | F176: 170 | H176: Goldman | I176: 44452.48722
A177: 171 | B177: Curtis | C177: Ryan | D177: 932.6005845 | F177: 171 | H177: Loncarcic | I177: 3129.190121
A178: 172 | B178: Cusson | C178: Leo | D178: 404.0572369 | F178: 172 | H178: Melbourne | I178: 2037.53716
A179: 173 | B179: Daiell | C179: Noah | D179: 2918.057701 | F179: 173 | H179: Nussbaum | I179: 18017.88719
A180: 174 | B180: Dalla | C180: Nolan | D180: 32122.07837 | F180: 174 | G180: Daniel | H180: Fox | I180: 1505.149978
A181: 175 | B181: D'Amaro | C181: Jerry | D181: 1255.272505 | F181: 175 | H181: Gerard | I181: 1799.340549
A182: 176 | B182: Daniel | C182: Steve | D182: 48605.52747 | F182: 176 | H182: Lykins | I182: 1643.452676
A183: 177 | B183: D'Anna | C183: Tony | D183: 1380.211242 | F183: 177 | G183: Danny | H183: Hofer | I183: 422.54902
A184: 178 | B184: David | C184: Jeanne | D184: 26953.45557 | F184: 178 | H184: Sprung | I184: 2375.663614
A185: 179 | B185: Davidson | C185: Martin | D185: 935.7591037 | F185: 179 | G185: Darlene | H185: Springman | I185: 5467.628461
A186: 180 | B186: Davis | C186: Jeff | D186: 1060.69784 | F186: 180 | G186: Darryl | H186: Osborne | I186: 587.3367345
A187: 181 | C187: John | D187: 4275.541688 | F187: 181 | G187: Dave | H187: Marshall | I187: 1410.174465
A188: 182 | C188: Mike | D188: 1439.332694 | F188: 182 | H188: McVay | I188: 2855.59041
A189: 183 | B189: Day | C189: Steve | D189: 2595.71662 | F189: 183 | H189: O'Grady | I189: 5211.430884
A190: 184 | B190: Debnam | C190: Mike | D190: 206.0544824 | F190: 184 | H190: Orr | I190: 1556.302501
A191: 185 | B191: DeBoo | C191: Joshua | D191: 2234.244644 | F191: 185 | H191: Raszewski | I191: 804.4801891
A192: 186 | B192: Deitch | C192: Jeff | D192: 11561.23159 | F192: 186 | H192: Roemer | I192: 1199.923868
A193: 187 | B193: Delaino | C193: Tom | D193: 1676.876432 | F193: 187 | H193: Spencer | I193: 1963.247996
A194: 188 | B194: Derkatch | C194: Lon | D194: 1102.662342 | F194: 188 | H194: Tahajian | I194: 18933.86504
A195: 189 | B195: DeRose | C195: John | D195: 6651.798528 | F195: 189 | H195: Tall | I195: 1116.026303
A196: 190 | B196: Desmond-Rowan | C196: Maggie | D196: 483.0708664 | F196: 190 | G196: David | H196: Albis | I196: 2358.375549
A197: 191 | B197: Devenport | C197: Jordan | D197: 9964.473256 | F197: 191 | H197: Aronson | I197: 12809.91986
A198: 192 | B198: DeVitto | C198: Gabe | D198: 3136.720567 | F198: 192 | H198: Chan | I198: 1755.874856
A199: 193 | B199: Diamondhead | C199: John | D199: 508.1554885 | F199: 193 | H199: Coates | I199: 7557.012598
A200: 194 | B200: Diaz | C200: Russell | D200: 2049.218023 | F200: 194 | H200: Croson | I200: 4716.66529
... 662 more rows

Sheet LIsts
AJ1: Year | AK1: (All) | AN1: Year | AO1: (All) | AR1: Year | AS1: (All) | AU1: Year | AV1: (All)
C2: Event | D2: (All) | AJ2: Event | AK2: (All) | AN2: Event | AO2: (All) | AR2: Event | AS2: (All) | AU2: Event | AV2: (All)
C3: Game | D3: (All) | AJ3: Game | AK3: (All) | AN3: Game | AO3: (All) | AR3: Game | AS3: (All) | AU3: Game | AV3: (All)
C4: Generic Game | D4: (All) | AC4: Annual All ARGE BAAP Winners | AJ4: Generic Game | AK4: (All) | AN4: Generic Game | AO4: (All) | AR4: Generic Game | AS4: (All) | AU4: Generic Game | AV4: (All)
D5: =MAX(D8:D777) -> 6647.232165 | E5: =MAX(E8:E777) -> 9021.497637 | F5: 5820.391955 | G5: 5732.727081 | H5: 7578.822348 | I5: 5493.611386 | J5: 4375.846436 | K5: 4292.059068 | L5: 5841.498511 | M5: 4283.998027 | N5: 4102.845164 | O5: 5855.339482 | P5: 6356.901925 | Q5: 6493.926251 | R5: 7075.480243 | S5: 7276.541211 | T5: 5504.062883 | U5: 10360.86696 | V5: 6023.959927 | W5: 5690.878007 | X5: 8458.331418 | Y5: 8374.841874 | AC5: Year | AD5: Name | AE5: Points | AK5: =MAX(AK8:AK777) -> 77674.66368 | AO5: =MAX(AO8:AO777) -> 61 | AS5: =MAX(AS8:AS777) -> 53926.5 | AU5: Place | AV5: 3 | BC5: =MAX(BC8:BC777) -> 0 | BD5: 0 | BE5: 0 | BF5: 0 | BG5: 0 | BH5: 0 | BI5: 0 | BJ5: 0 | BK5: 0 | BL5: 0 | BM5: 0 | BN5: 0
C6: Sum of Points | D6: Year | AC6: 2003 | AD6: Russell Fox | AE6: 6647.232165 | AJ6: Sum of Points | AN6: Number of Cashes | AR6: Sum of Money
A7: Select | B7: Rank | C7: Name | D7: 2003 | E7: 2004 | F7: 2005 | G7: 2006 | H7: 2007 | I7: 2008 | J7: 2009 | K7: 2010 | L7: 2011 | M7: 2012 | N7: 2013 | O7: 2014 | P7: 2015 | Q7: 2016 | R7: 2017 | S7: 2018 | T7: 2019 | U7: 2020 | V7: 2021 | W7: 2022 | X7: 2023 | Y7: 2024 | Z7: Grand Total | AC7: 2004 | AD7: Sabyl Landrum | AE7: 9021.497637 | AI7: Rank | AJ7: Name | AK7: Total | AM7: Rank | AN7: Name | AO7: Total | AR7: Name | AS7: Total | AU7: Number of Finishes
B8: 1 | C8: Richard Bremer | G8: 1124.938737 | H8: 2587.189627 | K8: 4292.059068 | L8: 3439.64843 | M8: 3648.540526 | N8: 2834.208698 | O8: 2084.933575 | P8: 5369.406515 | Q8: 2498.310554 | R8: 7075.480243 | S8: 7221.930389 | T8: 2737.192643 | U8: 10360.86696 | V8: 3447.158031 | W8: 2144.262774 | X8: 8458.331418 | Y8: 8350.205498 | Z8: 77674.66368 | AC8: 2005 | AD8: Ross Poppel | AE8: 5820.391955 | AI8: 1 | AJ8: Richard Bremer | AK8: 77674.66368 | AM8: 1 | AN8: Richard Bremer | AO8: 61 | AR8: Richard Bremer | AS8: 53926.5 | AU8: Name | AV8: Total
B9: =B8+1 -> 2 | C9: Russell Fox | D9: 6647.232165 | E9: 2825.750581 | F9: 1332.43846 | G9: 1595.181173 | H9: 869.2317197 | J9: 1372.385904 | L9: 2273.232834 | M9: 1022.565828 | N9: 990.2401627 | P9: 4417.45324 | Q9: 1139.879086 | S9: 2194.976603 | T9: 2587.710965 | U9: 5726.270675 | V9: 1903.993826 | W9: 3595.771702 | X9: 7231.749854 | Y9: 3068.616231 | Z9: 50794.68101 | AC9: 2006 | AD9: Kenny Shei | AE9: 5732.727081 | AI9: =AI8+1 -> 2 | AJ9: Russell Fox | AK9: 50794.68101 | AM9: =AM8+1 -> 2 | AN9: Steve Daniel | AO9: 48 | AR9: Ron Grossberg | AS9: 29870 | AU9: Steve Daniel | AV9: 10
B10: =B9+1 -> 3 | C10: Steve Daniel | D10: 3258.657103 | E10: 1550.506734 | F10: 1365.794383 | H10: 2183.032459 | I10: 1107.826427 | L10: 1939.519253 | M10: 1012.234456 | N10: 806.179974 | O10: 1161.368002 | P10: 913.8138524 | R10: 5090.67533 | S10: 7276.541211 | T10: 5504.062883 | U10: 451.5449935 | V10: 5334.74976 | W10: 5690.878007 | X10: 1598.425707 | Y10: 2359.716936 | Z10: 48605.52747 | AC10: 2007 | AD10: Kenny Shei | AE10: 7578.822348 | AI10: =AI9+1 -> 3 | AJ10: Steve Daniel | AK10: 48605.52747 | AM10: =AM9+1 -> 3 | AN10: Russell Fox | AO10: 44 | AR10: Len Greenberg | AS10: 28767 | AU10: Richard Bremer | AV10: 7
B11: 4 | C11: Ron Grossberg | I11: 1444.565221 | L11: 1245.512668 | M11: 1210.853365 | N11: 1531.478917 | P11: 2431.765703 | Q11: 5161.966616 | R11: 4787.208893 | S11: 3626.709823 | T11: 2511.883361 | U11: 3075.546961 | V11: 3937.643248 | W11: 3106.672424 | X11: 7171.204402 | Y11: 6033.260728 | Z11: 47276.27233 | AC11: 2008 | AD11: Lawrence Larson | AE11: 5493.611386 | AI11: 4 | AJ11: Ron Grossberg | AK11: 47276.27233 | AM11: 4 | AN11: Dan Goldman | AO11: 41 | AR11: Bob Lauria | AS11: 26221 | AU11: Sabyl Landrum | AV11: 7
B12: 5 | C12: Dan Goldman | D12: 763.4279936 | E12: 1303.735889 | F12: 795.8800173 | G12: 2598.093804 | J12: 903.089987 | L12: 1732.39376 | M12: 2070.477659 | N12: 2065.526365 | O12: 954.2425094 | P12: 1875.061263 | Q12: 1245.512668 | R12: 1414.973348 | S12: 4246.129126 | T12: 1907.650181 | U12: 4979.179477 | V12: 1983.175072 | W12: 4192.795704 | X12: 2781.35639 | Y12: 6639.786009 | Z12: 44452.48722 | AC12: 2009 | AD12: Tina Gonzalez | AE12: 4375.846436 | AI12: 5 | AJ12: Dan Goldman | AK12: 44452.48722 | AM12: 5 | AN12: Ron Grossberg | AO12: 39 | AR12: Russell Fox | AS12: 25912 | AU12: Dan Goldman | AV12: 6
B13: 6 | C13: Sabyl Landrum | D13: 3153.707286 | E13: 9021.497637 | F13: 5633.526165 | G13: 5347.442023 | H13: 1119.052758 | J13: 947.2936495 | K13: 2783.903579 | L13: 1342.422681 | P13: 1271.066772 | Q13: 954.2425094 | S13: 1857.332496 | T13: 1869.23172 | U13: 1472.268752 | V13: 2847.572659 | X13: 1133.538908 | Y13: 2221.76978 | Z13: 42975.86938 | AC13: 2010 | AD13: Richard Bremer | AE13: 4292.059068 | AI13: 6 | AJ13: Sabyl Landrum | AK13: 42975.86938 | AM13: 6 | AN13: Scott Byron | AO13: 36 | AR13: Sabyl Landrum | AS13: 24769 | AU13: Oliver Juang | AV13: 5
B14: 7 | C14: Scott Byron | D14: 2345.025229 | E14: 1350.801612 | J14: 678.4483372 | L14: 1550.228353 | M14: 977.7236053 | O14: 3670.251073 | P14: 5299.83317 | Q14: 1591.064607 | S14: 1033.423755 | T14: 5206.920278 | U14: 2665.824566 | V14: 1384.247108 | W14: 2334.453751 | X14: 6694.79686 | Y14: 836.1431974 | Z14: 37619.1855 | AC14: 2011 | AD14: Bob Lauria | AE14: 5841.498511 | AI14: 7 | AJ14: Scott Byron | AK14: 37619.1855 | AM14: 7 | AN14: Sabyl Landrum | AO14: 35 | AR14: Steve Daniel | AS14: 21589 | AU14: Ken Kubey | AV14: 5
B15: 8 | C15: Kenny Shei | D15: 349.6353291 | G15: 5732.727081 | H15: 7578.822348 | J15: 2502.187157 | K15: 1252.853031 | P15: 3621.384028 | Q15: 4878.317437 | R15: 2153.919672 | S15: 1431.363764 | T15: 4506.910726 | U15: 2333.303302 | W15: 919.0780924 | Z15: 37260.50197 | AC15: 2012 | AD15: Pete Segal | AE15: 4283.998027 | AI15: 8 | AJ15: Kenny Shei | AK15: 37260.50197 | AM15: 8 | AN15: Kenny Shei | AO15: 34 | AR15: Dan Goldman | AS15: 21385 | AU15: Jared Anderson | AV15: 5
B16: 9 | C16: David Lawful | N16: 4102.845164 | O16: 5855.339482 | P16: 2644.438589 | Q16: 2773.347542 | R16: 6289.491404 | S16: 1326.335861 | T16: 2124.99302 | U16: 3269.012317 | V16: 2003.460532 | W16: 4097.326736 | Z16: 34486.59065 | AC16: 2013 | AD16: David Lawful | AE16: 4102.845164 | AI16: 9 | AJ16: David Lawful | AK16: 34486.59065 | AM16: 9 | AN16: Pete Segal | AO16: 32 | AR16: David Kluchman | AS16: 20977.5 | AU16: Nolan Dalla | AV16: 5
B17: 10 | C17: Dean Kerl | M17: 1072.550667 | P17: 2297.395711 | Q17: 5586.90597 | R17: 2096.214585 | S17: 931.1187106 | T17: 2334.453751 | U17: 2716.003344 | V17: 6023.959927 | W17: 5638.740775 | X17: 3404.406051 | Y17: 1033.423755 | Z17: 33135.17325 | AC17: 2014 | AD17: David Lawful | AE17: 5855.339482 | AI17: 10 | AJ17: Dean Kerl | AK17: 33135.17325 | AM17: 10 | AN17: Linda Lewis | AO17: 31 | AR17: Kenny Shei | AS17: 20645 | AU17: Linda Lewis | AV17: 5
B18: 11 | C18: Linda Lewis | D18: 1589.956271 | E18: 761.7608342 | F18: 870.1813447 | G18: 1154.90196 | I18: 2056.904851 | L18: 525.5762612 | M18: 2927.370363 | N18: 1419.129308 | O18: 903.089987 | P18: 942.008053 | Q18: 6493.926251 | R18: 3119.228949 | T18: 1501.74373 | U18: 4520.932474 | V18: 1342.422681 | W18: 1135.662602 | X18: 1204.119983 | Z18: 32468.9159 | AC18: 2015 | AD18: Nolan Dalla | AE18: 6356.901925 | AI18: 11 | AJ18: Linda Lewis | AK18: 32468.9159 | AM18: 11 | AN18: Barry Kornspan | AO18: 31 | AR18: Scott Byron | AS18: 19833 | AU18: Randy Collack | AV18: 4
B19: 12 | C19: Len Greenberg | D19: 64.11749961 | E19: 1140.926842 | F19: 719.6663469 | G19: 1894.869657 | H19: 1057.539321 | K19: 2125.216778 | L19: 5105.850674 | M19: 1556.302501 | O19: 872.4211672 | Q19: 3676.121793 | S19: 1548.184611 | T19: 2179.898776 | W19: 2490.469264 | X19: 3623.24929 | Y19: 4283.126984 | Z19: 32337.96151 | AC19: 2016 | AD19: Linda Lewis | AE19: 6493.926251 | AI19: 12 | AJ19: Len Greenberg | AK19: 32337.96151 | AM19: 12 | AN19: David Low | AO19: 30 | AR19: David Lawful | AS19: 19444 | AU19: Alan Stuart | AV19: 4
B20: 13 | C20: Nolan Dalla | F20: 1000 | G20: 1467.361417 | H20: 2921.066851 | I20: 1309.630167 | L20: 3384.801279 | M20: 1235.528447 | N20: 1972.511396 | P20: 6356.901925 | Q20: 1100.370545 | S20: 1012.234456 | T20: 2307.923704 | V20: 2882.334765 | W20: 1462.397998 | X20: 2920.645001 | Y20: 788.3704156 | Z20: 32122.07837 | AC20: 2017 | AD20: Richard Bremer | AE20: 7075.480243 | AI20: 13 | AJ20: Nolan Dalla | AK20: 32122.07837 | AM20: 13 | AN20: David Kuznick | AO20: 30 | AR20: Dean Kerl | AS20: 19269 | AU20: Stevan Goldman | AV20: 4
B21: 14 | C21: David Low | I21: 1031.408464 | J21: 678.4483372 | L21: 1740.362689 | M21: 1278.753601 | N21: 1091.080469 | O21: 3931.925477 | P21: 1084.320886 | Q21: 4190.205034 | R21: 3546.683645 | S21: 2513.159728 | T21: 954.2425094 | U21: 2545.307116 | V21: 1893.553047 | W21: 662.7578317 | X21: 3088.04563 | Y21: 1694.605199 | Z21: 31924.85966 | AC21: 2018 | AD21: Steve Daniel | AE21: 7276.541211 | AI21: 14 | AJ21: David Low | AK21: 31924.85966 | AM21: 14 | AN21: Dean Kerl | AO21: 29 | AR21: Linda Lewis | AS21: 19078 | AU21: Chris Mecklin | AV21: 4
B22: 15 | C22: Chris Mecklin | I22: 1633.468456 | K22: 3236.20125 | L22: 3706.575554 | M22: 1414.973348 | N22: 1439.332694 | O22: 1275.88696 | P22: 3161.068385 | Q22: 3834.102656 | R22: 3597.695186 | S22: 1602.059991 | T22: 892.0946027 | U22: 3638.389978 | V22: 1329.058719 | Z22: 30760.90778 | AC22: 2019 | AD22: Steve Daniel | AE22: 5504.062883 | AI22: 15 | AJ22: Chris Mecklin | AK22: 30760.90778 | AM22: 15 | AN22: Ken Kubey | AO22: 28 | AR22: Chris Mecklin | AS22: 18852 | AU22: Paul McMullin | AV22: 4
B23: 16 | C23: Pete Segal | D23: 475.4540954 | E23: 2461.765231 | F23: 1217.483944 | H23: 793.1284064 | I23: 826.45593 | J23: 434.6158599 | K23: 3239.906021 | L23: 948.1683617 | M23: 4283.998027 | O23: 1740.608282 | P23: 1959.53695 | Q23: 963.7878273 | R23: 884.6065813 | S23: 1278.753601 | T23: 3634.743636 | U23: 845.09804 | W23: 1102.662342 | Y23: 2954.958357 | Z23: 30045.73149 | AC23: 2020 | AD23: Richard Bremer | AE23: 10360.86696 | AI23: 16 | AJ23: Pete Segal | AK23: 30045.73149 | AM23: 16 | AN23: Len Greenberg | AO23: 28 | AR23: Nolan Dalla | AS23: 17275 | AU23: David Kuznick | AV23: 4
B24: 17 | C24: Ken Kubey | D24: 1220.108088 | F24: 948.1683617 | I24: 1457.377197 | J24: 1240.96504 | N24: 1170.261715 | O24: 2230.12947 | P24: 1904.850734 | Q24: 1623.24929 | R24: 832.5089127 | S24: 1990.240163 | T24: 3119.823537 | U24: 4367.014194 | V24: 4331.427297 | W24: 884.6065813 | X24: 853.8719643 | Y24: 1797.325258 | Z24: 29971.9278 | AC24: 2021 | AD24: Dean Kerl | AE24: 6023.959927 | AI24: 17 | AJ24: Ken Kubey | AK24: 29971.9278 | AM24: 17 | AN24: David Lawful | AO24: 28 | AR24: Paul McMullin | AS24: 16348 | AU24: Ross Poppel | AV24: 4
B25: 18 | C25: David Kluchman | I25: 1755.874856 | J25: 3432.697132 | K25: 4230.172077 | L25: 3467.361417 | N25: 2482.873584 | P25: 1031.408464 | R25: 2600.609925 | S25: 3151.629109 | U25: 2229.786703 | X25: 4322.557434 | Y25: 1156.347201 | Z25: 29861.3179 | AC25: 2022 | AD25: Steve Daniel | AE25: 5690.878007 | AI25: 18 | AJ25: David Kluchman | AK25: 29861.3179 | AM25: 18 | AN25: Rick Becker | AO25: 27 | AR25: David Low | AS25: 16336 | AU25: David Low | AV25: 4
B26: 19 | C26: Corey Imsdahl | E26: 681.2412374 | G26: 1338.456494 | H26: 916.4539485 | J26: 1621.176282 | L26: 1981.592117 | M26: 1088.136089 | N26: 1267.171728 | O26: 2168.497484 | P26: 4687.164072 | Q26: 1767.155866 | R26: 1342.422681 | T26: 732.3937598 | U26: 2577.778937 | V26: 1096.910013 | W26: 2440.909082 | X26: 2594.760753 | Z26: 28302.22054 | AC26: 2023 | AD26: Richard Bremer | AE26: 8458.331418 | AI26: 19 | AJ26: Corey Imsdahl | AK26: 28302.22054 | AM26: 19 | AN26: Nolan Dalla | AO26: 27 | AR26: Corey Imsdahl | AS26: 15662 | AU26: Michael Klein | AV26: 4
B27: 20 | C27: Bob Lauria | G27: 1470.699419 | H27: 5396.060208 | I27: 3013.611864 | J27: 2372.819049 | K27: 1418.162058 | L27: 5841.498511 | N27: 1857.332496 | O27: 4692.527468 | P27: 834.6326063 | Y27: 1017.033339 | Z27: 27914.37702 | AC27: 2024 | AD27: =C61 -> Dan Nussbaum | AE27: =Y61 -> 8374.841874 | AI27: 20 | AJ27: Bob Lauria | AK27: 27914.37702 | AM27: 20 | AN27: Jeanne David | AO27: 26 | AR27: Pete Segal | AS27: 15446 | AU27: Dean Kerl | AV27: 4
B28: 21 | C28: Chris O’Connor | D28: 919.4804032 | F28: 631.6207174 | G28: 1033.423755 | J28: 2664.171705 | K28: 3478.107168 | M28: 2760.422483 | N28: 2775.65595 | O28: 1556.302501 | P28: 2732.526623 | Q28: 3772.266308 | R28: 2499.687083 | S28: 924.2792861 | U28: 995.1474972 | V28: 974.4458955 | Z28: 27717.53738 | AI28: 21 | AJ28: Chris O’Connor | AK28: 27717.53738 | AM28: 21 | AN28: Chic Natkins | AO28: 25 | AR28: Chris O’Connor | AS28: 14341 | AU28: Nolan Hee | AV28: 4
B29: 22 | C29: David Kuznick | D29: 2524.984673 | E29: 3203.078237 | F29: 2347.999453 | G29: 2024.823584 | H29: 1625.164814 | I29: 1959.041392 | J29: 2528.273777 | K29: 1045.322979 | L29: 1301.029996 | M29: 918.7701913 | N29: 1198.657087 | O29: 1776.407086 | R29: 530.3489202 | S29: 2326.556618 | U29: 389.0756252 | V29: 1041.392685 | X29: 715.6818821 | Z29: 27456.609 | AI29: 22 | AJ29: David Kuznick | AK29: 27456.609 | AM29: 22 | AN29: Chris O’Connor | AO29: 25 | AR29: David Kuznick | AS29: 13808 | AU29: J P Massar | AV29: 4
B30: 23 | C30: Patti Beadles | D30: 2545.837067 | E30: 2871.536546 | G30: 2346.539247 | H30: 1929.418926 | L30: 1013.161446 | M30: 1230.448921 | N30: 1204.119983 | O30: 1161.368002 | P30: 1311.753861 | R30: 1166.331422 | S30: 1739.233184 | T30: 1024.622475 | U30: 887.2957198 | V30: 2346.352974 | W30: 834.6326063 | X30: 1230.448921 | Y30: 2272.305844 | Z30: 27115.40715 | AI30: 23 | AJ30: Patti Beadles | AK30: 27115.40715 | AM30: 23 | AN30: Patrick Milligan | AO30: 24 | AR30: Don Rieck | AS30: 13626 | AU30: Pete Segal | AV30: 4
B31: 24 | C31: Jeanne David | J31: 857.3324964 | K31: 924.2792861 | L31: 3245.512668 | M31: 2083.937516 | O31: 3816.746578 | P31: 5654.123349 | R31: 778.1512504 | T31: 1024.13368 | U31: 1546.718884 | V31: 732.3937598 | W31: 1135.662602 | X31: 1344.070812 | Y31: 3810.392692 | Z31: 26953.45557 | AI31: 24 | AJ31: Jeanne David | AK31: 26953.45557 | AM31: 24 | AN31: Patti Beadles | AO31: 24 | AR31: John Pickels | AS31: 12900 | AU31: Jeanne David | AV31: 4
B32: 25 | C32: Barry Kornspan | D32: 2376.125493 | G32: 1593.839661 | I32: 1857.332496 | J32: 1689.888365 | K32: 621.5190243 | M32: 2001.730266 | N32: 1066.94679 | O32: 723.1036841 | P32: 1934.498451 | Q32: 1149.20663 | S32: 954.2425094 | T32: 2102.548457 | U32: 1977.307814 | V32: 2049.9707 | W32: 2176.642394 | X32: 880.8135923 | Y32: 985.2767432 | Z32: 26140.99307 | AI32: 25 | AJ32: Barry Kornspan | AK32: 26140.99307 | AM32: 25 | AN32: Chris Mecklin | AO32: 24 | AR32: Tracy Becker | AS32: 12572 | AU32: Ron Lyons | AV32: 4
B33: 26 | C33: Guy Berentsen | F33: 1698.970004 | G33: 1084.320886 | H33: 1151.267675 | I33: 2800.717078 | J33: 1380.211242 | L33: 1263.241435 | P33: 1106.455331 | T33: 1732.39376 | V33: 4127.307314 | W33: 2291.146762 | X33: 4867.003679 | Y33: 2533.040193 | Z33: 26036.07536 | AI33: 26 | AJ33: Guy Berentsen | AK33: 26036.07536 | AM33: 26 | AN33: Corey Imsdahl | AO33: 24 | AR33: Rick Monbourquette | AS33: 12531 | AU33: Kenny Shei | AV33: 4
B34: 27 | C34: Paul McMullin | D34: 1773.637994 | E34: 1137.775961 | F34: 1399.613114 | G34: 2309.630167 | H34: 736.7585652 | K34: 1082.186756 | M34: 2198.657087 | N34: 2348.17501 | P34: 5394.230099 | R34: 1198.657087 | S34: 1423.245874 | T34: 1200.713734 | U34: 1071.882007 | X34: 1102.662342 | Y34: 1238.882089 | Z34: 25616.70789 | AI34: 27 | AJ34: Paul McMullin | AK34: 25616.70789 | AM34: 27 | AN34: David Kluchman | AO34: 24 | AR34: Christian Jones | AS34: 12508 | AU34: Scott Byron | AV34: 4
B35: 28 | C35: Rick Becker | D35: 2367.270778 | G35: 2824.288582 | I35: 852.7848687 | J35: 778.1512504 | K35: 2103.314926 | M35: 1759.183411 | N35: 2766.858811 | O35: 2386.800007 | Q35: 3723.968471 | R35: 1049.218023 | U35: 602.0599913 | V35: 987.4108727 | W35: 1010.723865 | X35: 1623.24929 | Z35: 24835.28315 | AI35: 28 | AJ35: Rick Becker | AK35: 24835.28315 | AM35: 28 | AN35: Bob Lauria | AO35: 24 | AR35: Stephen Lewin-Berlin | AS35: 12289.5 | AU35: Guy Berentsen | AV35: 4
B36: 29 | C36: Peter Secor | D36: 6140.99441 | G36: 1934.498451 | H36: 1739.305754 | L36: 1843.433011 | M36: 1247.154615 | N36: 1099.384632 | Q36: 1098.486401 | R36: 3234.517284 | S36: 4589.577296 | T36: 574.0312677 | V36: 966.1417327 | Z36: 24467.52485 | AI36: 29 | AJ36: Peter Secor | AK36: 24467.52485 | AM36: 29 | AN36: Michael Klein | AO36: 23 | AR36: Guy Berentsen | AS36: 12259 | AU36: Steven Eisenstein | AV36: 4
B37: 30 | C37: Scott Samarel | F37: 2546.542663 | K37: 2168.708365 | N37: 1054.357662 | O37: 1013.161446 | P37: 2564.172716 | Q37: 2077.140704 | S37: 1033.423755 | T37: 653.2125138 | U37: 2541.579244 | V37: 3620.76049 | W37: 1278.753601 | X37: 2924.279286 | Y37: 791.5152119 | Z37: 24267.60766 | AI37: 30 | AJ37: Scott Samarel | AK37: 24267.60766 | AM37: 30 | AN37: Paul McMullin | AO37: 23 | AR37: Dave Tahajian | AS37: 12207 | AU37: Barry Kornspan | AV37: 4
B38: 31 | C38: Ross Poppel | D38: 1230.913159 | F38: 5820.391955 | G38: 2919.659088 | H38: 2313.86722 | I38: 2869.818208 | K38: 2161.368002 | L38: 1428.134794 | M38: 1194.976603 | N38: 2935.759104 | U38: 985.2767432 | Z38: 23860.16488 | AI38: 31 | AJ38: Ross Poppel | AK38: 23860.16488 | AM38: 31 | AN38: Guy Berentsen | AO38: 22 | AR38: Dan Nussbaum | AS38: 12134 | AU38: Len Greenberg | AV38: 4
B39: 32 | C39: J P Massar | E39: 937.8520933 | G39: 2603.453699 | H39: 3069.742076 | J39: 3232.677829 | L39: 3283.081441 | M39: 980.2559418 | N39: 2315.970345 | Q39: 1213.074825 | R39: 1194.976603 | S39: 1247.154615 | T39: 3553.906133 | Z39: 23632.1456 | AI39: 32 | AJ39: J P Massar | AK39: 23632.1456 | AM39: 32 | AN39: Scott Samarel | AO39: 22 | AR39: Jeanne David | AS39: 12087 | AU39: Bruce Kramer | AV39: 3
B40: 33 | C40: Steven Eisenstein | D40: 3476.8458 | G40: 1081.9563 | H40: 1094.421213 | K40: 1057.991947 | L40: 1255.272505 | M40: 1406.54018 | N40: 2924.279286 | O40: 4325.621693 | P40: 1146.128036 | R40: 865.3014261 | S40: 2107.20997 | U40: 929.4189257 | W40: 1010.723865 | Y40: 895.2646495 | Z40: 23576.9758 | AI40: 33 | AJ40: Steven Eisenstein | AK40: 23576.9758 | AM40: 33 | AN40: Kyle Minnis | AO40: 22 | AR40: J P Massar | AS40: 11948 | AU40: David Kluchman | AV40: 3
B41: 34 | C41: Doug Grismore | H41: 1630.936119 | J41: 1916.453949 | O41: 1094.421213 | P41: 2891.812385 | Q41: 1236.789099 | S41: 3640.909442 | T41: 4043.697204 | U41: 2460.239892 | V41: 1024.13368 | W41: 732.3937598 | X41: 1778.24171 | Y41: 1041.392685 | Z41: 23491.42114 | AI41: 34 | AJ41: Doug Grismore | AK41: 23491.42114 | AM41: 34 | AN41: Doug Grismore | AO41: 22 | AR41: Jesse Capps | AS41: 11917 | AU41: Chris O’Connor | AV41: 3
B42: 35 | C42: Kyle Minnis | D42: 918.3299535 | F42: 1301.029996 | G42: 1108.007572 | H42: 736.7585652 | I42: 1108.773119 | J42: 1013.363962 | L42: 927.4493329 | M42: 1071.882007 | N42: 1985.446888 | O42: 1047.923552 | P42: 681.2412374 | R42: 3241.147862 | T42: 845.09804 | V42: 2561.101384 | W42: 3053.692939 | Y42: 934.4984512 | Z42: 22535.74486 | AI42: 35 | AJ42: Kyle Minnis | AK42: 22535.74486 | AM42: 35 | AN42: Steven Eisenstein | AO42: 21 | AR42: Ken Kubey | AS42: 11881 | AU42: Mike Fujita | AV42: 3
B43: 36 | C43: Patrick Milligan | D43: 1827.144174 | F43: 948.8474776 | H43: 736.7585652 | M43: 1244.414578 | N43: 2376.576957 | P43: 2733.899115 | Q43: 1322.219295 | R43: 5193.124598 | S43: 2353.339095 | T43: 892.0946027 | U43: 908.4850189 | V43: 1166.331422 | Y43: 788.3704156 | Z43: 22491.60531 | AI43: 36 | AJ43: Patrick Milligan | AK43: 22491.60531 | AM43: 36 | AN43: Peter Secor | AO43: 21 | AR43: Barry Kornspan | AS43: 11749 | AU43: Larry Bierman | AV43: 3
B44: 37 | C44: Chic Natkins | D44: 910.8348695 | G44: 3006.780958 | H44: 7561.46177 | I44: 2355.639828 | J44: 1014.240439 | K44: 973.1278536 | L44: 602.0599913 | O44: 954.2425094 | S44: 2906.335042 | Y44: 1414.625216 | Z44: 21699.34848 | AI44: 37 | AJ44: Chic Natkins | AK44: 21699.34848 | AM44: 37 | AN44: Ross Poppel | AO44: 21 | AR44: Scott Samarel | AS44: 11588 | AU44: Ming Lee | AV44: 3
B45: 38 | C45: Christian Jones | O45: 2113.73772 | S45: 6354.947623 | T45: 3074.199107 | U45: 1243.038049 | W45: 3275.541688 | X45: 1505.149978 | Y45: 4072.434875 | Z45: 21639.04904 | AI45: 38 | AJ45: Christian Jones | AK45: 21639.04904 | AM45: 38 | AN45: J P Massar | AO45: 20 | AR45: Doug Grismore | AS45: 11565 | AU45: Tom Bessoir | AV45: 3
B46: 39 | C46: Gillian Groves | D46: 1857.332496 | J46: 1908.485019 | M46: 1113.943352 | N46: 2060.69784 | O46: 1846.689258 | P46: 1026.328939 | Q46: 1165.095875 | S46: 2192.442282 | T46: 1130.333768 | U46: 2655.522596 | V46: 1447.158031 | W46: 1612.783857 | Y46: 995.6351946 | Z46: 21012.44851 | AI46: 39 | AJ46: Gillian Groves | AK46: 21012.44851 | AM46: 39 | AN46: Alan Stuart | AO46: 20 | AR46: Andrew Prock | AS46: 11514 | AU46: Chris Richards | AV46: 3
B47: 40 | C47: Michael Maurer | D47: 1919.078092 | E47: 2679.791171 | G47: 714.0337508 | H47: 3167.554676 | J47: 3532.754379 | K47: 2636.069783 | L47: 1281.285937 | N47: 962.2114391 | P47: 1929.418926 | Q47: 1397.940009 | Z47: 20220.13816 | AI47: 40 | AJ47: Michael Maurer | AK47: 20220.13816 | AM47: 40 | AN47: Christian Jones | AO47: 20 | AR47: Ross Poppel | AS47: 11228 | AU47: John Pickels | AV47: 3
B48: 41 | C48: Bex Kerl | M48: 968.2081656 | O48: 3387.548875 | P48: 1271.066772 | Q48: 2139.879086 | R48: 837.2727025 | T48: 3501.048302 | U48: 3854.691573 | V48: 2893.442766 | W48: 1336.745548 | Z48: 20189.90379 | AI48: 41 | AJ48: Bex Kerl | AK48: 20189.90379 | AM48: 41 | AN48: Bex Kerl | AO48: 19 | AR48: Tom Bessoir | AS48: 11040 | AU48: Don Rieck | AV48: 3
B49: 42 | C49: Jerrod Ankenman | D49: 5886.228685 | E49: 4216.693599 | F49: 4770.557475 | G49: 3351.022853 | H49: 1941.318149 | Z49: 20165.82076 | AI49: 42 | AJ49: Jerrod Ankenman | AK49: 20165.82076 | AM49: 42 | AN49: Stevan Goldman | AO49: 19 | AR49: Bex Kerl | AS49: 10928 | AU49: Russell Fox | AV49: 3
B50: 43 | C50: Rick Monbourquette | F50: 2453.209097 | I50: 1119.475841 | J50: 4185.966893 | L50: 895.2646495 | M50: 1636.822098 | N50: 1556.302501 | O50: 2485.401975 | Q50: 1431.363764 | T50: 1498.310554 | W50: 2360.78269 | Z50: 19622.90006 | AI50: 43 | AJ50: Rick Monbourquette | AK50: 19622.90006 | AM50: 43 | AN50: Tracy Becker | AO50: 19 | AR50: David Fruchter | AS50: 10804 | AU50: Patti Beadles | AV50: 3
B51: 44 | C51: Tracy Becker | D51: 217.233462 | G51: 1130.333768 | H51: 868.3278807 | I51: 1304.121073 | K51: 3322.219295 | L51: 1671.4814 | N51: 545.5402347 | O51: 2213.937718 | Q51: 1166.331422 | R51: 778.1512504 | S51: 1591.064607 | T51: 2574.031268 | U51: 1107.20997 | X51: 982.271233 | Z51: 19472.25458 | AI51: 44 | AJ51: Tracy Becker | AK51: 19472.25458 | AM51: 44 | AN51: Warren Sander | AO51: 19 | AR51: Ron Lyons | AS51: 10744 | AU51: Stephen Jacobs | AV51: 3
B52: 45 | C52: David Fruchter | D52: 2010.074857 | E52: 4683.550043 | F52: 1428.134794 | G52: 3246.839338 | H52: 1058.594715 | M52: 1450.249108 | P52: 3165.541077 | Q52: 1944.482672 | Z52: 18987.4666 | AI52: 45 | AJ52: David Fruchter | AK52: 18987.4666 | AM52: 45 | AN52: Dave Tahajian | AO52: 19 | AR52: Gillian Groves | AS52: 10664 | AU52: Gerald Petersen | AV52: 3
B53: 46 | C53: Dave Tahajian | D53: 1610.365826 | E53: 903.089987 | F53: 1197.280558 | K53: 1371.067862 | L53: 1758.407192 | M53: 1420.505837 | N53: 1568.201724 | Q53: 1686.246318 | R53: 1889.461322 | S53: 1381.499953 | U53: 2083.658667 | W53: 720.1593034 | X53: 1343.920485 | Z53: 18933.86504 | AI53: 46 | AJ53: Dave Tahajian | AK53: 18933.86504 | AM53: 46 | AN53: David Fruchter | AO53: 18 | AR53: Larry Bierman | AS53: 10617 | AU53: David Lawful | AV53: 3
B54: 47 | C54: Bob Ogus | D54: 836.1431974 | F54: 2146.644745 | G54: 1059.702893 | H54: 1278.753601 | I54: 1420.505837 | L54: 1690.19608 | M54: 862.4721361 | N54: 1106.455331 | O54: 1065.033595 | P54: 1066.94679 | R54: 4347.362546 | T54: 2042.348755 | Z54: 18922.5655 | AI54: 47 | AJ54: Bob Ogus | AK54: 18922.5655 | AM54: 47 | AN54: Tom Bessoir | AO54: 17 | AR54: Rick Becker | AS54: 10598 | AU54: Adam Bachrach | AV54: 3
B55: 48 | C55: Warren Sander | D55: 2588.888253 | E55: 1962.14802 | F55: 447.6323247 | G55: 3582.631439 | H55: 2239.313305 | I55: 1000 | J55: 2334.453751 | K55: 899.1949431 | M55: 1857.332496 | P55: 1845.09804 | Z55: 18756.69257 | AI55: 48 | AJ55: Warren Sander | AK55: 18756.69257 | AM55: 48 | AN55: Michael Patterson | AO55: 17 | AR55: Chic Natkins | AS55: 10593 | AU55: Patrick Milligan | AV55: 3
B56: 49 | C56: Tom Bessoir | J56: 1249.198357 | K56: 2644.438589 | L56: 1204.119983 | M56: 2146.128036 | O56: 3016.476194 | P56: 2945.222317 | R56: 291.7882928 | S56: 1322.219295 | T56: 2898.615497 | Y56: 966.1417327 | Z56: 18684.34829 | AI56: 49 | AJ56: Tom Bessoir | AK56: 18684.34829 | AM56: 49 | AN56: Jerrod Ankenman | AO56: 17 | AR56: Meredith Holtzman | AS56: 10354 | AU56: Dave Tahajian | AV56: 3
B57: 50 | C57: Michael Patterson | D57: 1731.580626 | H57: 1232.99611 | K57: 1137.173193 | M57: 1707.570176 | N57: 942.008053 | R57: 2619.093331 | U57: 3685.547681 | V57: 970.0367766 | X57: 1792.858422 | Y57: 2662.218 | Z57: 18481.08237 | AI57: 50 | AJ57: Michael Patterson | AK57: 18481.08237 | AM57: 50 | AN57: Bob Ogus | AO57: 17 | AR57: Michael Maurer | AS57: 10010 | AU57: Rick Becker | AV57: 3
B58: 51 | C58: Michael Klein | D58: 1381.180901 | E58: 1435.839609 | I58: 1406.54018 | J58: 1146.128036 | K58: 3036.064366 | L58: 1196.294645 | M58: 1806.796128 | N58: 1166.331422 | P58: 1575.710318 | Q58: 2374.259413 | T58: 687.97462 | U58: 301.0299957 | V58: 460.409377 | Y58: 442.3032906 | Z58: 18416.8623 | AI58: 51 | AJ58: Michael Klein | AK58: 18416.8623 | AM58: 51 | AN58: Tina Gonzalez | AO58: 16 | AR58: Stephanie Wasserman | AS58: 9927 | AU58: Mark Hughes | AV58: 3
B59: 52 | C59: Keith Fichtemaier | D59: 6428.666118 | F59: 2405.78258 | G59: 1724.27587 | H59: 2470.99817 | L59: 2200.211897 | M59: 1770.852012 | N59: 1138.302698 | Z59: 18139.08934 | AI59: 52 | AJ59: Keith Fichtemaier | AK59: 18139.08934 | AM59: 52 | AN59: Nolan Hee | AO59: 16 | AR59: Peter Secor | AS59: 9905 | AU59: Warren Sander | AV59: 2
B60: 53 | C60: Andrew Prock | E60: 1670.245853 | G60: 1560.305243 | K60: 3087.939085 | M60: 2934.498451 | N60: 1255.272505 | T60: 1552.262523 | V60: 3342.422681 | X60: 880.8135923 | Y60: 1809.271051 | Z60: 18093.03098 | AI60: 53 | AJ60: Andrew Prock | AK60: 18093.03098 | AM60: 53 | AN60: Keith Fichtemaier | AO60: 16 | AR60: Sean McGuiness | AS60: 9801 | AU60: Scott Harker | AV60: 2
B61: 54 | C61: Dan Nussbaum | E61: 1836.745966 | I61: 1295.5671 | L61: 1348.953548 | P61: 1157.607853 | Q61: 1290.034611 | S61: 911.362513 | T61: 1802.773725 | Y61: 8374.841874 | Z61: 18017.88719 | AI61: 54 | AJ61: Dan Nussbaum | AK61: 18017.88719 | AM61: 54 | AN61: Ron Lyons | AO61: 16 | AR61: Alan Stuart | AS61: 9749.5 | AU61: Paul Stine | AV61: 2
B62: 55 | C62: Meredith Holtzman | J62: 1352.182518 | K62: 1957.24802 | M62: 1380.211242 | N62: 1267.171728 | O62: 2374.381698 | P62: 2033.423755 | R62: 940.231795 | T62: 2909.68972 | U62: 1028.028724 | X62: 1079.181246 | Y62: 1690.19608 | Z62: 18011.94653 | AI62: 55 | AJ62: Meredith Holtzman | AK62: 18011.94653 | AM62: 55 | AN62: Gillian Groves | AO62: 16 | AR62: Stevan Goldman | AS62: 9683 | AU62: David Aronson | AV62: 2
B63: 56 | C63: Nolan Hee | D63: 1798.420434 | E63: 887.2957198 | G63: 1247.154615 | M63: 879.1778296 | P63: 3197.76284 | R63: 1041.392685 | U63: 3205.420916 | X63: 2726.998728 | Y63: 2828.445059 | Z63: 17812.06883 | AI63: 56 | AJ63: Nolan Hee | AK63: 17812.06883 | AM63: 56 | AN63: Jesse Capps | AO63: 15 | AR63: Jared Anderson | AS63: 9634 | AU63: Dan Nussbaum | AV63: 2
B64: 57 | C64: Stevan Goldman | D64: 963.6399722 | F64: 1649.983544 | G64: 879.1778296 | H64: 1931.966115 | K64: 806.179974 | P64: 2692.846919 | T64: 5097.569639 | U64: 1770.852012 | V64: 548.4550065 | X64: 1431.363764 | Z64: 17772.03478 | AI64: 57 | AJ64: Stevan Goldman | AK64: 17772.03478 | AM64: 57 | AN64: Stephen Lewin-Berlin | AO64: 15 | AR64: David Aronson | AS64: 9620 | AU64: David Kent | AV64: 2
B65: 58 | C65: Rich Strauss | I65: 1610.660163 | J65: 1306.425028 | L65: 1389.166084 | M65: 1293.730757 | N65: 3374.381698 | O65: 1525.044807 | P65: 1883.661435 | Q65: 1732.39376 | R65: 1301.029996 | V65: 909.8233697 | W65: 964.8355829 | Z65: 17291.15268 | AI65: 58 | AJ65: Rich Strauss | AK65: 17291.15268 | AM65: 58 | AN65: Rick Monbourquette | AO65: 15 | AR65: Gerald Petersen | AS65: 9568 | AU65: Bex Kerl | AV65: 2
B66: 59 | C66: Adam Bachrach | D66: 1963.787827 | E66: 1604.765885 | F66: 2659.202877 | G66: 1435.366507 | M66: 1511.883361 | N66: 1923.149781 | P66: 1060.69784 | Q66: 1467.361417 | S66: 1840.94208 | W66: 884.6065813 | Y66: 937.8520933 | Z66: 17289.61625 | AI66: 59 | AJ66: Adam Bachrach | AK66: 17289.61625 | AM66: 59 | AN66: Paul Stine | AO66: 15 | AR66: David Heller | AS66: 9495 | AU66: Bob Ogus | AV66: 2
B67: 60 | C67: Jesse Capps | R67: 4105.510185 | S67: 2255.272505 | T67: 3168.897164 | V67: 1021.189299 | W67: 2889.114869 | X67: 804.4801891 | Y67: 3022.428371 | Z67: 17266.89258 | AI67: 60 | AJ67: Jesse Capps | AK67: 17266.89258 | AM67: 60 | AN67: Michael Maurer | AO67: 15 | AR67: Nick Christenson | AS67: 9437 | AU67: Rich Strauss | AV67: 2
B68: 61 | C68: Randy Collack | D68: 1350.248018 | E68: 1079.181246 | G68: 1452.297671 | I68: 823.9087409 | K68: 1684.246748 | L68: 2526.48287 | M68: 2464.924976 | N68: 1245.512668 | O68: 3355.068206 | S68: 1158.362492 | Z68: 17140.23364 | AI68: 61 | AJ68: Randy Collack | AK68: 17140.23364 | AM68: 61 | AN68: Meredith Holtzman | AO68: 15 | AR68: Matt Ivester | AS68: 9374.5 | AU68: Bree Goldman | AV68: 2
B69: 62 | C69: Alan Stuart | D69: 1614.130902 | E69: 2368.631118 | J69: 692.2366217 | K69: 772.0340222 | M69: 772.0340222 | O69: 1135.662602 | P69: 1012.234456 | Q69: 1122.215878 | S69: 845.09804 | T69: 1278.753601 | U69: 1630.088715 | V69: 460.409377 | X69: 1322.219295 | Y69: 1831.469375 | Z69: 16857.21803 | AI69: 62 | AJ69: Alan Stuart | AK69: 16857.21803 | AM69: 62 | AN69: Adam Bachrach | AO69: 15 | AR69: Steven Eisenstein | AS69: 9284 | AU69: Stephanie Wasserman | AV69: 2
B70: 63 | C70: Stephen Lewin-Berlin | L70: 2995.432679 | M70: 2584.947379 | O70: 2156.618328 | P70: 1304.121073 | R70: 1748.188027 | S70: 3121.559844 | T70: 1531.478917 | U70: 451.5449935 | X70: 801.6323462 | Z70: 16695.52359 | AI70: 63 | AJ70: Stephen Lewin-Berlin | AK70: 16695.52359 | AM70: 63 | AN70: Bruce Kramer | AO70: 15 | AR70: Bruce Kramer | AS70: 9064 | AU70: Dominic Colfer | AV70: 2
B71: 64 | C71: Tina Gonzalez | D71: 531.478917 | F71: 1021.189299 | J71: 4375.846436 | K71: 3326.955071 | M71: 1596.597096 | N71: 1313.264452 | O71: 2379.89179 | T71: 910.7768157 | V71: 548.4550065 | X71: 477.1212547 | Z71: 16481.57614 | AI71: 64 | AJ71: Tina Gonzalez | AK71: 16481.57614 | AM71: 64 | AN71: Stephanie Wasserman | AO71: 14 | AR71: Rich Strauss | AS71: 9052 | AU71: Tom White | AV71: 2
B72: 65 | C72: Bruce Kramer | D72: 1904.329059 | E72: 994.5371043 | I72: 1153.814864 | J72: 1843.025031 | M72: 1547.159121 | S72: 2760.422483 | U72: 1591.064607 | V72: 1564.27143 | X72: 3008.954843 | Z72: 16367.57854 | AI72: 65 | AJ72: Bruce Kramer | AK72: 16367.57854 | AM72: 65 | AN72: John Pickels | AO72: 14 | AR72: Stephen Rosenblatt | AS72: 9006 | AU72: Helen Rogers | AV72: 2
B73: 66 | C73: John Pickels | H73: 3335.056519 | I73: 505.1499783 | J73: 1528.631074 | K73: 2133.538908 | L73: 1087.150176 | M73: 3166.472404 | O73: 1333.878907 | R73: 1322.219295 | U73: 1587.336735 | Z73: 15999.434 | AI73: 66 | AJ73: John Pickels | AK73: 15999.434 | AM73: 66 | AN73: Randy Collack | AO73: 14 | AR73: Patti Beadles | AS73: 8909 | AU73: Mark Haroldson | AV73: 2
B74: =B73+1 -> 67 | C74: Ron Lyons | H74: 1420.505837 | J74: 1602.059991 | K74: 2513.300854 | L74: 1204.119983 | N74: 1966.141733 | O74: 913.8138524 | Q74: 1180.513963 | T74: 869.2317197 | V74: 495.6130378 | W74: 451.5449935 | X74: 1197.280558 | Y74: 1830.374783 | Z74: 15644.5013 | AI74: =AI73+1 -> 67 | AJ74: Ron Lyons | AK74: 15644.5013 | AM74: =AM73+1 -> 67 | AN74: Mark Hughes | AO74: 14 | AR74: Patrick Milligan | AS74: 8767 | AU74: Jazbo Burns | AV74: 2
B75: 68 | C75: Stephanie Wasserman | I75: 1357.934847 | J75: 1740.362689 | L75: 1000 | M75: 1931.118711 | N75: 1118.099312 | S75: 1406.54018 | T75: 1676.69361 | X75: 3577.4918 | Y75: 1834.043732 | Z75: 15642.28488 | AI75: 68 | AJ75: Stephanie Wasserman | AK75: 15642.28488 | AM75: 68 | AN75: Andrew Prock | AO75: 14 | AR75: Warren Sander | AS75: 8755 | AU75: Chris Straghalis | AV75: 2
B76: 69 | C76: Paul Stine | D76: 705.5236148 | E76: 836.1431974 | F76: 1057.991947 | P76: 1441.956838 | S76: 1397.940009 | T76: 2138.528247 | V76: 920.818754 | W76: 1102.662342 | X76: 1844.083925 | Y76: 2643.734594 | Z76: 14089.38347 | AI76: 69 | AJ76: Paul Stine | AK76: 14089.38347 | AM76: 69 | AN76: Dan Nussbaum | AO76: 14 | AR76: Todd Bergmann | AS76: 8723 | AU76: Carlos Lobato | AV76: 2
B77: 70 | C77: Keith Troell | G77: 1903.089987 | J77: 3249.565212 | M77: 2571.009672 | N77: 1459.392488 | T77: 778.1512504 | V77: 4124.764984 | Z77: 14085.97359 | AI77: 70 | AJ77: Keith Troell | AK77: 14085.97359 | AM77: 70 | AN77: Tom White | AO77: 13 | AR77: Regis Donovan | AS77: 8676 | AU77: Peter Secor | AV77: 2
B78: 71 | C78: Don Rieck | F78: 1425.968732 | G78: 2575.36899 | H78: 2012.837225 | I78: 1195.686815 | N78: 1583.576586 | Q78: 2052.597763 | R78: 944.4826722 | S78: 2107.20997 | Z78: 13897.72875 | AI78: 71 | AJ78: Don Rieck | AK78: 13897.72875 | AM78: 71 | AN78: Rich Strauss | AO78: 13 | AR78: Rodney Chen | AS78: 8544 | AU78: Jerrod Ankenman | AV78: 2
B79: 72 | C79: Tom Goodwin | D79: 2471.243603 | E79: 1295.5671 | G79: 816.7342278 | I79: 2976.044138 | M79: 1246.129126 | N79: 1295.5671 | R79: 1007.178585 | T79: 1156.347201 | W79: 1579.783597 | Z79: 13844.59468 | AI79: 72 | AJ79: Tom Goodwin | AK79: 13844.59468 | AM79: 72 | AN79: Ming Lee | AO79: 13 | AR79: Jerrod Ankenman | AS79: 8456 | AU79: Ron Grossberg | AV79: 2
B80: 73 | C80: Jared Anderson | Q80: 903.089987 | S80: 2752.304593 | T80: 1602.059991 | U80: 1732.39376 | W80: 1271.066772 | Y80: 5547.830475 | Z80: 13808.74558 | AI80: 73 | AJ80: Jared Anderson | AK80: 13808.74558 | AM80: 73 | AN80: Jessica Kuznick | AO80: 13 | AR80: Dean White | AS80: 8386 | AU80: Jessica Kuznick | AV80: 2
B81: 74 | C81: Larry Bierman | L81: 1213.074825 | P81: 1919.078092 | Q81: 1113.943352 | R81: 1819.543936 | S81: 1380.211242 | U81: 1389.166084 | V81: 845.09804 | X81: 1389.166084 | Y81: 2608.097946 | Z81: 13677.3796 | AI81: 74 | AJ81: Larry Bierman | AK81: 13677.3796 | AM81: 74 | AN81: Katie Baxter | AO81: 13 | AR81: Andreas Wolfram | AS81: 8243 | AU81: Scott Samarel | AV81: 2
B82: 75 | C82: Michelle Ankenman | D82: 850.2376797 | E82: 2590.073632 | F82: 2045.757491 | G82: 714.0337508 | H82: 4748.112868 | I82: 1750.479824 | X82: 903.089987 | Z82: 13601.78523 | AI82: 75 | AJ82: Michelle Ankenman | AK82: 13601.78523 | AM82: 75 | AN82: Michelle Ankenman | AO82: 13 | AR82: Tina Gonzalez | AS82: 8177 | AU82: Jim Rogers | AV82: 2
B83: 76 | C83: Regis Donovan | F83: 1282.006758 | L83: 1000 | M83: 1079.181246 | P83: 1612.783857 | Q83: 790.0504737 | S83: 2752.304593 | T83: 1799.340549 | U83: 1057.991947 | V83: 2176.091259 | Z83: 13549.75068 | AI83: 76 | AJ83: Regis Donovan | AK83: 13549.75068 | AM83: 76 | AN83: Bill Chen | AO83: 13 | AR83: Tedford Armistead | AS83: 8003.5 | AU83: Tina Gonzalez | AV83: 2
B84: 77 | C84: Katie Baxter | L84: 3817.032978 | N84: 1028.028724 | O84: 3968.419568 | P84: 389.0756252 | Q84: 745.6808469 | S84: 1910.979947 | T84: 1633.468456 | Z84: 13492.68614 | AI84: 77 | AJ84: Katie Baxter | AK84: 13492.68614 | AM84: 77 | AN84: Tom Goodwin | AO84: 12 | AR84: Adam Bachrach | AS84: 7971 | AU84: Joe Long | AV84: 2
B85: 78 | C85: Gerald Petersen | E85: 1054.357662 | L85: 980.2559418 | N85: 1681.241237 | Q85: 2439.332694 | T85: 896.2505625 | U85: 1648.360011 | V85: 1028.028724 | W85: 2748.381865 | Y85: 819.5439355 | Z85: 13295.75263 | AI85: 78 | AJ85: Gerald Petersen | AK85: 13295.75263 | AM85: 78 | AN85: Tedford Armistead | AO85: 12 | AR85: Randy Collack | AS85: 7951 | AU85: Tom Hummel | AV85: 2
B86: 79 | C86: Bob Herlien | E86: 3397.244581 | I86: 1076.588435 | J86: 1005.395032 | L86: 1332.43846 | O86: 3098.297536 | P86: 890.8555306 | Q86: 1021.189299 | S86: 1262.11193 | Z86: 13084.1208 | AI86: 79 | AJ86: Bob Herlien | AK86: 13084.1208 | AM86: 79 | AN86: Keith Troell | AO86: 12 | AR86: Mike Fujita | AS86: 7745 | AU86: John Grout | AV86: 2
B87: 80 | C87: Chris Kluchman | O87: 3040.918651 | S87: 961.081934 | T87: 2299.9429 | U87: 3823.734988 | X87: 2848.558572 | Z87: 12974.23705 | AI87: 80 | AJ87: Chris Kluchman | AK87: 12974.23705 | AM87: 80 | AN87: Mike Fujita | AO87: 12 | AR87: Brenda Mowrey | AS87: 7739 | AU87: Tracy Becker | AV87: 2
B88: 81 | C88: Mark Hughes | D88: 2099.384632 | F88: 832.5089127 | H88: 2187.520721 | I88: 1995.23621 | K88: 1531.478917 | O88: 1209.515015 | P88: 888.0262406 | R88: 1041.392685 | T88: 1176.091259 | Z88: 12961.15459 | AI88: 81 | AJ88: Mark Hughes | AK88: 12961.15459 | AM88: 81 | AN88: Frank Bruegger | AO88: 12 | AR88: Keith Troell | AS88: 7690.25 | AU88: Jordan Devenport | AV88: 2
B89: 82 | C89: David Aronson | K89: 1860.338007 | N89: 1643.452676 | P89: 539.590623 | Q89: 1799.340549 | S89: 903.089987 | U89: 1322.219295 | V89: 2567.731963 | W89: 1049.218023 | X89: 1124.938737 | Z89: 12809.91986 | AI89: 82 | AJ89: David Aronson | AK89: 12809.91986 | AM89: 82 | AN89: Jeff Deitch | AO89: 11 | AR89: Michael Klein | AS89: 7684.5 | AU89: Russell Diaz | AV89: 2
B90: 83 | C90: Mike Fujita | O90: 2075.321944 | Q90: 1000 | R90: 937.8520933 | T90: 2020.499395 | U90: 903.089987 | W90: 1021.189299 | X90: 3478.882002 | Y90: 1161.368002 | Z90: 12598.20272 | AI90: 83 | AJ90: Mike Fujita | AK90: 12598.20272 | AM90: 83 | AN90: John Grout | AO90: 11 | AR90: Chuck Humphrey | AS90: 7554 | AU90: Katie Baxter | AV90: 2
B91: 84 | C91: Tom Hummel | D91: 1073.980052 | K91: 814.8740574 | O91: 1913.813852 | P91: 934.4984512 | R91: 1271.066772 | T91: 2287.353773 | U91: 2938.394622 | X91: 1102.662342 | Z91: 12336.64392 | AI91: 84 | AJ91: Tom Hummel | AK91: 12336.64392 | AM91: 84 | AN91: Regis Donovan | AO91: 11 | AR91: Chris Kluchman | AS91: 7536 | AU91: Joe Berman | AV91: 2
B92: 85 | C92: Alex Ziselman | F92: 1851.258349 | N92: 806.179974 | O92: 2510.32155 | P92: 795.8800173 | Q92: 2776.701184 | S92: 2207.365037 | T92: 1380.211242 | Z92: 12327.91735 | AI92: 85 | AJ92: Alex Ziselman | AK92: 12327.91735 | AM92: 85 | AN92: Joe Long | AO92: 11 | AR92: Tom Hummel | AS92: 7456 | AU92: Keith Fichtemaier | AV92: 2
B93: 86 | C93: Tom White | D93: 616.3004304 | E93: 3610.660163 | F93: 1355.387658 | H93: 1697.882909 | J93: 1230.448921 | K93: 425.9687323 | L93: 1235.528447 | M93: 533.4733948 | N93: 1568.201724 | Z93: 12273.85238 | AI93: 86 | AJ93: Tom White | AK93: 12273.85238 | AM93: 86 | AN93: David Aronson | AO93: 11 | AR93: Kyle Minnis | AS93: 7448 | AU93: Michelle Ankenman | AV93: 2
B94: 87 | C94: John Reed | J94: 1130.333768 | L94: 1826.074803 | U94: 5908.114263 | V94: 3340.711078 | Z94: 12205.23391 | AI94: 87 | AJ94: John Reed | AK94: 12205.23391 | AM94: 87 | AN94: Chris Richards | AO94: 11 | AR94: Katie Baxter | AS94: 7420.25 | AU94: Bob Lauria | AV94: 2
B95: 88 | C95: Joe Long | H95: 929.4189257 | L95: 3522.515365 | M95: 912.0448296 | N95: 753.3276667 | O95: 865.3014261 | Q95: 2138.302698 | V95: 2989.004616 | Z95: 12109.91553 | AI95: 88 | AJ95: Joe Long | AK95: 12109.91553 | AM95: 88 | AN95: Howard Jackson | AO95: 11 | AR95: Jordan Devenport | AS95: 7367 | AU95: Jodi Shapiro | AV95: 1
B96: 89 | C96: John Grout | E96: 2420.36838 | G96: 1113.943352 | I96: 1089.400411 | O96: 1224.734438 | P96: 918.7701913 | T96: 1895.560658 | U96: 1763.427994 | W96: 363.499364 | X96: 1278.753601 | Z96: 12068.45839 | AI96: 89 | AJ96: John Grout | AK96: 12068.45839 | AM96: 89 | AN96: Bob Herlien | AO96: 11 | AR96: Tom Goodwin | AS96: 7303 | AU96: Tedford Armistead | AV96: 1
B97: 90 | C97: Jim Bullard | D97: 4318.730967 | E97: 1905.79588 | F97: 2413.551213 | J97: 678.4483372 | K97: 2732.979796 | Z97: 12049.50619 | AI97: 90 | AJ97: Jim Bullard | AK97: 12049.50619 | AM97: 90 | AN97: Chris Kluchman | AO97: 11 | AR97: Alex Ziselman | AS97: 7185 | AU97: Fern Chamberlain | AV97: 1
B98: 91 | C98: Andreas Wolfram | O98: 2178.976947 | U98: 6258.684564 | V98: 3488.32505 | Z98: 11925.98656 | AI98: 91 | AJ98: Andreas Wolfram | AK98: 11925.98656 | AM98: 91 | AN98: Gerald Petersen | AO98: 11 | AR98: John Grout | AS98: 7113 | AU98: Jim Anderson | AV98: 1
B99: 92 | C99: Nick Christenson | E99: 862.4721361 | F99: 3381.8368 | H99: 1086.868075 | L99: 1005.079526 | M99: 3286.793176 | N99: 2242.683378 | Z99: 11865.73309 | AI99: 92 | AJ99: Nick Christenson | AK99: 11865.73309 | AM99: 92 | AN99: Jared Anderson | AO99: 10 | AR99: Tim Showalter | AS99: 7081 | AU99: Dave O'Grady | AV99: 1
B100: 93 | C100: Bill Chen | D100: 3411.475398 | E100: 882.239848 | G100: 3694.605199 | K100: 966.1417327 | M100: 982.271233 | X100: 1807.685329 | Z100: 11744.41874 | AI100: 93 | AJ100: Bill Chen | AK100: 11744.41874 | AM100: 93 | AN100: Tom Hummel | AO100: 10 | AR100: Michael Patterson | AS100: 7053 | AU100: Jim Hexter | AV100: 1
B101: 94 | C101: Kathy Chang | S101: 1672.097858 | U101: 2861.38504 | V101: 3330.297791 | W101: 903.089987 | X101: 2837.798801 | Z101: 11604.66948 | AI101: 94 | AJ101: Kathy Chang | AK101: 11604.66948 | AM101: 94 | AN101: Kathy Chang | AO101: 10 | AR101: Bree Goldman | AS101: 6969 | AU101: Kelly Kania | AV101: 1
B102: 95 | C102: Cliff Matthews | F102: 1298.307137 | I102: 1052.529051 | J102: 1491.361694 | K102: 1204.119983 | L102: 980.9767627 | M102: 1089.400411 | Q102: 944.4826722 | U102: 1903.089987 | V102: 1623.24929 | Z102: 11587.51699 | AI102: 95 | AJ102: Cliff Matthews | AK102: 11587.51699 | AM102: 95 | AN102: Joyce Ciotti | AO102: 10 | AR102: Ben Gamble | AS102: 6828 | AU102: David Trinidad | AV102: 1
B103: 96 | C103: Jeff Deitch | J103: 954.2425094 | L103: 2372.70164 | M103: 4074.269344 | T103: 1176.091259 | U103: 2080.83685 | X103: 903.089987 | Z103: 11561.23159 | AI103: 96 | AJ103: Jeff Deitch | AK103: 11561.23159 | AM103: 96 | AN103: Lou Krieger | AO103: 10 | AR103: Joe Hammond | AS103: 6630 | AU103: Stephen Landrum | AV103: 1
B104: 97 | C104: Mike McBride | D104: 1462.397998 | G104: 1057.991947 | H104: 2527.282802 | I104: 647.8174819 | J104: 1176.091259 | O104: 2730.73182 | S104: 983.9131801 | U104: 924.2792861 | Z104: 11510.50577 | AI104: 97 | AJ104: Mike McBride | AK104: 11510.50577 | AM104: 97 | AN104: John Reed | AO104: 10 | AR104: Joe Morrissette | AS104: 6600 | AU104: Brenda Mowrey | AV104: 1
B105: 98 | C105: Chuck Humphrey | D105: 708.5153222 | H105: 3816.437801 | K105: 3715.251029 | L105: 1006.160309 | M105: 2111.262514 | Z105: 11357.62697 | AI105: 98 | AJ105: Chuck Humphrey | AK105: 11357.62697 | AM105: 98 | AN105: Mike McBride | AO105: 10 | AR105: John Harkness | AS105: 6583 | AU105: Gillian Groves | AV105: 1
B106: 99 | C106: Rodney Chen | I106: 943.9628702 | J106: 1556.302501 | K106: 1022.40411 | L106: 1934.498451 | M106: 2028.416314 | N106: 845.09804 | O106: 1166.331422 | Q106: 1838.849091 | Z106: 11335.8628 | AI106: 99 | AJ106: Rodney Chen | AK106: 11335.8628 | AM106: 99 | AN106: Jim Anderson | AO106: 10 | AR106: John Reed | AS106: 6458 | AU106: Joe Morrissette | AV106: 1
B107: 100 | C107: Chuck Weinstock | D107: 1317.018101 | G107: 1221.84875 | H107: 1161.368002 | I107: 1745.595216 | K107: 1298.610522 | S107: 1065.817284 | U107: 2408.239965 | X107: 878.2664033 | Z107: 11096.76424 | AI107: 100 | AJ107: Chuck Weinstock | AK107: 11096.76424 | AM107: 100 | AN107: Larry Bierman | AO107: 10 | AR107: Claudia Mastroianni | AS107: 6427 | AU107: Aubrey Kyburz | AV107: 1
B108: 101 | C108: Tedford Armistead | L108: 1028.028724 | N108: 1703.178954 | O108: 806.179974 | P108: 627.6362526 | Q108: 1843.353876 | R108: 2193.124598 | S108: 1623.24929 | T108: 539.590623 | X108: 720.1593034 | Z108: 11084.5016 | AI108: 101 | AJ108: Tedford Armistead | AK108: 11084.5016 | AM108: 101 | AN108: Jim Bullard | AO108: 10 | AR108: Scott Harker | AS108: 6244 | AU108: John Fleming | AV108: 1
B109: 102 | C109: Sean McGuiness | F109: 2298.853076 | G109: 1591.064607 | I109: 1143.535225 | P109: 1322.219295 | S109: 2630.088715 | T109: 1887.29572 | Z109: 10873.05664 | AI109: 102 | AJ109: Sean McGuiness | AK109: 10873.05664 | AM109: 102 | AN109: Paul Chakoian | AO109: 10 | AR109: Cliff Matthews | AS109: 6161 | AU109: Jeff Deitch | AV109: 1
B110: 103 | C110: Lou Krieger | D110: 2966.686355 | E110: 2846.337112 | F110: 2400.414628 | H110: 736.7585652 | I110: 624.336386 | K110: 1283.301229 | Z110: 10857.83428 | AI110: 103 | AJ110: Lou Krieger | AK110: 10857.83428 | AM110: 103 | AN110: Joe Morrissette | AO110: 10 | AR110: Paul Chakoian | AS110: 6125.5 | AU110: Dean White | AV110: 1
B111: 104 | C111: Gavin Smith | D111: 4052.453455 | E111: 2313.86722 | G111: 990.2401627 | H111: 2256.77786 | I111: 1204.119983 | Z111: 10817.45868 | AI111: 104 | AJ111: Gavin Smith | AK111: 10817.45868 | AM111: 104 | AN111: Jeff Calkins | AO111: 10 | AR111: Nolan Hee | AS111: 6122 | AU111: Ryan Troll | AV111: 1
B112: 105 | C112: Ming Lee | D112: 1607.816501 | E112: 1919.078092 | H112: 1117.639498 | I112: 755.8748557 | K112: 1194.976603 | L112: 1575.83333 | O112: 1028.028724 | Q112: 595.1658491 | R112: 442.3032906 | S112: 334.5033905 | Z112: 10571.22013 | AI112: 105 | AJ112: Ming Lee | AK112: 10571.22013 | AM112: 105 | AN112: Don Rieck | AO112: 10 | AR112: Steve Forcash | AS112: 6090 | AU112: John Lloyd | AV112: 1
B113: 106 | C113: Sharon Goldman | F113: 990.2401627 | K113: 1181.843588 | L113: 1467.361417 | P113: 3918.534885 | S113: 2000 | U113: 1005.395032 | Z113: 10563.37508 | AI113: 106 | AJ113: Sharon Goldman | AK113: 10563.37508 | AM113: 106 | AN113: Alex Ziselman | AO113: 10 | AR113: Tom White | AS113: 6062.25 | AU113: Shane Mabile | AV113: 1
B114: 107 | C114: John Harkness | E114: 1556.302501 | F114: 3754.042387 | G114: 2533.577686 | H114: 2664.818196 | Z114: 10508.74077 | AI114: 107 | AJ114: John Harkness | AK114: 10508.74077 | AM114: 107 | AN114: Scott Harker | AO114: 9 | AR114: Bob Gilbert | AS114: 6042 | AU114: Cary Flynn | AV114: 1
B115: 108 | C115: Oliver Juang | F115: 1156.347201 | P115: 2180.253346 | Q115: 1026.793177 | R115: 1707.570176 | T115: 1626.682466 | U115: 1452.297671 | V115: 1271.066772 | Z115: 10421.01081 | AI115: 108 | AJ115: Oliver Juang | AK115: 10421.01081 | AM115: 108 | AN115: Steve Pierce | AO115: 9 | AR115: Bob Ogus | AS115: 6003 | AU115: Andrew Prock | AV115: 1
B116: 109 | C116: Howard Jackson | L116: 1263.241435 | M116: 857.3324964 | O116: 3928.779787 | Q116: 1224.014811 | S116: 1351.967946 | T116: 1774.516966 | Z116: 10399.85344 | AI116: 109 | AJ116: Howard Jackson | AK116: 10399.85344 | AM116: 109 | AN116: Sharon Goldman | AO116: 9 | AR116: Frank Brabec | AS116: 5870 | AU116: John Segovia | AV116: 1
B117: 110 | C117: Jim Anderson | I117: 1235.528447 | R117: 1909.720566 | T117: 3909.983695 | U117: 1171.238756 | X117: 1278.753601 | Y117: 884.6065813 | Z117: 10389.83165 | AI117: 110 | AJ117: Jim Anderson | AK117: 10389.83165 | AM117: 110 | AN117: Rodney Chen | AO117: 9 | AR117: Mark Trombley | AS117: 5775 | AU117: Gary Starr | AV117: 1
B118: 111 | C118: Stephen Rosenblatt | I118: 1845.09804 | J118: 1301.029996 | K118: 1452.996264 | L118: 1698.970004 | O118: 1255.272505 | P118: 1311.753861 | Y118: 1439.332694 | Z118: 10304.45336 | AI118: 111 | AJ118: Stephen Rosenblatt | AK118: 10304.45336 | AM118: 111 | AN118: Oliver Juang | AO118: 9 | AR118: Derek Gomez | AS118: 5772 | AU118: Desmond Portano | AV118: 1
B119: 112 | C119: Brenda Mowrey | I119: 1995.47269 | J119: 2019.11629 | K119: 1568.201724 | N119: 2353.693952 | O119: 1079.181246 | T119: 1130.333768 | Z119: 10145.99967 | AI119: 112 | AJ119: Brenda Mowrey | AK119: 10145.99967 | AM119: 112 | AN119: Patrick Kirwan | AO119: 9 | AR119: Mordecai Schwartz | AS119: 5745 | AU119: Travis williams | AV119: 1
B120: 113 | C120: Dean White | J120: 1591.064607 | M120: 1371.067862 | N120: 1220.108088 | O120: 806.179974 | S120: 850.7019175 | X120: 2526.339277 | Y120: 1740.362689 | Z120: 10105.82442 | AI120: 113 | AJ120: Dean White | AK120: 10105.82442 | AM120: 113 | AN120: Nick Christenson | AO120: 9 | AR120: Don Perry | AS120: 5743 | AU120: Karen Adams | AV120: 1
B121: 114 | C121: Kevin Knourek | M121: 1423.245874 | P121: 3057.818194 | Q121: 1060.69784 | V121: 1505.149978 | W121: 2107.20997 | X121: 834.6326063 | Z121: 9988.754463 | AI121: 114 | AJ121: Kevin Knourek | AK121: 9988.754463 | AM121: 114 | AN121: Kevin Knourek | AO121: 9 | AR121: David Coates | AS121: 5568 | AU121: Antoinett Pennington | AV121: 1
B122: 115 | C122: Steve Pierce | D122: 959.5713429 | E122: 1468.76918 | F122: 3619.007194 | I122: 1353.054928 | M122: 1119.475841 | N122: 1458.637849 | Z122: 9978.516336 | AI122: 115 | AJ122: Steve Pierce | AK122: 9978.516336 | AM122: 115 | AN122: Peter Caldes | AO122: 9 | AR122: Kevin Conlon | AS122: 5499 | AU122: David Fruchter | AV122: 1
B123: 116 | C123: Jordan Devenport | K123: 930.9190809 | P123: 5840.429577 | T123: 3193.124598 | Z123: 9964.473256 | AI123: 116 | AJ123: Jordan Devenport | AK123: 9964.473256 | AM123: 116 | AN123: Mary Massey | AO123: 9 | AR123: Paul Stine | AS123: 5495 | AU123: Shari Silk | AV123: 1
B124: 117 | C124: Patrick Kirwan | D124: 121.7335967 | E124: 1252.583367 | H124: 1226.783967 | I124: 1464.532127 | J124: 1263.241435 | S124: 1071.063356 | T124: 1197.280558 | X124: 1293.730757 | Y124: 1060.69784 | Z124: 9951.647004 | AI124: 117 | AJ124: Patrick Kirwan | AK124: 9951.647004 | AM124: 117 | AN124: Bryan Juliano | AO124: 9 | AR124: Oliver Juang | AS124: 5467 | AU124: Bruce Iwamoto | AV124: 1
B125: 118 | C125: Tim Showalter | H125: 1638.489257 | J125: 1071.355909 | U125: 1929.418926 | V125: 643.4526765 | W125: 1079.181246 | Y125: 3426.998959 | Z125: 9788.896972 | AI125: 118 | AJ125: Tim Showalter | AK125: 9788.896972 | AM125: 118 | AN125: Deron Brod | AO125: 9 | AR125: Ming Lee | AS125: 5466 | AU125: Brian Reeve | AV125: 1
B126: 119 | C126: Tony Goldstein | E126: 5558.144341 | G126: 1306.425028 | P126: 1107.826427 | Q126: 1757.14287 | Z126: 9729.538666 | AI126: 119 | AJ126: Tony Goldstein | AK126: 9729.538666 | AM126: 119 | AN126: Chuck Humphrey | AO126: 9 | AR126: Jim Rogers | AS126: 5347 | AU126: Keith Troell | AV126: 1
B127: 120 | C127: Deron Brod | J127: 1206.202934 | K127: 1124.938737 | T127: 1681.241237 | U127: 2876.362196 | X127: 832.5089127 | Y127: 1945.468585 | Z127: 9666.722602 | AI127: 120 | AJ127: Deron Brod | AK127: 9666.722602 | AM127: 120 | AN127: Cliff Matthews | AO127: 9 | AR127: Gavin Smith | AS127: 5070 | AU127: Chris Kojak | AV127: 1
B128: 121 | C128: Joe Morrissette | G128: 862.4721361 | J128: 545.5402347 | K128: 1818.225894 | L128: 375.0612634 | N128: 1073.980052 | P128: 1086.359831 | Q128: 1698.970004 | S128: 1892.094603 | W128: 301.0299957 | Z128: 9653.734013 | AI128: 121 | AJ128: Joe Morrissette | AK128: 9653.734013 | AM128: 121 | AN128: Chuck Weinstock | AO128: 9 | AR128: Chris Richards | AS128: 5066 | AU128: Keith Wurster | AV128: 1
B129: 122 | C129: Paul Chakoian | J129: 1028.028724 | K129: 692.2366217 | M129: 1204.119983 | N129: 784.100862 | O129: 806.179974 | P129: 2261.104708 | Q129: 1362.337577 | S129: 1447.158031 | Z129: 9585.266481 | AI129: 122 | AJ129: Paul Chakoian | AK129: 9585.266481 | AM129: 122 | AN129: Tim Woodbury | AO129: 8 | AR129: Kathy Chang | AS129: 5025 | AU129: Claudia Mastroianni | AV129: 1
B130: 123 | C130: Frank Bruegger | D130: 3068.393679 | E130: 1243.038049 | F130: 2951.124935 | I130: 1875.061263 | K130: 425.9687323 | Z130: 9563.586658 | AI130: 123 | AJ130: Frank Bruegger | AK130: 9563.586658 | AM130: 123 | AN130: Sean McGuiness | AO130: 8 | AR130: Ellis Starks | AS130: 4990 | AU130: Adam Shapiro | AV130: 1
B131: 124 | C131: Matt Ivester | F131: 1518.51394 | G131: 1217.483944 | H131: 2136.720567 | I131: 1447.158031 | K131: 320.4890287 | L131: 1315.044357 | N131: 1505.149978 | Z131: 9460.559847 | AI131: 124 | AJ131: Matt Ivester | AK131: 9460.559847 | AM131: 124 | AN131: Stephen Rosenblatt | AO131: 8 | AR131: Robert Jones | AS131: 4922 | AU131: Sandra Benditt | AV131: 1
B132: 125 | C132: Kevin Conlon | F132: 1295.5671 | K132: 2540.173 | Q132: 920.818754 | R132: 1060.69784 | S132: 1755.874856 | T132: 801.6323462 | X132: 1021.189299 | Z132: 9395.953196 | AI132: 125 | AJ132: Kevin Conlon | AK132: 9395.953196 | AM132: 125 | AN132: Tony Goldstein | AO132: 8 | AR132: Keith Fichtemaier | AS132: 4842 | AU132: Caryl Aronson | AV132: 1
B133: 126 | C133: Jessica Kuznick | D133: 1777.500641 | F133: 2610.216417 | I133: 726.9987279 | M133: 942.008053 | R133: 530.3489202 | S133: 485.0183883 | U133: 1456.022415 | X133: 715.6818821 | Z133: 9243.795444 | AI133: 126 | AJ133: Jessica Kuznick | AK133: 9243.795444 | AM133: 126 | AN133: Kevin Conlon | AO133: 8 | AR133: David Lilie | AS133: 4826 | AU133: Frank Bruegger | AV133: 1
B134: 127 | C134: Robert Jones | G134: 1628.38893 | H134: 3052.540046 | J134: 1174.01825 | T134: 1029.383778 | Y134: 2354.34858 | Z134: 9238.679584 | AI134: 127 | AJ134: Robert Jones | AK134: 9238.679584 | AM134: 127 | AN134: Joan Hadley | AO134: 8 | AR134: Robert Hwang | AS134: 4800 | AU134: Kevin Conlon | AV134: 1
B135: 128 | C135: Scott Harker | E135: 1292.809665 | G135: 1859.433771 | H135: 869.2317197 | S135: 893.9466076 | T135: 2103.803721 | V135: 1365.755325 | W135: 801.6323462 | Z135: 9186.613157 | AI135: 128 | AJ135: Scott Harker | AK135: 9186.613157 | AM135: 128 | AN135: Jim Rogers | AO135: 8 | AR135: Andy Bartalone | AS135: 4738 | AU135: Frank Jerome | AV135: 1
B136: 129 | C136: Chris Richards | J136: 1551.700543 | K136: 1273.001272 | L136: 375.0612634 | N136: 1091.080469 | P136: 778.1512504 | Q136: 1146.128036 | W136: 2059.941888 | Y136: 837.2727025 | Z136: 9112.337425 | AI136: 129 | AJ136: Chris Richards | AK136: 9112.337425 | AM136: 129 | AN136: Ray DiDonato | AO136: 8 | AR136: Sharon Goldman | AS136: 4708 | AU136: Kevin Knourek | AV136: 1
B137: 130 | C137: Mary Massey | D137: 2563.68822 | E137: 1707.570176 | I137: 1146.128036 | J137: 1089.697365 | L137: 525.5762612 | Q137: 2068.185862 | Z137: 9100.845919 | AI137: 130 | AJ137: Mary Massey | AK137: 9100.845919 | AM137: 130 | AN137: John Scheinberg | AO137: 8 | AR137: Arthur Goltz | AS137: 4688 | AU137: Cynthia Yannette | AV137: 1
B138: =B137+1 -> 131 | C138: Claudia Mastroianni | H138: 1293.730757 | O138: 1939.519253 | P138: 2628.771962 | U138: 1431.363764 | W138: 1748.188027 | Z138: 9041.573763 | AI138: =AI137+1 -> 131 | AJ138: Claudia Mastroianni | AK138: 9041.573763 | AM138: =AM137+1 -> 131 | AN138: Lauri Calkins | AO138: 8 | AR138: Thomas Kracinovich | AS138: 4647 | AU138: Kevin Suffecool | AV138: 1
B139: 132 | C139: Bryan Juliano | F139: 1085.17161 | H139: 1191.603425 | O139: 2257.438567 | R139: 1062.79083 | S139: 602.0599913 | T139: 778.1512504 | U139: 1219.359949 | V139: 740.3626895 | Z139: 8936.938312 | AI139: 132 | AJ139: Bryan Juliano | AK139: 8936.938312 | AM139: 132 | AN139: Jordan Devenport | AO139: 8 | AR139: Jim Anderson | AS139: 4617 | AU139: Steve Watanabe | AV139: 1
B140: 133 | C140: Bree Goldman | H140: 1327.358934 | M140: 3127.968207 | O140: 1607.455023 | P140: 1848.189117 | S140: 1000 | Z140: 8910.971282 | AI140: 133 | AJ140: Bree Goldman | AK140: 8910.971282 | AM140: 133 | AN140: Ronald Nutt | AO140: 8 | AR140: Bob Herlien | AS140: 4612 | AU140: Kirk Oshiro | AV140: 1
B141: 134 | C141: Chris Jepsen | I141: 1596.597096 | J141: 1103.540592 | K141: 1035.715552 | O141: 1085.712113 | P141: 1151.267675 | R141: 1000 | S141: 1204.119983 | T141: 698.9700043 | Z141: 8875.923015 | AI141: 134 | AJ141: Chris Jepsen | AK141: 8875.923015 | AM141: 134 | AN141: John Harkness | AO141: 8 | AR141: Brian Hackett | AS141: 4609 | AU141: Thomas Valledolmo | AV141: 1
B142: 135 | C142: Masanobu Fujioka | I142: 1054.357662 | J142: 938.7303433 | M142: 1008.600172 | P142: 903.089987 | Q142: 2007.869651 | R142: 1119.475841 | T142: 1568.201724 | Z142: 8600.32538 | AI142: 135 | AJ142: Masanobu Fujioka | AK142: 8600.32538 | AM142: 135 | AN142: Matt Ivester | AO142: 8 | AR142: Dan Chevrie | AS142: 4550 | AU142: Kyle Minnis | AV142: 1
B143: 136 | C143: Eric Schneller | T143: 812.9133566 | U143: 3133.794301 | V143: 2733.46477 | X143: 1036.983566 | Y143: 826.9998179 | Z143: 8544.155812 | AI143: 136 | AJ143: Eric Schneller | AK143: 8544.155812 | AM143: 136 | AN143: Matt Treasure | AO143: 8 | AR143: Patrick Kirwan | AS143: 4475 | AU143: Barry Meltzer | AV143: 1
B144: 137 | C144: Erin Ramsay | J144: 678.4483372 | K144: 1079.181246 | L144: 1041.392685 | O144: 2889.461782 | P144: 1397.940009 | Q144: 1440.909082 | Z144: 8527.333141 | AI144: 137 | AJ144: Erin Ramsay | AK144: 8527.333141 | AM144: 137 | AN144: Masanobu Fujioka | AO144: 8 | AR144: Joe Long | AS144: 4424 | AU144: Chic Natkins | AV144: 1
B145: 138 | C145: Mordecai Schwartz | D145: 1393.784049 | E145: 1496.929648 | F145: 940.6271473 | G145: 2338.456494 | H145: 1136.720567 | I145: 1105.510185 | Z145: 8412.02809 | AI145: 138 | AJ145: Mordecai Schwartz | AK145: 8412.02809 | AM145: 138 | AN145: Dean White | AO145: 8 | AR145: Kevin Knourek | AS145: 4392 | AU145: Greg Pappas | AV145: 1
B146: 139 | C146: Lawrence Larson | I146: 5493.611386 | L146: 912.0448296 | M146: 1848.189117 | Z146: 8253.845333 | AI146: 139 | AJ146: Lawrence Larson | AK146: 8253.845333 | AM146: 139 | AN146: Andreas Wolfram | AO146: 8 | AR146: Mary Massey | AS146: 4385 | AU146: Lauri Calkins | AV146: 1
B147: 140 | C147: Steve Forcash | G147: 1908.485019 | H147: 2217.932364 | I147: 2879.134125 | K147: 1173.671785 | Z147: 8179.223293 | AI147: 140 | AJ147: Steve Forcash | AK147: 8179.223293 | AM147: 140 | AN147: Gavin Smith | AO147: 8 | AR147: Eric Schneller | AS147: 4381 | AU147: Dave McVay | AV147: 1
B148: 141 | C148: Caryl Aronson | D148: 1301.029996 | M148: 1880.813592 | P148: 1680.517465 | U148: 1146.128036 | V148: 2105.850674 | Z148: 8114.339763 | AI148: 141 | AJ148: Caryl Aronson | AK148: 8114.339763 | AM148: 141 | AN148: Chris Jepsen | AO148: 8 | AR148: Ashley Adams | AS148: 4363 | AU148: Lawrence Larson | AV148: 1
B149: 142 | C149: Asya Kamsky | I149: 1198.657087 | M149: 1025.305865 | Q149: 819.5439355 | R149: 379.8339223 | U149: 2054.613055 | V149: 2604.53461 | Z149: 8082.488475 | AI149: 142 | AJ149: Asya Kamsky | AK149: 8082.488475 | AM149: 142 | AN149: David Coates | AO149: 8 | AR149: Don Condit | AS149: 4355 | AU149: Lori Miller | AV149: 1
B150: 143 | C150: Ronald Nutt | D150: 1462.397998 | I150: 1018.596488 | K150: 1138.909679 | N150: 1041.392685 | Q150: 954.2425094 | R150: 962.2114391 | S150: 1467.361417 | Z150: 8045.112216 | AI150: 143 | AJ150: Ronald Nutt | AK150: 8045.112216 | AM150: 143 | AN150: Ashley Adams | AO150: 8 | AR150: John Segovia | AS150: 4335 | AU150: Lawrence Wu | AV150: 1
B151: 144 | C151: Bob Gilbert | O151: 1337.459261 | S151: 1556.302501 | T151: 954.2425094 | Y151: 4188.295555 | Z151: 8036.299827 | AI151: 144 | AJ151: Bob Gilbert | AK151: 8036.299827 | AM151: 144 | AN151: Edson Pap | AO151: 8 | AR151: Scott Lewis | AS151: 4330 | AU151: John Campbell | AV151: 1
B152: 145 | C152: Tanya Peck-Devenport | I152: 2436.162647 | J152: 1152.288344 | O152: 1036.429266 | S152: 1204.119983 | T152: 989.0046157 | U152: 1161.368002 | Z152: 7979.372858 | AI152: 145 | AJ152: Tanya Peck-Devenport | AK152: 7979.372858 | AM152: 145 | AN152: Asya Kamsky | AO152: 8 | AR152: Aaron Lion | AS152: 4261 | AU152: Lee Ilagan | AV152: 1
B153: 146 | C153: Andy Bloch | D153: 3318.053713 | E153: 778.1512504 | F153: 1124.938737 | H153: 2676.277818 | Z153: 7897.421518 | AI153: 146 | AJ153: Andy Bloch | AK153: 7897.421518 | AM153: 146 | AN153: Brenda Mowrey | AO153: 8 | AR153: Robert Catlett | AS153: 4234 | AU153: Arthur Reber | AV153: 1
B154: 147 | C154: John Scheinberg | L154: 1121.585095 | O154: 709.6938697 | P154: 2090.786928 | R154: 1342.422681 | S154: 977.7236053 | U154: 816.6095022 | V154: 829.3037728 | Z154: 7888.125453 | AI154: 147 | AJ154: John Scheinberg | AK154: 7888.125453 | AM154: 147 | AN154: Voltaire Ronquillo | AO154: 7 | AR154: Mike Osborne | AS154: 4225 | AU154: Len Forsyth | AV154: 1
B155: 148 | C155: Ellis Starks | D155: 1311.753861 | F155: 903.089987 | V155: 3191.451014 | X155: 903.089987 | Y155: 1544.068044 | Z155: 7853.452894 | AI155: 148 | AJ155: Ellis Starks | AK155: 7853.452894 | AM155: 148 | AN155: Mark Haroldson | AO155: 7 | AR155: Jennifer Shahade | AS155: 4215 | AU155: Mark Gregorich | AV155: 1
B156: 149 | C156: Christopher Kuntz | I156: 672.6410656 | K156: 1301.029996 | V156: 2099.220095 | X156: 1071.882007 | Y156: 2680.465018 | Z156: 7825.238182 | AI156: 149 | AJ156: Christopher Kuntz | AK156: 7825.238182 | AM156: 149 | AN156: Tanya Peck-Devenport | AO156: 7 | AR156: Christopher Kuntz | AS156: 4211 | AU156: Chieu Tran | AV156: 1
B157: 150 | C157: James Hammer | I157: 1319.626484 | K157: 1047.42465 | L157: 1249.198357 | U157: 1190.331698 | X157: 3001.300933 | Z157: 7807.882123 | AI157: 150 | AJ157: James Hammer | AK157: 7807.882123 | AM157: 150 | AN157: Stephen Blackstock | AO157: 7 | AR157: Barry Tanenbaum | AS157: 4200 | AU157: Brandon Gerson | AV157: 1
B158: 151 | C158: Barry Tanenbaum | D158: 2102.24655 | E158: 1361.727836 | F158: 2118.864589 | I158: 2222.716471 | Z158: 7805.555446 | AI158: 151 | AJ158: Barry Tanenbaum | AK158: 7805.555446 | AM158: 151 | AN158: Eric Schneller | AO158: 7 | AR158: Howard Jackson | AS158: 4197 | AU158: Aaron Lion | AV158: 1
B159: 152 | C159: Mark Haroldson | S159: 1000 | T159: 1431.363764 | V159: 4468.34733 | Y159: 887.2957198 | Z159: 7787.006814 | AI159: 152 | AJ159: Mark Haroldson | AK159: 7787.006814 | AM159: 152 | AN159: Stephen Landrum | AO159: 7 | AR159: Mark Richardson | AS159: 4196 | AU159: David Lee | AV159: 1
B160: 153 | C160: Jeff Calkins | D160: 2309.81895 | E160: 2066.804956 | F160: 1052.529051 | H160: 868.3278807 | R160: 1484.299839 | Z160: 7781.780677 | AI160: 153 | AJ160: Jeff Calkins | AK160: 7781.780677 | AM160: 153 | AN160: Tim Showalter | AO160: 7 | AR160: Brandon Gerson | AS160: 4177 | AU160: Lou Krieger | AV160: 1
B161: 154 | C161: Peter Stephenson | D161: 1064.457989 | G161: 1364.416975 | H161: 2228.120259 | L161: 1457.377197 | M161: 845.09804 | Q161: 787.106093 | Z161: 7746.576552 | AI161: 154 | AJ161: Peter Stephenson | AK161: 7746.576552 | AM161: 154 | AN161: Rick Charles | AO161: 7 | AR161: John DeRose | AS161: 4171 | AU161: David Croson | AV161: 1
B162: 155 | C162: Todd Bergmann | I162: 2149.219113 | J162: 1892.094603 | K162: 1917.545903 | L162: 1765.938951 | Z162: 7724.798569 | AI162: 155 | AJ162: Todd Bergmann | AK162: 7724.798569 | AM162: 155 | AN162: Kirk Oshiro | AO162: 7 | AR162: Tony Goldstein | AS162: 4140 | AU162: Luisa Gomes | AV162: 1
B163: 156 | C163: Peter Caldes | D163: 1308.125119 | E163: 3726.919455 | G163: 1025.305865 | N163: 981.5165943 | T163: 653.2125138 | Z163: 7695.079547 | AI163: 156 | AJ163: Peter Caldes | AK163: 7695.079547 | AM163: 156 | AN163: Robert Jones | AO163: 7 | AR163: Richard Brodie | AS163: 4080 | AU163: Oliver Allen | AV163: 1
B164: 157 | C164: Joyce Ciotti | G164: 1444.37048 | H164: 460.409377 | I164: 520.6963426 | J164: 989.0046157 | K164: 1099.03384 | M164: 954.2425094 | P164: 1214.843848 | S164: 989.0046157 | Z164: 7671.605629 | AI164: 157 | AJ164: Joyce Ciotti | AK164: 7671.605629 | AM164: 157 | AN164: Matt Matros | AO164: 7 | AR164: Jim Bullard | AS164: 4075 | AU164: Chris Carstens | AV164: 1
B165: 158 | C165: Edson Pap | D165: 2195.120959 | G165: 1406.54018 | I165: 3108.305277 | J165: 483.0708664 | L165: 437.5306317 | Z165: 7630.567914 | AI165: 158 | AJ165: Edson Pap | AK165: 7630.567914 | AM165: 158 | AN165: Peter Stephenson | AO165: 7 | AR165: Erin Ramsay | AS165: 4070 | AU165: Claude Carlson | AV165: 1
B166: 159 | C166: Voltaire Ronquillo | R166: 994.5371043 | S166: 2431.363764 | T166: 1987.331032 | U166: 1079.181246 | V166: 1130.333768 | Z166: 7622.746915 | AI166: 159 | AJ166: Voltaire Ronquillo | AK166: 7622.746915 | AM166: 159 | AN166: Mordecai Schwartz | AO166: 7 | AR166: Asya Kamsky | AS166: 4012 | AU166: Mark Wileczek | AV166: 1
B167: 160 | C167: Mark Trombley | F167: 1550.228353 | H167: 2448.565794 | K167: 3584.331224 | Z167: 7583.125372 | AI167: 160 | AJ167: Mark Trombley | AK167: 7583.125372 | AM167: 160 | AN167: Robert Catlett | AO167: 7 | AR167: James Hammer | AS167: 4002 | AU167: Clinton Lanphier | AV167: 1
B168: 161 | C168: David Coates | G168: 1096.910013 | H168: 1265.085162 | I168: 1848.189117 | K168: 2146.128036 | L168: 826.6062569 | S168: 374.0940135 | Z168: 7557.012598 | AI168: 161 | AJ168: David Coates | AK168: 7557.012598 | AM168: 161 | AN168: John DeRose | AO168: 7 | AR168: Jodi Neufeld | AS168: 3988 | AU168: Martin Lipschutz | AV168: 1
B169: 162 | C169: Kirk Oshiro | F169: 798.3546365 | H169: 1041.392685 | N169: 765.916794 | P169: 1423.245874 | T169: 1000 | U169: 1763.427994 | Y169: 698.9700043 | Z169: 7491.307987 | AI169: 162 | AJ169: Kirk Oshiro | AK169: 7491.307987 | AM169: 162 | AN169: Christopher Kuntz | AO169: 7 | AR169: Joyce Ciotti | AS169: 3935 | AU169: Andreas Wolfram | AV169: 1
B170: 163 | C170: Arthur Goltz | L170: 1564.27143 | M170: 946.1246192 | O170: 3221.526011 | P170: 1035.27576 | Q170: 698.9700043 | Z170: 7466.167825 | AI170: 163 | AJ170: Arthur Goltz | AK170: 7466.167825 | AM170: 163 | AN170: AJ Evangelista | AO170: 7 | AR170: Sam Scheinberg | AS170: 3916 | AU170: Marty Stilling | AV170: 1
B171: 164 | C171: Jim Rogers | D171: 385.3508814 | F171: 871.8322933 | H171: 1792.391689 | K171: 533.4733948 | O171: 444.6508513 | P171: 1010.723865 | Q171: 1025.305865 | X171: 1322.219295 | Z171: 7385.948136 | AI171: 164 | AJ171: Jim Rogers | AK171: 7385.948136 | AM171: 164 | AN171: Erin Ramsay | AO171: 7 | AR171: Lawrence Larson | AS171: 3900 | AU171: Connie Henriques | AV171: 1
B172: 165 | C172: Ryan Troll | K172: 1204.119983 | M172: 1469.822016 | N172: 929.4189257 | P172: 2608.526034 | Q172: 1156.347201 | Z172: 7368.234159 | AI172: 165 | AJ172: Ryan Troll | AK172: 7368.234159 | AM172: 165 | AN172: Andy Bloch | AO172: 7 | AR172: Chuck Weinstock | AS172: 3880 | AU172: Mary Massey | AV172: 1
B173: 166 | C173: Rick Bevan | D173: 985.2767432 | F173: 903.089987 | G173: 1162.365235 | J173: 1607.455023 | K173: 1425.968732 | M173: 1168.79202 | Z173: 7252.947741 | AI173: 166 | AJ173: Rick Bevan | AK173: 7252.947741 | AM173: 166 | AN173: Chuck Bayne | AO173: 7 | AR173: Edson Pap | AS173: 3826 | AU173: Scott Hermes | AV173: 1
B174: 167 | C174: Steve Watanabe | D174: 1459.392488 | J174: 1217.483944 | N174: 2349.49338 | R174: 1120.573931 | U174: 1033.423755 | Z174: 7180.367498 | AI174: 167 | AJ174: Steve Watanabe | AK174: 7180.367498 | AM174: 167 | AN174: Brian Hackett | AO174: 7 | AR174: Ryan Troll | AS174: 3740 | AU174: Masanobu Fujioka | AV174: 1
B175: 168 | C175: Richard Brodie | G175: 2661.812686 | I175: 4452.782022 | Z175: 7114.594708 | AI175: 168 | AJ175: Richard Brodie | AK175: 7114.594708 | AM175: 168 | AN175: Barry Tanenbaum | AO175: 7 | AR175: John Lloyd | AS175: 3733 | AU175: Sean McGuiness | AV175: 1
B176: 169 | C176: Derek Gomez | N176: 3002.705893 | P176: 1458.637849 | R176: 2640.28263 | Z176: 7101.626372 | AI176: 169 | AJ176: Derek Gomez | AK176: 7101.626372 | AM176: 169 | AN176: Caryl Aronson | AO176: 7 | AR176: Chris Straghalis | AS176: 3730 | AU176: Matt Ivester | AV176: 1
B177: 170 | C177: Aaron Lion | K177: 1650.79304 | M177: 1157.264402 | O177: 985.2767432 | Y177: 3236.184443 | Z177: 7029.518628 | AI177: 170 | AJ177: Aaron Lion | AK177: 7029.518628 | AM177: 170 | AN177: Tom O'Boyle | AO177: 6 | AR177: John Bonaguro | AS177: 3729 | AU177: Sharon Goldman | AV177: 1
B178: 171 | C178: Chris Straghalis | D178: 1351.262402 | E178: 1729.704621 | F178: 798.3546365 | H178: 1462.397998 | K178: 1681.241237 | Z178: 7022.960895 | AI178: 171 | AJ178: Chris Straghalis | AK178: 7022.960895 | AM178: 171 | AN178: Nancy Robertson | AO178: 6 | AR178: Dave O'Grady | AS178: 3705 | AU178: Matthew Kursar | AV178: 1
B179: 172 | C179: Rick Charles | D179: 2015.649959 | E179: 1681.241237 | M179: 1198.657087 | U179: 1602.059991 | V179: 495.6130378 | Z179: 6993.221313 | AI179: 172 | AJ179: Rick Charles | AK179: 6993.221313 | AM179: 172 | AN179: Steve Forcash | AO179: 6 | AR179: Spenser Sun | AS179: 3697 | AU179: Crystal Haggard | AV179: 1
B180: 173 | C180: Stephen Landrum | E180: 1054.357662 | G180: 2444.762303 | H180: 1278.753601 | M180: 1149.219113 | N180: 1060.69784 | Z180: 6987.790519 | AI180: 173 | AJ180: Stephen Landrum | AK180: 6987.790519 | AM180: 173 | AN180: Steve Watanabe | AO180: 6 | AR180: Mike McBride | AS180: 3668 | AU180: Michael Jacobs | AV180: 1
B181: 174 | C181: Brad Edmonds | D181: 5540.942311 | E181: 1420.505837 | Z181: 6961.448148 | AI181: 174 | AJ181: Brad Edmonds | AK181: 6961.448148 | AM181: 174 | AN181: Thomas Kelley | AO181: 6 | AR181: Steve Pierce | AS181: 3666 | AU181: Stephen Lewin-Berlin | AV181: 1
B182: 175 | C182: Stephen Blackstock | P182: 1246.129126 | Q182: 1130.333768 | R182: 1808.114474 | S182: 812.9133566 | T182: 1100.370545 | U182: 792.3916895 | Z182: 6890.252959 | AI182: 175 | AJ182: Stephen Blackstock | AK182: 6890.252959 | AM182: 175 | AN182: Todd Bergmann | AO182: 6 | AR182: Mark Rafn | AS182: 3640 | AU182: Chris Jepsen | AV182: 1
B183: 176 | C183: Ben Gamble | F183: 1641.474111 | J183: 1541.995036 | Q183: 924.2792861 | V183: 1079.181246 | Y183: 1694.605199 | Z183: 6881.534877 | AI183: 176 | AJ183: Ben Gamble | AK183: 6881.534877 | AM183: 176 | AN183: Rick Bevan | AO183: 6 | AR183: Travis williams | AS183: 3615 | AU183: Steve Bartnyk | AV183: 1
B184: 177 | C184: John DeRose | D184: 674.1464206 | G184: 1431.363764 | H184: 1469.822016 | I184: 2593.395461 | J184: 483.0708664 | Z184: 6651.798528 | AI184: 177 | AJ184: John DeRose | AK184: 6651.798528 | AM184: 177 | AN184: Richard Goodridge | AO184: 6 | AR184: Jessica Kuznick | AS184: 3607 | AU184: Michael Maurer | AV184: 1
B185: 178 | C185: Andy Bartalone | P185: 1255.272505 | W185: 1952.30801 | X185: 2820.529849 | Y185: 617.2999579 | Z185: 6645.410321 | AI185: 178 | AJ185: Andy Bartalone | AK185: 6645.410321 | AM185: 178 | AN185: John Segovia | AO185: 6 | AR185: Tanya Peck-Devenport | AS185: 3583 | AU185: Steve Forcash | AV185: 1
B186: 179 | C186: Robert Catlett | F186: 2715.794498 | G186: 1990.127971 | H186: 1188.97325 | I186: 671.2113404 | Z186: 6566.107059 | AI186: 179 | AJ186: Robert Catlett | AK186: 6566.107059 | AM186: 179 | AN186: Karen Adams | AO186: 6 | AR186: Matt Matros | AS186: 3556 | AU186: Michael Patterson | AV186: 1
B187: 180 | C187: Tim Woodbury | D187: 750.3932333 | E187: 1317.018101 | F187: 1047.923552 | G187: 1482.911719 | H187: 1961.18371 | Z187: 6559.430315 | AI187: 180 | AJ187: Tim Woodbury | AK187: 6559.430315 | AM187: 180 | AN187: Lawrence Larson | AO187: 6 | AR187: Tom Overton | AS187: 3553 | AU187: Bob Gilbert | AV187: 1
B188: 181 | C188: Shari Silk | R188: 1643.452676 | U188: 3488.522515 | V188: 1392.110465 | Z188: 6524.085656 | AI188: 181 | AJ188: Shari Silk | AK188: 6524.085656 | AM188: 181 | AN188: Kevin Suffecool | AO188: 6 | AR188: Masanobu Fujioka | AS188: 3553 | AU188: Donald Hemstock | AV188: 1
B189: 182 | C189: Harry Baldwin | D189: 2476.756148 | H189: 2677.948962 | M189: 1332.43846 | Z189: 6487.14357 | AI189: 182 | AJ189: Harry Baldwin | AK189: 6487.14357 | AM189: 182 | AN189: Ryan Troll | AO189: 6 | AR189: Peter Stephenson | AS189: 3532 | AU189: Thomas Kracinovich | AV189: 1
B190: 183 | C190: Edmund Hack | G190: 1639.486489 | L190: 1172.862289 | M190: 1335.792102 | Q190: 602.0599913 | V190: 720.1593034 | Y190: 954.2425094 | Z190: 6424.602684 | AI190: 183 | AJ190: Edmund Hack | AK190: 6424.602684 | AM190: 183 | AN190: Mike Miller | AO190: 6 | AR190: Richard Korbin | AS190: 3505 | AU190: Barry Tanenbaum | AV190: 1
B191: 184 | C191: John Lloyd | F191: 1164.352856 | L191: 1380.211242 | S191: 1408.239965 | U191: 1431.363764 | V191: 1028.028724 | Z191: 6412.196551 | AI191: 184 | AJ191: John Lloyd | AK191: 6412.196551 | AM191: 184 | AN191: Matt Grapenthien | AO191: 6 | AR191: David Trinidad | AS191: 3505 | AU191: Tim Stine | AV191: 1
B192: 185 | C192: George Wattman | M192: 1012.234456 | P192: 1282.54659 | R192: 1113.943352 | U192: 954.2425094 | V192: 990.2401627 | Y192: 1041.392685 | Z192: 6394.599756 | AI192: 185 | AJ192: George Wattman | AK192: 6394.599756 | AM192: 185 | AN192: Len Forsyth | AO192: 6 | AR192: Ronald Farrar | AS192: 3494 | AU192: Mike Miller | AV192: 1
B193: 186 | C193: Karen Adams | H193: 1568.201724 | P193: 903.089987 | T193: 756.9619513 | U193: 1213.074825 | X193: 1096.910013 | Y193: 845.09804 | Z193: 6383.336541 | AI193: 186 | AJ193: Karen Adams | AK193: 6383.336541 | AM193: 186 | AN193: Grant Beardsley | AO193: 6 | AR193: Caryl Aronson | AS193: 3450 | AU193: Tom Abraham | AV193: 1
B194: 187 | C194: Richard Korbin | N194: 895.2646495 | O194: 1311.753861 | R194: 1740.362689 | S194: 1556.302501 | U194: 860.3380066 | Z194: 6364.021707 | AI194: 187 | AJ194: Richard Korbin | AK194: 6364.021707 | AM194: 187 | AN194: Frank Sordi | AO194: 6 | AR194: Edmund Hack | AS194: 3429 | AU194: Mike Tarrant | AV194: 1
B195: 188 | C195: Frank Brabec | E195: 2012.837225 | F195: 1226.500763 | G195: 1736.396502 | H195: 1359.624711 | Z195: 6335.3592 | AI195: 188 | AJ195: Frank Brabec | AK195: 6335.3592 | AM195: 188 | AN195: Bob Gilbert | AO195: 6 | AR195: Rick Charles | AS195: 3423 | AU195: Tom Goodwin | AV195: 1
B196: 189 | C196: Thomas Kracinovich | N196: 1596.597096 | O196: 1091.080469 | P196: 1007.178585 | S196: 2619.615006 | Z196: 6314.471155 | AI196: 189 | AJ196: Thomas Kracinovich | AK196: 6314.471155 | AM196: 189 | AN196: Andy Bartalone | AO196: 6 | AR196: Perry Spies | AS196: 3414 | AU196: Ben Gamble | AV196: 1
B197: 190 | C197: John Segovia | L197: 1397.940009 | O197: 2151.46835 | Q197: 1267.171728 | U197: 340.6206187 | Y197: 1091.080469 | Z197: 6248.281175 | AI197: 190 | AJ197: John Segovia | AK197: 6248.281175 | AM197: 190 | AN197: George Wattman | AO197: 6 | AR197: Mark Hughes | AS197: 3403 | AU197: Tom Overton | AV197: 1
B198: 191 | C198: Ray DiDonato | D198: 1351.426237 | E198: 1119.475841 | G198: 1045.757491 | H198: 1568.201724 | L198: 1138.302698 | Z198: 6223.16399 | AI198: 191 | AJ198: Ray DiDonato | AK198: 6223.16399 | AM198: 191 | AN198: Brad Edmonds | AO198: 6 | AR198: Matt Grapenthien | AS198: 3313 | AU198: Bill Campion | AV198: 1
B199: 192 | C199: Donna Kracinovich | K199: 920.818754 | L199: 1374.137094 | O199: 1800.774339 | Q199: 1000 | R199: 1093.421685 | Z199: 6189.151872 | AI199: 192 | AJ199: Donna Kracinovich | AK199: 6189.151872 | AM199: 192 | AN199: Harry Baldwin | AO199: 6 | AR199: Jeff Deitch | AS199: 3306 | AU199: Brad Edmonds | AV199: 1
B200: 193 | C200: Don Condit | E200: 2281.601444 | G200: 2923.548765 | H200: 977.7236053 | Z200: 6182.873814 | AI200: 193 | AJ200: Don Condit | AK200: 6182.873814 | AM200: 193 | AN200: Desmond Portano | AO200: 6 | AR200: Stephen Winter | AS200: 3280 | AU200: Donna Kracinovich | AV200: 1
... 663 more rows

Sheet Single Year
B3: Generic Game | C3: (All)
B4: Year | C4: 2024
A6: Rank | B6: Sum of Points | C6: Event | D6: Game
A7: 1 | C7: ATLARGE | F7: BARGE | N7: EMBARGO | S7: FARGO | W7: ARGEM | Z7: PeterBARGE23 | AA7: Grand Total
A8: =A7+1 -> 2 | B8: Name | C8: NLHE | D8: ToC | E8: DBPLO | F8: ToC | G8: NL/PLO/2BP | H8: DramaDigi | I8: NL Fun Book | J8: Triple Stud Shootout | K8: PLO5 | L8: No Limit Hold'em | M8: H.O.T | N8: 6-Handed ToC | O8: World Championship Chowaha | P8: Double Board PLO | Q8: DGCB NLHE | R8: B.O.S.S. | S8: HORSE | T8: NLHE | U8: PAIRS | V8: Midnight Madness | W8: HORSE | X8: NLHE | Y8: Pot Limit BigO | Z8: NLHE
A9: =A8+1 -> 3 | B9: Dan Nussbaum | I9: 1732.39376 | J9: 1380.211242 | O9: 1031.408464 | R9: 1243.038049 | S9: 869.2317197 | T9: 1263.241435 | Z9: 855.3172052 | AA9: 8374.841874
A10: 4 | B10: Richard Bremer | F10: 1591.064607 | I10: 1431.363764 | J10: 1681.241237 | U10: 680.863918 | W10: 1447.158031 | X10: 1518.51394 | AA10: 8350.205498
A11: 5 | B11: Dan Goldman | F11: 937.8520933 | G11: 1361.727836 | H11: 801.6323462 | J11: 1079.181246 | K11: 1255.272505 | P11: 1204.119983 | AA11: 6639.786009
A12: 6 | B12: Ron Grossberg | K12: 887.2957198 | M12: 826.0748027 | O12: 1332.43846 | P12: 806.179974 | X12: 819.5439355 | Y12: 1361.727836 | AA12: 6033.260728
A13: 7 | B13: Jared Anderson | F13: 1414.973348 | H13: 1579.783597 | J13: 1204.119983 | M13: 1348.953548 | AA13: 5547.830475
A14: 8 | B14: Sam Scheinberg | L14: 1393.575203 | N14: 1672.097858 | P14: 1505.149978 | AA14: 4570.82304
A15: 9 | B15: Len Greenberg | D15: 1088.136089 | L15: 1518.51394 | U15: 530.3489202 | W15: 1146.128036 | AA15: 4283.126984
A16: 10 | B16: Bob Gilbert | T16: 1740.362689 | V16: 1230.448921 | X16: 1217.483944 | AA16: 4188.295555
A17: 11 | B17: Christian Jones | H17: 1278.753601 | K17: 954.2425094 | M17: 922.9848157 | X17: 916.4539485 | AA17: 4072.434875
A18: 12 | B18: Jeanne David | D18: 1213.074825 | L18: 849.5071589 | R18: 1066.94679 | U18: 680.863918 | AA18: 3810.392692
A19: 13 | B19: Tim Showalter | K19: 1431.363764 | L19: 1995.635195 | AA19: 3426.998959
A20: 14 | B20: Aaron Lion | E20: 763.4279936 | I20: 1255.272505 | L20: 1217.483944 | AA20: 3236.184443
A21: 15 | B21: Russell Fox | G21: 662.7578317 | H21: 880.8135923 | M21: 1525.044807 | AA21: 3068.616231
A22: 16 | B22: Jesse Capps | F22: 1892.094603 | K22: 1130.333768 | AA22: 3022.428371
A23: 17 | B23: Pete Segal | E23: 1462.397998 | T23: 962.2114391 | U23: 530.3489202 | AA23: 2954.958357
A24: 18 | B24: Nolan Hee | N24: 1194.976603 | O24: 1633.468456 | AA24: 2828.445059
A25: 19 | B25: Christopher Kuntz | F25: 1046.996563 | Z25: 1633.468456 | AA25: 2680.465018
A26: 20 | B26: Michael Patterson | J26: 836.1431974 | M26: 1826.074803 | AA26: 2662.218
A27: 21 | B27: Paul Stine | G27: 759.6678447 | J27: 836.1431974 | M27: 1047.923552 | AA27: 2643.734594
A28: 22 | B28: Larry Bierman | F28: 892.0946027 | Q28: 1716.003344 | AA28: 2608.097946
A29: 23 | B29: Guy Berentsen | H29: 734.6855566 | P29: 903.089987 | T29: 895.2646495 | AA29: 2533.040193
A30: 24 | B30: Steve Daniel | L30: 1092.545208 | S30: 1267.171728 | AA30: 2359.716936
A31: 25 | B31: Robert Jones | I31: 1130.333768 | M31: 1224.014811 | AA31: 2354.34858
A32: 26 | B32: Patti Beadles | F32: 1290.034611 | J32: 982.271233 | AA32: 2272.305844
A33: 27 | B33: Sabyl Landrum | F33: 850.7019175 | N33: 1371.067862 | AA33: 2221.76978
A34: 28 | B34: Carol Anderson | H34: 1102.662342 | J34: 903.089987 | AA34: 2005.752329
A35: 29 | B35: Dave Spencer | J35: 836.1431974 | M35: 1127.104798 | AA35: 1963.247996
A36: 30 | B36: Deron Brod | D36: 991.2260757 | I36: 954.2425094 | AA36: 1945.468585
A37: 31 | B37: Stephanie Wasserman | C37: 962.2114391 | M37: 871.8322933 | AA37: 1834.043732
A38: 32 | B38: Alan Stuart | D38: 1389.166084 | U38: 442.3032906 | AA38: 1831.469375
A39: 33 | B39: Ron Lyons | E39: 860.3380066 | W39: 970.0367766 | AA39: 1830.374783
A40: 34 | B40: Troy Lee | F40: 989.0046157 | K40: 829.3037728 | AA40: 1818.308389
A41: 35 | B41: Andrew Prock | J41: 836.1431974 | N41: 973.1278536 | AA41: 1809.271051
A42: 36 | B42: Ken Kubey | R42: 765.916794 | Z42: 1031.408464 | AA42: 1797.325258
A43: 37 | B43: Dean White | C43: 1740.362689 | AA43: 1740.362689
A44: 38 | B44: Rick Mombourquette | K44: 1732.39376 | AA44: 1732.39376
A45: 39 | B45: David Low | I45: 778.1512504 | L45: 916.4539485 | AA45: 1694.605199
A46: 40 | B46: Ben Gamble | L46: 1694.605199 | AA46: 1694.605199
A47: 41 | B47: Meredith Holtzman | D47: 1690.19608 | AA47: 1690.19608
A48: 42 | B48: Connor Whiteley | S48: 1568.201724 | AA48: 1568.201724
A49: 43 | B49: Ellis Starks | R49: 1544.068044 | AA49: 1544.068044
A50: 44 | B50: George Stricker | C50: 1439.332694 | AA50: 1439.332694
A51: 45 | B51: Stephen Rosenblatt | T51: 1439.332694 | AA51: 1439.332694
A52: 46 | B52: Lori Miller | Q52: 1414.973348 | AA52: 1414.973348
A53: 47 | B53: Chic Natkins | E53: 684.2467475 | Z53: 730.3784686 | AA53: 1414.625216
A54: 48 | B54: Gerald Jeong | Z54: 1332.43846 | AA54: 1332.43846
A55: 49 | B55: Connie Kellers | L55: 1296.66519 | AA55: 1296.66519
A56: 50 | B56: Cynthia Yannette | C56: 1263.241435 | AA56: 1263.241435
A57: 51 | B57: Paul McMullin | Q57: 1238.882089 | AA57: 1238.882089
A58: 52 | B58: Tim Stine | F58: 1193.124598 | AA58: 1193.124598
A59: 53 | B59: Mike Fujita | E59: 1161.368002 | AA59: 1161.368002
A60: 54 | B60: Helen Kimble | O60: 1156.347201 | AA60: 1156.347201
A61: 55 | B61: David Kluchman | Z61: 1156.347201 | AA61: 1156.347201
A62: 56 | B62: Terry Jaglarski | L62: 1150.537155 | AA62: 1150.537155
A63: 57 | B63: James Rogers | C63: 1138.302698 | AA63: 1138.302698
A64: 58 | B64: Jeff Palmucci | T64: 1138.302698 | AA64: 1138.302698
A65: 59 | B65: Olav Sachsen | Q65: 1113.943352 | AA65: 1113.943352
A66: 60 | B66: Kevan Garrett | F66: 1113.943352 | AA66: 1113.943352
A67: 61 | B67: John Segovia | S67: 1091.080469 | AA67: 1091.080469
A68: 62 | B68: Pete Primiano | N68: 1070.037867 | AA68: 1070.037867
A69: 63 | B69: Patrick Kirwan | G69: 1060.69784 | AA69: 1060.69784
A70: 64 | B70: Jeff Davis | Y70: 1060.69784 | AA70: 1060.69784
A71: 65 | B71: Tom Abraham | X71: 1041.392685 | AA71: 1041.392685
A72: 66 | B72: AJ Evangelista | T72: 1041.392685 | AA72: 1041.392685
A73: =A72+1 -> 67 | B73: Doug Grismore | L73: 1041.392685 | AA73: 1041.392685
A74: 68 | B74: George Wattman | C74: 1041.392685 | AA74: 1041.392685
A75: 69 | B75: Cornelius Buijs | I75: 1033.423755 | AA75: 1033.423755
A76: 70 | B76: Dean Kerl | K76: 1033.423755 | AA76: 1033.423755
A77: 71 | B77: Joe Santagata | P77: 1028.028724 | AA77: 1028.028724
A78: 72 | B78: Bob Lauria | Q78: 1017.033339 | AA78: 1017.033339
A79: 73 | B79: Gillian Groves | L79: 995.6351946 | AA79: 995.6351946
A80: 74 | B80: Barry Kornspan | E80: 985.2767432 | AA80: 985.2767432
A81: 75 | B81: Laurie Skywalker | M81: 980.9767627 | AA81: 980.9767627
A82: 76 | B82: Kelly Kania | H82: 977.7236053 | AA82: 977.7236053
A83: 77 | B83: Tom Bessoir | S83: 966.1417327 | AA83: 966.1417327
A84: 78 | B84: Edmund Hack | L84: 954.2425094 | AA84: 954.2425094
A85: 79 | B85: Jeff Amasaki | R85: 942.008053 | AA85: 942.008053
A86: 80 | B86: Adam Bachrach | Q86: 937.8520933 | AA86: 937.8520933
A87: 81 | B87: Tim McGarvey | Z87: 934.4984512 | AA87: 934.4984512
A88: 82 | B88: Kyle Minnis | O88: 934.4984512 | AA88: 934.4984512
A89: 83 | B89: Rich Vehlow | V89: 929.4189257 | AA89: 929.4189257
A90: 84 | B90: Steven Eisenstein | C90: 895.2646495 | AA90: 895.2646495
A91: 85 | B91: Darlene Springman | N91: 893.9466076 | AA91: 893.9466076
A92: 86 | B92: Mark Haroldson | I92: 887.2957198 | AA92: 887.2957198
A93: 87 | B93: Charles Stack | Y93: 884.6065813 | AA93: 884.6065813
A94: 88 | B94: Jim Anderson | G94: 884.6065813 | AA94: 884.6065813
A95: 89 | B95: Christin Maschmann | L95: 881.6918423 | AA95: 881.6918423
A96: 90 | B96: Donald Adams | Q96: 870.9053036 | AA96: 870.9053036
A97: 91 | B97: Bruce Iwamoto | O97: 855.3172052 | AA97: 855.3172052
A98: 92 | B98: David Sheriff | W98: 845.09804 | AA98: 845.09804
A99: 93 | B99: Karen Adams | R99: 845.09804 | AA99: 845.09804
A100: 94 | B100: Chris Richards | T100: 837.2727025 | AA100: 837.2727025
A101: 95 | B101: Scott Byron | J101: 836.1431974 | AA101: 836.1431974
A102: 96 | B102: Lee Crocker | J102: 836.1431974 | AA102: 836.1431974
A103: 97 | B103: Ellen Fried | I103: 829.3037728 | AA103: 829.3037728
A104: 98 | B104: Eric Schneller | N104: 826.9998179 | AA104: 826.9998179
A105: 99 | B105: Gerald Petersen | L105: 819.5439355 | AA105: 819.5439355
A106: 100 | B106: Scott Samarel | L106: 791.5152119 | AA106: 791.5152119
A107: 101 | B107: Patrick Milligan | Z107: 788.3704156 | AA107: 788.3704156
A108: 102 | B108: Nolan Dalla | O108: 788.3704156 | AA108: 788.3704156
A109: 103 | B109: Andy Latto | V109: 753.3276667 | AA109: 753.3276667
A110: 104 | B110: Perry Spies | W110: 748.188027 | AA110: 748.188027
A111: 105 | B111: Kirk Oshiro | R111: 698.9700043 | AA111: 698.9700043
A112: 106 | B112: Kevin Un | Z112: 679.2259461 | AA112: 679.2259461
A113: 107 | B113: Andy Bartalone | E113: 617.2999579 | AA113: 617.2999579
A114: 108 | B114: Kyle Andrews | E114: 559.3080109 | AA114: 559.3080109
A115: 109 | B115: Michael Klein | U115: 442.3032906 | AA115: 442.3032906
A116: 110
A117: 111
A118: 112
A119: 113
A120: 114
A121: 115
A122: 116
A123: 117
A124: 118
A125: 119
A126: 120
A127: 121
A128: 122
A129: 123
A130: 124
A131: 125
A132: 126
A133: 127
A134: 128
A135: 129
A136: 130
A137: =A136+1 -> 131
A138: 132
A139: 133
A140: 134
A141: 135
A142: 136
A143: 137
A144: 138
A145: 139
A146: 140
A147: 141
A148: 142
A149: 143
A150: 144
A151: 145
A152: 146
A153: 147
A154: 148
A155: 149
A156: 150
A157: 151
A158: 152
A159: 153
A160: 154
A161: 155
A162: 156
A163: 157
A164: 158
A165: 159
A166: 160
A167: 161
A168: 162
A169: 163
A170: 164
A171: 165
A172: 166
A173: 167
A174: 168
A175: 169
A176: 170
A177: 171
A178: 172
A179: 173
A180: 174
A181: 175
A182: 176
A183: 177
A184: 178
A185: 179
A186: 180
A187: 181
A188: 182
A189: 183
A190: 184
A191: 185
A192: 186
A193: 187
A194: 188
A195: 189
A196: 190
A197: 191
A198: 192
A199: 193
A200: 194
A201: =A200+1 -> 195
A202: 196
A203: 197
... 564 more rows

Sheet Player
A1: Name | B1: Dan Nussbaum
A3: Sum of Points
A4: Year | B4: Event | C4: Game | D4: Generic Game | E4: Place | F4: Total
A5: 2004 | B5: BARGE | C5: NLHE | D5: NL | E5: 3 | F5: 1836.745966
A6: 2008 | B6: BARGE | C6: NL SO to HORSE | D6: Mixed | E6: 4 | F6: 1295.5671
A7: 2011 | B7: BARGE | C7: ToC | D7: Mixed | E7: 6 | F7: 1348.953548
A8: 2015 | B8: BARGE | C8: ToC | D8: Mixed | E8: 8 | F8: 1157.607853
A9: 2016 | B9: BARGE | C9: ToC | D9: Mixed | E9: 6 | F9: 1290.034611
A10: 2018 | B10: BARGE | C10: ToC | D10: Mixed | E10: 13 | F10: 911.362513
A11: 2019 | B11: BARGE | C11: NLNE | D11: NL | E11: 2 | F11: 1802.773725
A12: 2024 | B12: BARGE | C12: NL Fun Book | D12: NL | E12: 1 | F12: 1732.39376
C13: Triple Stud Shootout | D13: Mixed | E13: 2 | F13: 1380.211242
B14: EMBARGO | C14: World Championship Chowaha | D14: LHE | E14: 4 | F14: 1031.408464
C15: B.O.S.S. | D15: Mixed | E15: 2 | F15: 1243.038049
B16: FARGO | C16: HORSE | D16: Mixed | E16: 5 | F16: 869.2317197
C17: NLHE | D17: NL | E17: 3 | F17: 1263.241435
B18: PeterBARGE23 | C18: NLHE | D18: NL | E18: 6 | F18: 855.3172052
